Workbook

Sheet Table of Content
A1: Rate Design Model version 1.0 © CHEC
D7: Table of Content
E9: A. LDC Info
E10: B. CurrentTariff
E11: C. Revenues at Curr Rates
E12: RATEBASE & REV REQ ->
E13: D. Rate Base
E14: E. Revenue Requirement
E15: COST ALLOC. & RATE DESIGN ->
E16: F. Cost Allocation & RevAllocn
E17: G. RateDesign
E18: H. Rev_Reconciliation
E19: RATE RIDERS ->
E20: I. SMRR
E21: J. DVA
E22: K. Summary of Tariffs
E23: RRWF ->
E24: RRWF_Data_Input_Sheet
E25: RRWF_Rate_Base
E26: RRWF_Utility Income
E27: RRWF_Taxes_PILs
E28: RRWF_Cost_of_Capital
E29: RRWF_Rev_Def_Suff
E30: RRWF_Rev_Reqt
E31: Update to COS Application

Sheet A. LDC Info
A1: Rate Design Model version 1.0 © CHEC | T1: 2
D10: Utility Name | E10: Renfrew Hydro Inc.
D12: Service Territory
D14: Assigned EB Number
D16: Name of Contact and Title | E16: Bill Nippard- President
D18: Phone Number | E18: 613-432-4884
D20: Email Address | E20: bnippard@renfrewhydro.com
D22: Bridge Year | E22: 2016
D24: Test Year | E24: 2017
D26: Last Rebasing Year | E26: 2010
B28: Notes
C30: Pale green cells represent input cells.
C32: Pale blue cells represent drop-down lists. The applicant should select the appropriate item from the drop-down list.
C34: White cells contain fixed values, automatically generated values or formulae.

Sheet B. CurrentTariff
A1: Rate Design Model version 1.0 © CHEC
A9: Customer Class & Current Tariff Sheet
A12: Customer Class Name | B12: Existing/ Proposed | C12: MSC Metric | D12: Usage Metric
A13: Residential | B13: Exisitng | C13: Customer | D13: kWh
A14: General Service < 50 kW | B14: Existing | C14: Customer | D14: kWh
A15: General Service > 50 to 4999 kW | B15: Existing | C15: Customer | D15: kW
A16: Unmetered Scattered Load | B16: Existing | C16: Connection | D16: kWh
A17: Street Lighting | B17: Existing | C17: Connection | D17: kW
A18: other classes | B18: Existing | C18: Customer | D18: kWh
A19: other classes | B19: Existing | C19: Connection | D19: kW
A20: other classes | B20: Existing | C20: Connection | D20: kW
A21: other classes | B21: Existing | C21: Connection | D21: kW
A23: Currently Approved Loss Factor
A25: Total Loss Factor – Secondary Metered Customer < 5,000 kW | B25: 1.039
A26: Total Loss Factor – Secondary Metered Customer > 5,000 kW
A27: Total Loss Factor – Primary Metered Customer < 5,000 kW | B27: 1.0286
A28: Total Loss Factor – Primary Metered Customer > 5,000 KW
A30: =A13 -> Residential | B30: Effective Until mm/dd/yy | C30: rate | D30: Connection Type
A32: Service Charge | C32: 13.97 | D32: $
A33: Distribution Volumetric Rate | C33: 0.0145 | D33: kWh
A34: Rate Rider for Smart Metering Entity Charge - effective until October 31, 2018 | C34: 0.79 | D34: kWh
A35: Low Voltage Service Rate | C35: 0.0011 | D35: kWh
A45: Retail Transmission Rate – Network Service Rate | C45: 0.0064 | D45: kWh
A46: Retail Transmission Rate – Line and Transformation Connection Service Rate | C46: 0.0033 | D46: kWh
A47: Wholesale Market Service Rate | C47: 0.0044 | D47: kWh
A48: Rural Rate Protection Charge | C48: 0.0013 | D48: kWh
A49: Standard Supply Service – Administrative Charge (if applicable) | C49: 0.25 | D49: $
A51: =A14 -> General Service < 50 kW | B51: Effective Until mm/dd/yy | C51: rate | D51: Connection Type
A53: Service Charge | C53: 31.25 | D53: $
A54: Distribution Volumetric Rate | C54: 0.0137 | D54: kWh
A55: Rate Rider for Smart Metering Entity Charge - effective until October 31, 2018 | C55: 0.79 | D55: kWh
A56: Low Voltage Service Rate | C56: 0.001 | D56: kWh
A66: Retail Transmission Rate – Network Service Rate | C66: 0.0058 | D66: kWh
A67: Retail Transmission Rate – Line and Transformation Connection Service Rate | C67: 0.0031 | D67: kWh
A68: Wholesale Market Service Rate | C68: 0.0044 | D68: kWh
A69: Rural Rate Protection Charge | C69: 0.0013 | D69: kWh
A70: Standard Supply Service – Administrative Charge (if applicable) | C70: 0.25 | D70: $
A72: =A15 -> General Service > 50 to 4999 kW | B72: Effective Until mm/dd/yy | C72: rate | D72: Connection Type
A74: Service Charge | C74: 189.27 | D74: $
A75: Distribution Volumetric Rate | C75: 2.5331 | D75: kW
A76: Low Voltage Service Rate | C76: 0.3564 | D76: kW
A87: Retail Transmission Rate – Network Service Rate | C87: 2.3668 | D87: kW
A88: Retail Transmission Rate – Line and Transformation Connection Service Rate | C88: 1.1566 | D88: kW
A89: Wholesale Market Service Rate | C89: 0.0044 | D89: kWh
A90: Rural Rate Protection Charge | C90: 0.0013 | D90: kWh
A91: Standard Supply Service – Administrative Charge (if applicable) | C91: 0.25 | D91: $
A93: =A16 -> Unmetered Scattered Load | B93: Effective Until mm/dd/yy | C93: rate | D93: Connection Type
A95: Service Charge | C95: 43.63 | D95: $
A96: Distribution Volumetric Rate | C96: 0.0099 | D96: kW
A97: Low Voltage Service Rate | C97: 0.001 | D97: kW
A108: Retail Transmission Rate – Network Service Rate | C108: 0.0058 | D108: kW
A109: Retail Transmission Rate – Line and Transformation Connection Service Rate | C109: 0.0031 | D109: kW
A110: Wholesale Market Service Rate | C110: 0.0044 | D110: kWh
A111: Rural Rate Protection Charge | C111: 0.0013 | D111: kWh
A112: Standard Supply Service – Administrative Charge (if applicable) | C112: 0.25 | D112: $
A114: =A17 -> Street Lighting | B114: Effective Until mm/dd/yy | C114: rate | D114: Connection Type
A116: Service Charge | C116: 2.95 | D116: $
A117: Distribution Volumetric Rate | C117: 7.2483 | D117: kW
A118: Low Voltage Service Rate | C118: 0.2754 | D118: kW
A129: Retail Transmission Rate – Network Service Rate | C129: 1.7849 | D129: kW
A130: Retail Transmission Rate – Line and Transformation Connection Service Rate | C130: 0.8941 | D130: kW
A131: Wholesale Market Service Rate | C131: 0.0044 | D131: kWh
A132: Rural Rate Protection Charge | C132: 0.0013 | D132: kWh
A133: Standard Supply Service – Administrative Charge (if applicable) | C133: 0.25 | D133: $
A135: =A18 -> other classes | B135: Effective Until mm/dd/yy | C135: rate | D135: Connection Type
A137: Service Charge | C137: 6.25 | D137: $
A138: Distribution Volumetric Rate | C138: 0.002 | D138: kWh
A139: Low Voltage Service Rate | C139: 0.001 | D139: kWh
A150: Retail Transmission Rate – Network Service Rate | C150: 0.0058 | D150: kWh
A151: Retail Transmission Rate – Line and Transformation Connection Service Rate | C151: 0.004 | D151: kWh
A152: Wholesale Market Service Rate | C152: 0 | D152: kWh
A153: Rural Rate Protection Charge | C153: 0 | D153: kWh
A154: Standard Supply Service – Administrative Charge (if applicable) | C154: 0.25 | D154: $
A156: Other Rate Classes | B156: Effective Until mm/dd/yy | C156: rate | D156: Connection Type
A158: Service Charge | C158: 0 | D158: $
A159: Distribution Volumetric Rate | C159: 0 | D159: kW
A171: Retail Transmission Rate – Network Service Rate | C171: 0 | D171: kW
A172: Retail Transmission Rate – Line and Transformation Connection Service Rate | C172: 0 | D172: kW
A173: Wholesale Market Service Rate | C173: 0 | D173: kWh
A174: Rural Rate Protection Charge | C174: 0 | D174: kWh
A175: Standard Supply Service – Administrative Charge (if applicable) | C175: 0.25 | D175: $
A177: Other Rate Classes | B177: Effective Until mm/dd/yy | C177: rate | D177: Connection Type
A179: Service Charge | C179: 0 | D179: $
A180: Distribution Volumetric Rate | C180: 0 | D180: kW
A192: Retail Transmission Rate – Network Service Rate | C192: 0 | D192: kW
A193: Retail Transmission Rate – Line and Transformation Connection Service Rate | C193: 0 | D193: kW
A194: Wholesale Market Service Rate | C194: 0 | D194: kWh
A195: Rural Rate Protection Charge | C195: 0 | D195: kWh
A196: Standard Supply Service – Administrative Charge (if applicable) | C196: 0.25 | D196: $
A198: Other Rate Classes | B198: Effective Until mm/dd/yy | C198: rate | D198: Connection Type
A200: Service Charge | C200: 0 | D200: $
A201: Distribution Volumetric Rate | C201: 0 | D201: kW
A213: Retail Transmission Rate – Network Service Rate | C213: 0 | D213: kW
A214: Retail Transmission Rate – Line and Transformation Connection Service Rate | C214: 0 | D214: kW
A215: Wholesale Market Service Rate | C215: 0 | D215: kWh
A216: Rural Rate Protection Charge | C216: 0 | D216: kWh
A217: Standard Supply Service – Administrative Charge (if applicable) | C217: 0.25 | D217: $

Sheet C. Revenues at Curr Rates
A1: Rate Design Model version 1.0 © CHEC
A10: Projected Revenues at Current Rates
A12: 2010 Rates at 2017 Load
B13: Test Year Projected Revenue from Existing Variable Charges
A14: Customer Class Name | B14: Variable Distribution Rate | C14: per | D14: Test Year Volume | E14: Gross Variable Revenue | F14: Transform. Allowance Rate | G14: Transform. Allowance kW's | H14: Transform. Allowance $'s | I14: Net Variable Revenue
A15: ='B. CurrentTariff'!A13 -> Residential | B15: 0.0145 | C15: ='B. CurrentTariff'!D13 -> kWh | D15: 28929065.91 | E15: =B15*D15 -> 419471.4557 | H15: =F15*G15 -> 0 | I15: =E15+H15 -> 419471.4557
A16: ='B. CurrentTariff'!A14 -> General Service < 50 kW | B16: 0.0137 | C16: ='B. CurrentTariff'!D14 -> kWh | D16: 11749297.38 | E16: =B16*D16 -> 160965.3741 | H16: =F16*G16 -> 0 | I16: =E16+H16 -> 160965.3741
A17: ='B. CurrentTariff'!A15 -> General Service > 50 to 4999 kW | B17: 2.5331 | C17: ='B. CurrentTariff'!D15 -> kW | D17: 118023.997 | E17: 298966.5869 | F17: -0.6 | G17: 69011 | H17: -41406.6 | I17: 257559.9869
A18: ='B. CurrentTariff'!A16 -> Unmetered Scattered Load | B18: 0.0099 | C18: ='B. CurrentTariff'!D16 -> kWh | D18: 149639.5227 | E18: 1481.431275 | H18: 0 | I18: 1481.431275
A19: ='B. CurrentTariff'!A17 -> Street Lighting | B19: 7.2483 | C19: ='B. CurrentTariff'!D17 -> kW | D19: 3007.339818 | E19: 21798.1012 | H19: 0 | I19: 21798.1012
A20: Total Variable Revenue | D20: =SUM(D15:D19) -> 40949034.15 | E20: 902682.9491 | F20: -0.6 | G20: 69011 | H20: -41406.6 | I20: 861276.3491
A23: 2010 Rates at 2017 Load
B24: Test Year Projected Revenue from Proposed Fixed Charges
A25: Customer Class Name | B25: Fixed Rate | C25: Customers (Connections) | D25: Fixed Charge Revenue | E25: Variable Revenue | F25: TOTAL | G25: % Fixed Revenue | H25: % Variable Revenue | I25: % Total Revenue
A26: =A15 -> Residential | B26: 13.97 | C26: 3834.987615 | D26: =B26*12*C26 -> 642897.3237 | E26: =I15 -> 419471.4557 | F26: =D26+E26 -> 1062368.779 | G26: =IF(D26, ABS(D26/F26),"") -> 0.6051545717 | H26: =IF(E26,ABS(E26/F26),"") -> 0.3948454283 | I26: =IF(F26,ABS(F26/$F$31),"") -> 0.5717161506
A27: =A16 -> General Service < 50 kW | B27: 31.25 | C27: 413.6410926 | D27: 155115.4097 | E27: =I16 -> 160965.3741 | F27: =D27+E27 -> 316080.7838 | G27: 0.490746093 | H27: 0.509253907 | I27: =IF(F27,ABS(F27/$F$31),"") -> 0.1700995854
A28: =A17 -> General Service > 50 to 4999 kW | B28: 189.27 | C28: 61 | D28: 138545.64 | E28: =I17 -> 257559.9869 | F28: 396105.6269 | G28: 0.3497694317 | H28: 0.6502305683 | I28: =IF(F28,ABS(F28/$F$31),"") -> 0.2131651349
A29: =A18 -> Unmetered Scattered Load | B29: 43.63 | C29: 34.22715554 | D29: 17919.96955 | E29: =I18 -> 1481.431275 | F29: 19401.40083 | G29: 0.9236430767 | H29: 0.0763569233 | I29: =IF(F29,ABS(F29/$F$31),"") -> 0.01044090754
A30: =A19 -> Street Lighting | B30: 2.95 | C30: 1199.307982 | D30: =B30*12*C30 -> 42455.50257 | E30: =I19 -> 21798.1012 | F30: =D30+E30 -> 64253.60377 | G30: =IF(D30, ABS(D30/F30),"") -> 0.6607489709 | H30: =IF(E30,ABS(E30/F30),"") -> 0.3392510291 | I30: =IF(F30,ABS(F30/$F$31),"") -> 0.03457822153
A31: Total Fixed Revenue | C31: =SUM(C26:C30) -> 5543.163845 | D31: =SUM(D26:D30) -> 996933.8456 | E31: =SUM(E26:E30) -> 861276.3491 | F31: =SUM(F26:F30) -> 1858210.195
A34: Projected Revenues at Proposed Rates
A36: 2017 Rates at 2017 Load
B37: Test Year Projected Revenue from Existing Variable Charges
A38: Customer Class Name | B38: Variable Distribution Rate | C38: per | D38: Test Year Volume | E38: Gross Variable Revenue | F38: Transform. Allowance Rate | G38: Transform. Allowance kW's | H38: Transform. Allowance $'s | I38: Net Variable Revenue
A39: ='B. CurrentTariff'!A13 -> Residential | B39: ='H. Rev_Reconciliation'!I15 -> 0.01397668922 | C39: ='B. CurrentTariff'!D13 -> kWh | D39: 28929065.91 | E39: =B39*D39 -> 404332.5637 | H39: =F15*G15 -> 0 | I39: =E39+H39 -> 404332.5637
A40: ='B. CurrentTariff'!A14 -> General Service < 50 kW | B40: ='H. Rev_Reconciliation'!I16 -> 0.01804024095 | C40: ='B. CurrentTariff'!D14 -> kWh | D40: 11749297.38 | E40: =B40*D40 -> 211960.1556 | H40: =F16*G16 -> 0 | I40: =E40+H40 -> 211960.1556
A41: ='B. CurrentTariff'!A15 -> General Service > 50 to 4999 kW | B41: ='H. Rev_Reconciliation'!J17 -> 3.192110116 | C41: ='B. CurrentTariff'!D15 -> kW | D41: 118023.997 | E41: 376745.5948 | F41: -0.6 | G41: 69011 | H41: =F17*G17 -> -41406.6 | I41: 335338.9948
A42: ='B. CurrentTariff'!A16 -> Unmetered Scattered Load | B42: ='H. Rev_Reconciliation'!I18 -> 0.008869071931 | C42: ='B. CurrentTariff'!D16 -> kWh | D42: 149639.5227 | E42: 1327.163691 | H42: =F18*G18 -> 0 | I42: 1327.163691
A43: ='B. CurrentTariff'!A17 -> Street Lighting | B43: ='H. Rev_Reconciliation'!J19 -> 6.924761714 | C43: ='B. CurrentTariff'!D17 -> kW | D43: 3007.339818 | E43: 20825.11163 | H43: =F19*G19 -> 0 | I43: 20825.11163
A44: Total Variable Revenue | D44: =SUM(D39:D43) -> 40949034.15 | E44: 1015190.589 | F44: -0.6 | G44: 69011 | H44: -41406.6 | I44: 973783.9895
A47: 2017 Rates at 2017 Load
B48: Test Year Projected Revenue from Proposed Fixed Charges
A49: Customer Class Name | B49: Fixed Rate | C49: Customers (Connections) | D49: Fixed Charge Revenue | E49: Variable Revenue | F49: TOTAL | G49: % Fixed Revenue | H49: % Variable Revenue | I49: % Total Revenue
A50: =A15 -> Residential | B50: ='H. Rev_Reconciliation'!H15 -> 17.91 | C50: 3834.987615 | D50: =B50*12*C50 -> 824215.5382 | E50: =I39 -> 404332.5637 | F50: =D50+E50 -> 1228548.102 | G50: =IF(D50, ABS(D50/F50),"") -> 0.6708858505 | H50: =IF(E50,ABS(E50/F50),"") -> 0.3291141495 | I50: =IF(F50,ABS(F50/$F$55),"") -> 0.5718118416
A51: =A16 -> General Service < 50 kW | B51: ='H. Rev_Reconciliation'!H16 -> 31.25 | C51: 413.6410926 | D51: =B51*12*C51 -> 155115.4097 | E51: =I40 -> 211960.1556 | F51: =D51+E51 -> 367075.5653 | G51: =IF(D51, ABS(D51/F51),"") -> 0.4225707848 | H51: =IF(E51,ABS(E51/F51),"") -> 0.5774292152 | I51: =IF(F51,ABS(F51/$F$55),"") -> 0.1708505794
A52: =A17 -> General Service > 50 to 4999 kW | B52: ='H. Rev_Reconciliation'!H17 -> 189.27 | C52: 61 | D52: 138545.64 | E52: 335338.9948 | F52: 473884.6348 | G52: 0.2923615366 | H52: 0.7076384634 | I52: =IF(F52,ABS(F52/$F$55),"") -> 0.2205634808
A53: =A18 -> Unmetered Scattered Load | B53: ='H. Rev_Reconciliation'!H18 -> 39.62 | C53: 34.22715554 | D53: 16272.95883 | E53: 1327.163691 | F53: 17600.12252 | G53: 0.924593497 | H53: 0.07540650295 | I53: =IF(F53,ABS(F53/$F$55),"") -> 0.008191749639
A54: =A19 -> Street Lighting | B54: ='H. Rev_Reconciliation'!H19 -> 2.82 | C54: 1199.307982 | D54: 40584.58212 | E54: 20825.11163 | F54: 61409.69375 | G54: 0.6608823402 | H54: 0.3391176598 | I54: =IF(F54,ABS(F54/$F$55),"") -> 0.02858234856
A55: Total Fixed Revenue | C55: =SUM(C50:C54) -> 5543.163845 | D55: =SUM(D50:D54) -> 1174734.129 | E55: =SUM(E50:E54) -> 973783.9895 | F55: =SUM(F50:F54) -> 2148518.118

Sheet RATEBASE & REV REQ ->
A1: Rate Design Model version 1.0 © CHEC
H7: Rate Base
H8: &
H9: Revenue Requirement

Sheet D. Rate Base
A1: Rate Design Model version 1.0 © CHEC
B10: Rate Base and Working Capital Allowance
B12: Particulars | C12: Test Year 2014 (CGAAP)
B14: Test Year Net Fixed Asset Opening Balance | C14: 15495708.98
B15: Test Year Net Fixed Asset Closing Balance | C15: -9556595.05
B16: Average Balance | D16: =SUM(C14:C15) -> 5939113.93
B18: Allowance for Working Capital | D18: =D31 -> 994881.5501
B20: Total Rate Base | D20: =D16+D18 -> 6933995.48
B22: Allowance for Working Capital - Derivation
B24: Particulars | C24: Test Year 2014 (CGAAP)
B25: Controllable Expenses | D25: 1549280
B26: Cost of Power/Power Supply Expense | D26: 11715807.34
B27: Working Capital Base | D27: =SUM(D25:D26) -> 13265087.34
B29: Working Capital Rate % | D29: 0.075
B31: Working Capital Allowance | D31: =D27*D29 -> 994881.5501

Sheet E. Revenue Requirement
A1: Rate Design Model version 1.0 © CHEC
B10: Distribution Revenue Requirement
B12: Particular | C12: Test Year
B14: OM&A Expenses | C14: 1549280
B15: Depreciation Expenses | C15: 247980.96
B16: Property Taxes | C16: 0
B17: Total Distribution Expenses | C17: =SUM(C14:C16) -> 1797260.96
B19: Regulated Return On Capital | C19: 435760.012
B21: Grossed up PILs | C21: 23047.14634
B22: Service Revenue Requirement | C22: =C17+C19+C21 -> 2256068.118
B24: Less: Revenue Offsets | C24: -107550
B26: Base Revenue Requirement | C26: =C22+C24 -> 2148518.118

Sheet COST ALLOC. & RATE DESIGN ->
A1: Rate Design Model version 1.0 © CHEC
H7: Cost Allocation
H8: &
H9: Rate Design

Sheet F. Cost Allocation & RevAllocn
A1: Rate Design Model version 1.0 © CHEC
A10: Cost Allocation Results and Revenue Allocation
A13: Cost Allocation Results | B13: REVENUE ALLOCATION (sheet O1) | I13: CUSTOMER UNIT COST PER MONTH (sheet O2)
A14: Customer Class Name | B14: Service Rev Req (row40) | D14: Misc. Revenue (mi) (row19) | F14: Base Rev Req (row80) | H14: Rev2Cost Expenses % | I14: Avoided Costs (Minimum Charge) | J14: Directly Related | K14: Minimum System with PLCC * adjustment | L14: Maximum Charge
A15: ='B. CurrentTariff'!A13 -> Residential | B15: 1340506.669 | C15: =IF(B15,ABS(B15/$B$24),"") -> 0.5941782328 | D15: 64906.68526 | E15: =IF(D15,ABS(D15/$D$24),"") -> 0.6035024199 | F15: =B15-D15 -> 1275599.983 | G15: =IF(F15,ABS(F15/$F$24),"") -> 0.5937114849 | H15: 0.9647466296 | I15: 8.945510294 | J15: 14.28361645 | K15: 20.87581628 | L15: =MAX(J15,K15,'G. RateDesign'!B15) -> 20.87581628
A16: ='B. CurrentTariff'!A14 -> General Service < 50 kW | B16: 316636.6339 | C16: =IF(B16,ABS(B16/$B$24),"") -> 0.1403488695 | D16: 14439.886 | E16: =IF(D16,ABS(D16/$D$24),"") -> 0.1342620734 | F16: 302196.7479 | G16: =IF(F16,ABS(F16/$F$24),"") -> 0.1406535609 | H16: 1.199804178 | I16: 14.63044027 | J16: 22.74935607 | K16: 31.22792299 | L16: =MAX(J16,K16,'G. RateDesign'!B16) -> 31.25
A17: ='B. CurrentTariff'!A15 -> General Service > 50 to 4999 kW | B17: 548868.732 | C17: 0.2432855135 | D17: 21993.5169 | E17: 0.2044957406 | F17: 526875.215 | G17: 0.2452272424 | H17: 0.8744945371 | I17: 50.38023313 | J17: 78.71552155 | K17: 106.7398424 | L17: =MAX(J17,K17,'G. RateDesign'!B17) -> 189.27
A18: ='B. CurrentTariff'!A16 -> Unmetered Scattered Load | B18: 8140.753576 | C18: 0.003608380836 | D18: 349.4236797 | E18: 0.003248941699 | F18: 7791.329896 | G18: 0.003626373552 | H18: 2.798500687 | I18: 7.47709783 | J18: 12.2697499 | K18: 15.84191897 | L18: =MAX(J18,K18,'G. RateDesign'!B18) -> 43.63
A19: ='B. CurrentTariff'!A17 -> Street Lighting | B19: 41915.50034 | C19: 0.01857900337 | D19: 5860.488161 | E19: 0.05449082437 | F19: 36055.01217 | G19: 0.01678133827 | H19: 1.912238405 | I19: 0.4809194414 | J19: 0.7900521569 | K19: 2.383884995 | L19: =MAX(J19,K19,'G. RateDesign'!B19) -> 2.95
A20: ='B. CurrentTariff'!A18 -> other classes | F20: 0 | L20: =MAX(J20,K20,'G. RateDesign'!B20) -> 0
A21: ='B. CurrentTariff'!A19 -> other classes | F21: 0 | L21: =MAX(J21,K21,'G. RateDesign'!B21) -> 0
A22: ='B. CurrentTariff'!A20 -> other classes | F22: 0 | L22: =MAX(J22,K22,'G. RateDesign'!B23) -> 0
A23: ='B. CurrentTariff'!A21 -> other classes | F23: 0 | L23: =MAX(J23,K23,'G. RateDesign'!B24) -> 0
A24: TOTAL | B24: =SUM(B15:B23) -> 2256068.288 | C24: 1 | D24: 107550 | E24: 1 | F24: 2148518.288 | G24: 1
A26: Revenue Reallocation - Service Revenue Requirement
B28: Proposed Base Revenue Requirement % | I28: Revenue Offsets | L28: Service Revenue Requirement $
A29: Customer Class Name | B29: Cost Allocation Results | D29: Existing Rates | F29: Proposed Allocation | I29: % | J29: $ | L29: Existing Rates | M29: Cost Allocation | N29: Rate Application
A30: =A15 -> Residential | B30: =G15 -> 0.5937114849 | C30: ='E. Revenue Requirement'!$C$26*B30 -> 1275599.882 | D30: ='C. Revenues at Curr Rates'!I26 -> 0.5717161506 | E30: =D30*'E. Revenue Requirement'!$C$26 -> 1228342.508 | F30: 0.5718118416 | G30: ='E. Revenue Requirement'!$C$26*F30 -> 1228548.102 | I30: =E15 -> 0.6035024199 | J30: =D15 -> 64906.68526 | L30: =E30+J30 -> 1293249.193 | M30: =C30+J30 -> 1340506.568 | N30: =G30+J30 -> 1293454.787
A31: =A16 -> General Service < 50 kW | B31: 0.1406535609 | C31: ='E. Revenue Requirement'!$C$26*B31 -> 302196.7239 | D31: ='C. Revenues at Curr Rates'!I27 -> 0.1700995854 | E31: =D31*'E. Revenue Requirement'!$C$26 -> 365462.0412 | F31: 0.1708505794 | G31: ='E. Revenue Requirement'!$C$26*F31 -> 367075.5653 | I31: 0.1342620734 | J31: 14439.886 | L31: 379901.9272 | M31: 316636.6099 | N31: 381515.4513
A32: General Service > 50 to 4999 kW | B32: 0.2452272424 | C32: ='E. Revenue Requirement'!$C$26*B32 -> 526875.1734 | D32: ='C. Revenues at Curr Rates'!I28 -> 0.2131651349 | E32: =D32*'E. Revenue Requirement'!$C$26 -> 457989.1546 | F32: =1-SUM(F30+F31+F33+F34+F35) -> 0.2205634808 | G32: ='E. Revenue Requirement'!$C$26*F32 -> 473884.6348 | I32: 0.2044957406 | J32: 21993.5169 | L32: 479982.6715 | M32: 548868.6903 | N32: 495878.1517
A33: Unmetered Scattered Load | B33: 0.003626373552 | C33: ='E. Revenue Requirement'!$C$26*B33 -> 7791.32928 | D33: ='C. Revenues at Curr Rates'!I29 -> 0.01044090754 | E33: =D33*'E. Revenue Requirement'!$C$26 -> 22432.47902 | F33: 0.008191749639 | G33: ='E. Revenue Requirement'!$C$26*F33 -> 17600.12252 | I33: 0.003248941699 | J33: 349.4236797 | L33: 22781.9027 | M33: 8140.75296 | N33: 17949.5462
A34: Street Lighting | B34: 0.01678133827 | C34: ='E. Revenue Requirement'!$C$26*B34 -> 36055.00932 | D34: ='C. Revenues at Curr Rates'!I30 -> 0.03457822153 | E34: =D34*'E. Revenue Requirement'!$C$26 -> 74291.93547 | F34: 0.02858234856 | G34: ='E. Revenue Requirement'!$C$26*F34 -> 61409.69375 | I34: 0.05449082437 | J34: 5860.488161 | L34: 80152.42363 | M34: 41915.49748 | N34: 67270.18191
A35: other classes
A36: other classes
A37: other classes
A38: other classes
A39: TOTAL | B39: =SUM(B30:B38) -> 1 | C39: 2148518.118 | D39: 1 | E39: 2148518.118 | F39: 1 | G39: 2148518.118 | I39: =SUM(I30:I38) -> 1 | J39: =SUM(J30:J38) -> 107550 | L39: =SUM(L30:L38) -> 2256068.118 | M39: =SUM(M30:M38) -> 2256068.118 | N39: =SUM(N30:N38) -> 2256068.118
A41: Revenue to Cost Ratio Allocation
F43: Target Range | I43: Revenue to Cost Adjustment | M43: Bill Impacts
A44: Customer Class Name | B44: Calculated R/C Ratio | C44: Proposed R/C Ratio | D44: Variance | F44: Floor | G44: Celiling | I44: 2017 | J44: 2018 | K44: 20.19
A45: =A15 -> Residential | B45: =H15 -> 0.9647466296 | C45: =N30/M30 -> 0.9649 | D45: =B45-C45 -> -0.0001533703946 | F45: 0.85 | G45: 1.15 | M45: ='Bill Impact - Residential'!O67 -> 0.02926618912
A46: =A16 -> General Service < 50 kW | B46: 1.199804178 | C46: 1.2049 | D46: -0.005095822204 | F46: 0.8 | G46: 1.2 | M46: ='Bill Impact - GS<50'!O67 -> 0.01944573591
A47: General Service > 50 to 4999 kW | B47: 0.8744945371 | C47: 0.9034549803 | D47: -0.02896044314 | F47: 0.8 | G47: 1.2 | M47: ='Bill Impact - GS>50'!O73 -> -0.0003690833072
A48: Unmetered Scattered Load | B48: 2.798500687 | C48: 2.2049 | D48: 0.5936006866 | F48: 0.8 | G48: 1.2 | I48: 2.2 | J48: 1.6 | K48: 1.2 | M48: ='Bill Impact - USL'!O73 -> 0.01119819883
A49: Street Lighting | B49: 1.912238405 | C49: 1.6049 | D49: 0.307338405 | F49: 0.8 | G49: 1.2 | I49: 1.6 | J49: 1.2 | M49: ='Bill Impact - StreetLight'!O73 -> -0.05209299701
A50: other classes | F50: 0.8 | G50: 1.2
A51: other classes
A52: other classes
A53: other classes

Sheet G. RateDesign
A1: Rate Design Model version 1.0 © CHEC
A10: Rate Design
A12: Existing Rates
B13: Current Rates and Fixed to Variable Split | G13: Proposed Rates at Current Fixed to Variable Split
A14: Customer Class Name | B14: Rate | C14: Fixed % | D14: Variable % | F14: Rate | G14: Fixed % | H14: Variable %
A15: ='B. CurrentTariff'!$A$13 -> Residential | B15: ='C. Revenues at Curr Rates'!B26 -> 13.97 | C15: ='C. Revenues at Curr Rates'!G26 -> 0.6051545717 | D15: ='C. Revenues at Curr Rates'!H26 -> 0.3948454283 | F15: 16.15523471 | G15: =C15 -> 0.6051545717 | H15: =1-G15 -> 0.3948454283
A16: ='B. CurrentTariff'!$A$14 -> General Service < 50 kW | B16: ='C. Revenues at Curr Rates'!B27 -> 31.25 | C16: ='C. Revenues at Curr Rates'!G27 -> 0.490746093 | D16: ='C. Revenues at Curr Rates'!H27 -> 0.509253907 | F16: 36.29170771 | G16: 0.490746093 | H16: 0.509253907
A17: ='B. CurrentTariff'!$A$15 -> General Service > 50 to 4999 kW | B17: ='C. Revenues at Curr Rates'!B28 -> 189.27 | C17: ='C. Revenues at Curr Rates'!G28 -> 0.3497694317 | D17: ='C. Revenues at Curr Rates'!H28 -> 0.6502305683 | F17: 227.2546083 | G17: 0.3497694317 | H17: 0.6502305683
A18: ='B. CurrentTariff'!$A$16 -> Unmetered Scattered Load | B18: ='C. Revenues at Curr Rates'!B29 -> 43.63 | C18: ='C. Revenues at Curr Rates'!G29 -> 0.9236430767 | D18: ='C. Revenues at Curr Rates'!H29 -> 0.0763569233 | F18: 39.57927329 | G18: 0.9236430767 | H18: 0.0763569233
A19: ='B. CurrentTariff'!$A$17 -> Street Lighting | B19: ='C. Revenues at Curr Rates'!B30 -> 2.95 | C19: ='C. Revenues at Curr Rates'!G30 -> 0.6607489709 | D19: ='C. Revenues at Curr Rates'!H30 -> 0.3392510291 | F19: 2.81943091 | G19: 0.6607489709 | H19: 0.3392510291
A20: ='B. CurrentTariff'!$A$18 -> other classes
A21: ='B. CurrentTariff'!$A$19 -> other classes
A22: ='B. CurrentTariff'!$A$20 -> other classes
A23: ='B. CurrentTariff'!$A$21 -> other classes
A24: TOTAL
A27: Cost Allocation Results - Minimum and Maximum MSC
C28: Cost Allocation - Minimum Fixed Rate (b) | G28: Cost Allocation - Maximun Fixed Rate (b) | J28: Minimum System with PLCC * adjustment
A29: Customer Class Name | B29: Rate | C29: Fixed % | D29: Variable % | F29: Rate | G29: Fixed % | H29: Variable %
A30: ='B. CurrentTariff'!$A$13 -> Residential | B30: ='F. Cost Allocation & RevAllocn'!I15 -> 8.945510294 | C30: 0.3350874529 | D30: =1-C30 -> 0.6649125471 | F30: ='F. Cost Allocation & RevAllocn'!L15 -> 20.87581628 | G30: 0.7819815609 | H30: =1-G30 -> 0.2180184391 | J30: 20.87581628
A31: ='B. CurrentTariff'!$A$14 -> General Service < 50 kW | B31: ='F. Cost Allocation & RevAllocn'!I16 -> 14.63044027 | C31: 0.1978366921 | D31: 0.8021633079 | F31: ='F. Cost Allocation & RevAllocn'!L16 -> 31.25 | G31: 0.4225707848 | H31: 0.5774292152 | J31: 31.22792299
A32: ='B. CurrentTariff'!$A$15 -> General Service > 50 to 4999 kW | B32: ='F. Cost Allocation & RevAllocn'!I17 -> 50.38023313 | C32: 0.07754063004 | D32: 0.92245937 | F32: ='F. Cost Allocation & RevAllocn'!L17 -> 189.27 | G32: 0.2913070094 | H32: 0.7086929906 | J32: 106.7398424
A33: ='B. CurrentTariff'!$A$16 -> Unmetered Scattered Load | B33: ='F. Cost Allocation & RevAllocn'!I18 -> 7.47709783 | C33: 0.1744895515 | D33: 0.8255104485 | F33: ='F. Cost Allocation & RevAllocn'!L18 -> 43.63 | G33: 1.018173 | H33: -0.01817300041 | J33: 15.84191897
A34: ='B. CurrentTariff'!$A$17 -> Street Lighting | B34: ='F. Cost Allocation & RevAllocn'!I19 -> 0.4809194414 | C34: 0.1127060872 | D34: 0.8872939128 | F34: ='F. Cost Allocation & RevAllocn'!L19 -> 2.95 | G34: 0.6913485474 | H34: 0.3086514526 | J34: 2.383884995
A35: ='B. CurrentTariff'!$A$18 -> other classes
A36: ='B. CurrentTariff'!$A$19 -> other classes
A37: ='B. CurrentTariff'!$A$20 -> other classes
A38: ='B. CurrentTariff'!$A$21 -> other classes
A39: TOTAL
A43: Rate Design
C44: Proposed Fixed Charge | F44: Resulting Variable | J44: Bill Impacts
A45: Customer Class Name | B45: Fixed Rate | C45: Fixed % | D45: Variable % | F45: Variable (h) | G45: Rate (i) | H45: per | J45: ='Bill Impact - Res 10 Pct'!O73 -> 0.08852550229
A46: ='B. CurrentTariff'!$A$13 -> Residential | B46: ='I. Res Rate Design'!D43 -> 17.91 | C46: =G61/F61 -> 0.6708858505 | D46: =1-C46 -> 0.3291141495 | F46: =H61+D61 -> 404332.5637 | G46: 0.01397668922 | H46: ='B. CurrentTariff'!D13 -> kWh | J46: ='Bill Impact - Residential'!O67 -> 0.02926618912
A47: ='B. CurrentTariff'!$A$14 -> General Service < 50 kW | B47: 31.25 | C47: 0.4225707848 | D47: 0.5774292152 | F47: 211960.1556 | G47: 0.01804024095 | H47: ='B. CurrentTariff'!D14 -> kWh | J47: ='Bill Impact - GS<50'!O67 -> 0.01944573591
A48: ='B. CurrentTariff'!$A$15 -> General Service > 50 to 4999 kW | B48: 189.27 | C48: 0.2923615366 | D48: 0.7076384634 | F48: 376745.5948 | G48: 3.192110116 | H48: ='B. CurrentTariff'!D15 -> kW | J48: ='Bill Impact - GS>50'!O73 -> -0.0003690833072
A49: ='B. CurrentTariff'!$A$16 -> Unmetered Scattered Load | B49: 39.62 | C49: 0.924593497 | D49: 0.07540650295 | F49: 1327.163691 | G49: 0.008869071931 | H49: ='B. CurrentTariff'!D16 -> kWh | J49: ='Bill Impact - GS>50'!O74 -> 0
A50: ='B. CurrentTariff'!$A$17 -> Street Lighting | B50: 2.82 | C50: 0.6608823402 | D50: 0.3391176598 | F50: 20825.11163 | G50: 6.924761714 | H50: ='B. CurrentTariff'!D17 -> kW | J50: ='Bill Impact - StreetLight'!O73 -> -0.05209299701
A51: ='B. CurrentTariff'!$A$18 -> other classes
A52: ='B. CurrentTariff'!$A$19 -> other classes
A53: ='B. CurrentTariff'!$A$20 -> other classes
A54: ='B. CurrentTariff'!$A$21 -> other classes
A55: TOTAL
C59: Transf. Allowance ($/kW): | D59: -0.6 | G59: Base Revenue Requirement $
A60: Customer Class Name | B60: kW | C60: Rate | D60: Total $ (g) | F60: Total (d) | G60: Fixed | H60: Variable
A61: ='B. CurrentTariff'!$A$13 -> Residential | B61: ='C. Revenues at Curr Rates'!G15 -> 0 | C61: =IF(B61=0,0,-D$59) -> 0 | D61: =B61*C61 -> 0 | F61: ='F. Cost Allocation & RevAllocn'!G30 -> 1228548.102 | G61: 824215.5382 | H61: =F61-G61 -> 404332.5637
A62: ='B. CurrentTariff'!$A$14 -> General Service < 50 kW | B62: ='C. Revenues at Curr Rates'!G16 -> 0 | C62: =IF(B62=0,0,-D$59) -> 0 | D62: 0 | F62: ='F. Cost Allocation & RevAllocn'!G31 -> 367075.5653 | G62: 155115.4097 | H62: 211960.1556
A63: ='B. CurrentTariff'!$A$15 -> General Service > 50 to 4999 kW | B63: ='C. Revenues at Curr Rates'!G17 -> 69011 | C63: 0.6 | D63: 41406.6 | F63: ='F. Cost Allocation & RevAllocn'!G32 -> 473884.6348 | G63: =B48*12*'C. Revenues at Curr Rates'!C28 -> 138545.64 | H63: 335338.9948
A64: ='B. CurrentTariff'!$A$16 -> Unmetered Scattered Load | B64: ='C. Revenues at Curr Rates'!G18 -> 0 | C64: =IF(B64=0,0,-D$59) -> 0 | D64: 0 | F64: ='F. Cost Allocation & RevAllocn'!G33 -> 17600.12252 | G64: 16272.95883 | H64: 1327.163691
A65: ='B. CurrentTariff'!$A$17 -> Street Lighting | B65: ='C. Revenues at Curr Rates'!G19 -> 0 | C65: =IF(B65=0,0,-D$59) -> 0 | D65: 0 | F65: ='F. Cost Allocation & RevAllocn'!G34 -> 61409.69375 | G65: 40584.58212 | H65: 20825.11163
A66: ='B. CurrentTariff'!$A$18 -> other classes
A67: ='B. CurrentTariff'!$A$19 -> other classes
A68: ='B. CurrentTariff'!$A$20 -> other classes
A69: ='B. CurrentTariff'!$A$21 -> other classes
A70: TOTAL | B70: =SUM(B61:B69) -> 69011 | D70: =SUM(D61:D69) -> 41406.6 | F70: =SUM(F61:F69) -> 2148518.118 | G70: =SUM(G61:G69) -> 1174734.129 | H70: =SUM(H61:H69) -> 973783.9895
D71: Integrity Check | F71: ='E. Revenue Requirement'!C26 -> 2148518.118
A72: Notes:
A73: Rows 15-23 show the current and proposed rates at the existing fixed to variable split
A74: Rows 30-38 show the minimum and maximum MSC results from the Cost Allocation Study.
A75: At B46-B54, LDCs should use the proposed MSC at existing fixed to variable split (F15-F23) as a starting point to the Rate Design adjustment.
A76: Values at F15-F23 should be copied to B46-B54
A77: Utilities should then use the Minimum and Maximum Cost Allocation results (rows 30-38) to determine wheter further adjustement are required at row B46-B54
A78: The variable charge is automatically calculated depending on the selected MSC
A79: Rows 60-69 act as an integrity check between the fixed and variable charge to the base revenue requirement.

Sheet H. Rev_Reconciliation
A1: Rate Design Model version 1.0 © CHEC
A9: Appendix 2-V
A10: Revenue Reconciliation
B12: Customers/ Connections | C12: Number of Customers/Connections | F12: Test Year Consumption | H12: Proposed Rates | K12: Revenues at Proposed Rates | L12: Revenues at Proposed Rates | M12: Total | O12: Class Specific Revenue Requirement | P12: Transformer Allowance Credit | Q12: Total | R12: Difference
C13: Start of Test Year | D13: End of Test Year | E13: Average | F13: kWh | G13: kW | H13: Monthly Service Charge | I13: Volumetric
I14: kWh | J14: kW
A15: ='B. CurrentTariff'!$A$13 -> Residential | B15: kWh | C15: ='C. Revenues at Curr Rates'!C26 -> 3834.987615 | D15: =C15 -> 3834.987615 | E15: =IF(SUM(C15:D15)=0,0,AVERAGE(C15:D15)) -> 3834.987615 | F15: 28929065.91 | G15: 0 | H15: ='G. RateDesign'!B46 -> 17.91 | I15: ='G. RateDesign'!G46 -> 0.01397668922 | K15: =H15*E15*12 -> 824215.5382 | L15: =I15*F15+J15*G15 -> 404332.5637 | M15: =K15+L15 -> 1228548.102 | O15: ='G. RateDesign'!F61 -> 1228548.102 | Q15: =SUM(O15:P15) -> 1228548.102 | R15: =Q15-M15 -> 0
A16: ='B. CurrentTariff'!$A$14 -> General Service < 50 kW | B16: kWh | C16: ='C. Revenues at Curr Rates'!C27 -> 413.6410926 | D16: 413.6410926 | E16: 413.6410926 | F16: 11749297.38 | G16: 0 | H16: ='G. RateDesign'!B47 -> 31.25 | I16: ='G. RateDesign'!G47 -> 0.01804024095 | K16: 155115.4097 | L16: 211960.1556 | M16: 367075.5653 | O16: ='G. RateDesign'!F62 -> 367075.5653 | Q16: 367075.5653 | R16: 0
A17: ='B. CurrentTariff'!$A$15 -> General Service > 50 to 4999 kW | B17: kW | C17: ='C. Revenues at Curr Rates'!C28 -> 61 | D17: 61 | E17: 61 | F17: 43433993.55 | G17: 118023.997 | H17: ='G. RateDesign'!B48 -> 189.27 | J17: ='G. RateDesign'!G48 -> 3.192110116 | K17: 138545.64 | L17: 376745.5948 | M17: 515291.2348 | O17: ='G. RateDesign'!F63 -> 473884.6348 | P17: ='G. RateDesign'!D63 -> 41406.6 | Q17: 515291.2348 | R17: 0
A18: ='B. CurrentTariff'!$A$16 -> Unmetered Scattered Load | B18: kWh | C18: ='C. Revenues at Curr Rates'!C29 -> 34.22715554 | D18: 34.22715554 | E18: 34.22715554 | F18: 149639.5227 | G18: 0 | H18: ='G. RateDesign'!B49 -> 39.62 | I18: ='G. RateDesign'!G49 -> 0.008869071931 | K18: 16272.95883 | L18: =I18*F18+J18*G18 -> 1327.163691 | M18: =K18+L18 -> 17600.12252 | O18: ='G. RateDesign'!F64 -> 17600.12252 | Q18: 17600.12252 | R18: 0
A19: ='B. CurrentTariff'!$A$17 -> Street Lighting | B19: kW | C19: ='C. Revenues at Curr Rates'!C30 -> 1199.307982 | D19: 1199.307982 | E19: 1199.307982 | F19: 1082279.281 | G19: 3007.339818 | H19: ='G. RateDesign'!B50 -> 2.82 | J19: ='G. RateDesign'!G50 -> 6.924761714 | K19: 40584.58212 | L19: 20825.11163 | M19: 61409.69375 | O19: ='G. RateDesign'!F65 -> 61409.69375 | Q19: 61409.69375 | R19: 0
A21: Total | K21: =SUM(K15:K19) -> 1174734.129 | L21: =SUM(L15:L19) -> 1015190.589 | M21: =SUM(M15:M19) -> 2189924.718 | O21: =SUM(O15:O19) -> 2148518.118 | P21: =SUM(P15:P19) -> 41406.6 | Q21: =O21+P21 -> 2189924.718 | R21: 0
A23: Note
A25: 1 The class specific revenue requirements in column N must be the amounts used in the final rate design process. The total of column N should equate to the proposed base revenue requirement.
A27: 2 Rates should be entered with the number of decimal places that will show on the Tariff of Rates and Charges.

Sheet I. Res Rate Design
E1: File Number: | F1: 0
E2: Exhibit:
E3: Tab:
E4: Schedule:
E5: Page:
E7: Date:
A10: New Rate Design Policy For Residential Customers
A12: Please complete the following tables.
A14: A) Data Inputs
A16: Test Year Billing Determinants for Residential Class
A17: Customers | B17: 3834.987615
A18: kWh | B18: 28929065.91
A20: Proposed Residential Class Specific Revenue Requirement1 | B20: ='F. Cost Allocation & RevAllocn'!G30 -> 1228548.102
A22: Residential Base Rates on Current Tariff
A23: Monthly Fixed Charge ($) | B23: ='C. Revenues at Curr Rates'!B26 -> 13.97
A24: Distribution Volumetric Rate ($/kWh) | B24: ='C. Revenues at Curr Rates'!B15 -> 0.0145
A26: B) Current Fixed/Variable Split
B28: Base Rates | C28: Billing Determinants | D28: Revenue | E28: % of Total Revenue
A29: Fixed | B29: =IF(B23="","",B23) -> 13.97 | C29: =IF(B17="","",B17) -> 3834.987615 | D29: =IF(ISERROR(B29*C29*12),"",B29*C29*12) -> 642897.3237 | E29: =IF(ISERROR(D29/D31),"",D29/D31) -> 0.6051545717
A30: Variable | B30: =IF(B24="","",B24) -> 0.0145 | C30: =IF(B18="","",B18) -> 28929065.91 | D30: =IF(ISERROR(B30*C30),"",B30*C30) -> 419471.4557 | E30: =IF(ISERROR(D30/D31),"",D30/D31) -> 0.3948454283
A31: TOTAL | B31: - | C31: - | D31: =IF(ISERROR(D29+D30),"",D29+D30) -> 1062368.779 | E31: -
A33: C) Calculating Test Year Base Rates
A35: Number of Required Rate Design Policy Transition Years2 | B35: 6
B37: Test Year Revenue @ Current F/V Split | C37: Test Year Base Rates @ Current F/V Split | D37: Reconciliation - Test Year Base Rates @ Current F/V Split
A38: Fixed | B38: =IF(ISERROR(B$20*E29),"",B$20*E29) -> 743461.5004 | C38: =IF(ISERROR(ROUND(B38/B17/12,2)),"",ROUND(B38/B17/12,2)) -> 16.16 | D38: =IF(ISERROR(C38*B17*12),"",C38*B17*12) -> 743680.7983
A39: Variable | B39: =IF(ISERROR(B$20*E30),"",B$20*E30) -> 485086.6014 | C39: =IF(ISERROR(ROUND(B39/B18,4)),"",ROUND(B39/B18,4)) -> 0.0168 | D39: =IF(ISERROR(C39*B18),"",C39*B18) -> 486008.3073
A40: TOTAL | B40: =IF(ISERROR(B38+B39),"",B38+B39) -> 1228548.102 | C40: - | D40: =IF(ISERROR(D38+D39),"",D38+D39) -> 1229689.106
B42: New F/V Split | C42: Revenue @ new F/V Split | D42: Final Adjusted Base Rates | E42: Revenue Reconciliation @ Adjusted Rates | G42: Integrety Check with 8.1 RateDesign
A43: Fixed | B43: =IF(ISERROR(((1-E29)/B35)+E29),"",((1-E29)/B35)+E29) -> 0.6709621431 | C43: =IF(ISERROR(B43*B$20),"",B43*B$20) -> 824309.2673 | D43: =IF(ISERROR(ROUND(C43/B17/12,2)),"",ROUND(C43/B17/12,2)) -> 17.91 | E43: =IF(ISERROR(D43*12*B17),"",D43*12*B17) -> 824215.5382 | G43: ='G. RateDesign'!G61 -> 824215.5382
A44: Variable | B44: =IF(ISERROR(1-B43),"",1-B43) -> 0.3290378569 | C44: =IF(ISERROR(B44*B$20),"",B44*B$20) -> 404238.8345 | D44: =IF(ISERROR(ROUND(C44/B18,4)),"",ROUND(C44/B18,4)) -> 0.014 | E44: =IF(ISERROR(D44*B18),"",D44*B18) -> 405006.9228 | G44: ='G. RateDesign'!H61 -> 404332.5637
A45: TOTAL | B45: - | C45: =IF(ISERROR(SUM(C43:C44)),"",SUM(C43:C44)) -> 1228548.102 | D45: - | E45: =IF(ISERROR(E43+E44),"",E43+E44) -> 1229222.461 | G45: =SUM(G43:G44) -> 1228548.102
A47: Checks3
A48: Change in Fixed Rate | B48: =IF(ISERROR(D43-C38),"",D43-C38) -> 1.75
A49: Difference Between Revenues @ Proposed Rates and Class Specific Revenue Requirement | B49: =IF(ISERROR((D43*12*B17)+(D44*B18)-B20),"",(D43*12*B17)+(D44*B18)-B20) -> 674.3590721
B50: =IF(ISERROR(B49/B20), "", B49/B20) -> 0.0005489073412
A52: Notes:
A54: 1 The final residential class specific revenue requirement, as shown in Appendix 2-P, should be used (i.e. the revenue requirement after any proposed adjustments to R/C ratios).
A57: 2 Default number of transition years for rate design policy change is 4. Where the change in the residential rate design will result in the fixed charge increasing by more than $4/year, a distributor may propose an additional transition year.
A60: 3 Change in fixed rate due to rate design policy should be less than $4. The difference between the proposed class revenue requirement and the revenue at calculated base rates should be minimal (i.e. should be reasonably considered as a rounding error)

Sheet J. Cost Allocation
E1: File Number: | F1: =EBNUMBER -> 
E2: Exhibit:
E3: Tab:
E4: Schedule:
E5: Page:
E7: Date:
A9: Appendix 2-P
A10: Cost Allocation
A12: Please complete the following four tables.
A14: A) Allocated Costs
A16: Classes | B16: Costs Allocated from Previous Study | C16: % | D16: Costs Allocated in Test Year Study (Column 7A) | E16: %
A17: Residential | B17: 1061717.535 | C17: =IF(B$23=0,"",B17/B$23) -> 0.5717969266 | D17: ='F. Cost Allocation & RevAllocn'!B15 -> 1340506.669 | E17: =IF(D$23=0,"",D17/D$23) -> 0.5941782328
A18: General Service < 50 kW | B18: 315830.8794 | C18: 0.1700933819 | D18: ='F. Cost Allocation & RevAllocn'!B16 -> 316636.6339 | E18: 0.1403488695
A19: General Service > 50 to 4999 kW | B19: 395641.4707 | C19: 0.2130760485 | D19: ='F. Cost Allocation & RevAllocn'!B17 -> 548868.732 | E19: 0.2432855135
A20: Unmetered Scattered Load | B20: 19399.10086 | C20: 0.01044754926 | D20: ='F. Cost Allocation & RevAllocn'!B18 -> 8140.753576 | E20: 0.003608380836
A21: Street Lighting | B21: 64219.76145 | C21: 0.03458609377 | D21: ='F. Cost Allocation & RevAllocn'!B19 -> 41915.50034 | E21: 0.01857900337
C22: 0 | E22: 0
A23: Total | B23: =SUM(B17:B22) -> 1856808.748 | C23: =SUM(C17:C22) -> 1 | D23: =SUM(D17:D22) -> 2256068.288 | E23: =SUM(E17:E22) -> 1
A27: B) Calculated Class Revenues
C28: (from CA - O1 row 18)
C29: Column 7B | D29: Column 7C | E29: Column 7D | F29: Column 7E
A30: Classes (same as previous table) | C30: Load Forecast (LF) X current approved rates | D30: L.F. X current approved rates X (1 + d) | E30: LF X proposed rates | F30: Miscellaneous Revenue
A32: =A17 -> Residential | C32: 1061717.535 | D32: ='F. Cost Allocation & RevAllocn'!E30 -> 1228342.508 | E32: ='F. Cost Allocation & RevAllocn'!G30 -> 1228548.102 | F32: ='F. Cost Allocation & RevAllocn'!J30 -> 64906.68526
A33: General Service < 50 kW | C33: 315830.8794 | D33: ='F. Cost Allocation & RevAllocn'!E31 -> 365462.0412 | E33: ='F. Cost Allocation & RevAllocn'!G31 -> 367075.5653 | F33: ='F. Cost Allocation & RevAllocn'!J31 -> 14439.886
A34: General Service > 50 to 4999 kW | C34: 395641.4707 | D34: ='F. Cost Allocation & RevAllocn'!E32 -> 457989.1546 | E34: ='F. Cost Allocation & RevAllocn'!G32 -> 473884.6348 | F34: ='F. Cost Allocation & RevAllocn'!J32 -> 21993.5169
A35: Unmetered Scattered Load | C35: 19399.10086 | D35: ='F. Cost Allocation & RevAllocn'!E33 -> 22432.47902 | E35: ='F. Cost Allocation & RevAllocn'!G33 -> 17600.12252 | F35: ='F. Cost Allocation & RevAllocn'!J33 -> 349.4236797
A36: Street Lighting | C36: 64219.76145 | D36: ='F. Cost Allocation & RevAllocn'!E34 -> 74291.93547 | E36: ='F. Cost Allocation & RevAllocn'!G34 -> 61409.69375 | F36: ='F. Cost Allocation & RevAllocn'!J34 -> 5860.488161
A38: Total | C38: =SUM(C32:C37) -> 1856808.748 | D38: =SUM(D32:D37) -> 2148518.118 | E38: =SUM(E32:E37) -> 2148518.118 | F38: =SUM(F32:F37) -> 107550
A41: C) Rebalancing Revenue-to-Cost (R/C) Ratios
A43: Class | C43: Previously Approved Ratios | D43: Status Quo Ratios | E43: Proposed Ratios | F43: Policy Range
C44: Most Recent Year: | D44: (7C + 7E) / (7A) | E44: (7D + 7E) / (7A)
C45: 2010
C46: % | D46: % | E46: % | F46: %
A47: =A32 -> Residential | C47: 107 | D47: =IF(D17=0,"",(D32+F32)/D17*100) -> 96.47465571 | E47: =IF(D17=0,"",(E32+F32)/D17*100) -> 96.48999273 | F47: 85 - 115
A48: General Service < 50 kW | C48: 88 | D48: 119.9804086 | E48: 120.4899909 | F48: 80 - 120
A49: General Service > 50 to 4999 kW | C49: 103 | D49: 87.44944711 | E49: 90.34549117 | F49: 80 - 120
A50: Unmetered Scattered Load | C50: 70 | D50: 279.8500469 | E50: 220.4899833 | F50: 80 - 120
A51: Street Lighting | C51: 70 | D51: 191.2238265 | E51: 160.4899891 | F51: 85 - 115
A55: D) Proposed Revenue-to-Cost Ratios
A57: Class | C57: Proposed Revenue-to-Cost Ratios | F57: Policy Range
C58: 2017 | D58: =C58+1 -> 2018 | E58: =D58+1 -> 2019
C59: % | D59: % | E59: % | F59: %
A60: =A47 -> Residential | C60: =E47 -> 96.48999273 | F60: =F47 -> 85 - 115
A61: =A48 -> General Service < 50 kW | C61: =E48 -> 120.4899909 | F61: =F48 -> 80 - 120
A62: =A49 -> General Service > 50 to 4999 kW | C62: =E49 -> 90.34549117 | F62: =F49 -> 80 - 120
A63: =A50 -> Unmetered Scattered Load | C63: =E50 -> 220.4899833 | D63: 1.6 | E63: 1.2 | F63: =F50 -> 80 - 120
A64: =A51 -> Street Lighting | C64: =E51 -> 160.4899891 | D64: 1.2 | F64: =F51 -> 85 - 115
A65: =A52 ->  | C65: =E52 -> 
A67: Note

Sheet RATE RIDERS ->
A1: Rate Design Model version 1.0 © CHEC
H8: Rate Riders

Sheet K. SMRR
A1: Rate Design Model version 1.0 © CHEC
A10: Stranded Meter Rate Rider
A12: Customer Class Name | B12: Net Book Value | C12: % share | D12: Annual $ | E12: Customer | F12: Rate | G12: per month
A13: Residential | B13: =$D$19*C13 -> 31323.78 | C13: 0.57 | D13: =$D$21*C13 -> 6264.756 | E13: 3834.987615 | F13: =D13/E13 -> 1.6335792 | G13: =F13/12 -> 0.1361316
A14: General Service < 50 kW | B14: =$D$19*C14 -> 6044.94 | C14: 0.11 | D14: =$D$21*C14 -> 1208.988 | E14: 413.6410926 | F14: =D14/E14 -> 2.922794717 | G14: =F14/12 -> 0.2435662264
A15: General Service > 50 to 4999 kW | B15: =$D$19*C15 -> 17585.28 | C15: 0.32 | D15: =$D$21*C15 -> 3517.056 | E15: 60.77997737 | F15: =D15/E15 -> 57.86537199 | G15: =F15/12 -> 4.822114333
C16: 1
B17: TOTAL | C17: =SUM(C13:C15) -> 1
A19: Total for Recovery | D19: 54954
A20: Recovery Period (years) | C20: 5
A21: Annual Recovery | D21: =D19/C20 -> 10990.8
A23: (1) The utility used the 2010 Cost Allocation model - Meter Capital, as a basis for the allocation

Sheet L. DVA
A1: Rate Design Model version 1.0 © CHEC
A9: Disposition of Deferral and Variance Account
B13: Please indicate the Rate Rider Recovery Period (in years) | D13: 4
B16: Rate Rider Calculation for Deferral / Variance Accounts Balances (excluding Global Adj.)
B17: 1550, 1551, 1584, 1586, 1595
B18: Rate Class (Enter Rate Classes in cells below) | C18: Units | D18: kW / kWh / # of Customers | E18: Allocated Balance (excluding 1589) | F18: Rate Rider for Deferral/Variance Accounts
B20: RESIDENTIAL | C20: kWh | D20: 28929065.91 | E20: 39387.4475 | F20: 0.0003403795305 | G20: =IF(C20="", "", IF(C20="# of Customers", "per customer per month", "$/"&C20)) -> $/kWh
B21: GENERAL SERVICE < 50 KW | C21: kWh | D21: 11749297.38 | E21: 15993.23736 | F21: 0.0003403019952 | G21: =IF(C21="", "", IF(C21="# of Customers", "per customer per month", "$/"&C21)) -> $/kWh
B22: GENERAL SERVICE > 50 TO 4999 KW | C22: kW | D22: 118023.997 | E22: 61130.02366 | F22: 0.129486429 | G22: $/kW
B23: UNMETERED SCATTERED LOAD | C23: kWh | D23: 149639.5227 | E23: 210.6061823 | F23: 0.0003518558776 | G23: $/kWh
B24: STREET LIGHTING | C24: kW | D24: 3007.339818 | E24: 1523.225304 | F24: 0.126625639 | G24: $/kW
D25: 0 | E25: 0 | F25: 0
D26: 0 | E26: 0 | F26: 0
B40: Total | E40: =SUM(E20:E39) -> 118244.54
B42: Rate Rider Calculation for Deferral / Variance Accounts Balances (excluding Global Adj.) - NON-WMP
B43: 1580 and 1588
B44: Rate Class (Enter Rate Classes in cells below) | C44: Units | D44: kW / kWh / # of Customers | E44: Allocated Balance (excluding 1589) | F44: Rate Rider for Deferral/Variance Accounts
B46: RESIDENTIAL | C46: kWh | D46: 28929065.91 | E46: -18644.18787 | F46: -0.0001611198572 | G46: =IF(C46="", "", IF(C46="# of Customers", "per customer per month", "$/"&C46)) -> $/kWh
B47: GENERAL SERVICE < 50 KW | C47: kWh | D47: 11749297.38 | E47: -7572.18046 | F47: -0.0001611198572 | G47: =IF(C47="", "", IF(C47="# of Customers", "per customer per month", "$/"&C47)) -> $/kWh
B48: GENERAL SERVICE > 50 TO 4999 KW | C48: kW | D48: 118023.997 | E48: -27992.31534 | F48: -0.05929369461 | G48: $/kW
B49: UNMETERED SCATTERED LOAD | C49: kWh | D49: 149639.5227 | E49: -96.43959411 | F49: -0.0001611198572 | G49: $/kWh
B50: STREET LIGHTING | C50: kW | D50: 3007.339818 | E50: -697.5067325 | F50: -0.05798369778 | G50: $/kW
D51: 0 | E51: 0 | F51: 0
D52: 0 | E52: 0 | F52: 0
D53: 0 | E53: 0 | F53: 0
D54: 0 | E54: 0 | F54: 0
D55: 0 | E55: 0 | F55: 0
D56: 0 | E56: 0 | F56: 0
D57: 0 | E57: 0 | F57: 0
D58: 0 | E58: 0 | F58: 0
D59: 0 | E59: 0 | F59: 0
D60: 0 | E60: 0 | F60: 0
D61: 0 | E61: 0 | F61: 0
D62: 0 | E62: 0 | F62: 0
D63: 0 | E63: 0 | F63: 0
D64: 0 | E64: 0 | F64: 0
D65: 0 | E65: 0 | F65: 0
B66: Total | E66: =SUM(E46:E65) -> -55002.63
B68: Rate Rider Calculation for RSVA - Power - Global Adjustment
B69: Balance of Account 1589 Allocated to Non-WMPs
B70: Rate Class (Enter Rate Classes in cells below) | C70: Units | D70: Non-RPP kW / kWh / # of Customers | E70: Balance of RSVA - Power - Global Adjustment | F70: Rate Rider for RSVA - Power - Global Adjustment
B72: RESIDENTIAL | C72: kWh | D72: 969123.7081 | E72: 3646.438627 | F72: 0.0009406535504 | G72: =IF(C72="", "", IF(C72="# of Customers", "per customer per month", "$/"&C72)) -> $/kWh
B73: GENERAL SERVICE < 50 KW | C73: kWh | D73: 2030278.587 | E73: 7639.155043 | F73: 0.0009406535504 | G73: =IF(C73="", "", IF(C73="# of Customers", "per customer per month", "$/"&C73)) -> $/kWh
B74: GENERAL SERVICE > 50 TO 4999 KW | C74: kW | D74: 117840.7613 | E74: 163171.6383 | F74: 0.3461697728 | G74: $/kW
B75: UNMETERED SCATTERED LOAD | C75: kWh | D75: 149407 | E75: 562.1609 | F75: 0.0009406535504 | G75: $/kWh
B76: STREET LIGHTING | C76: kW | D76: 3002.670805 | E76: 4065.877143 | F76: 0.3385217201 | G76: $/kW
D77: 0 | E77: 0 | F77: 0
D78: 0 | E78: 0 | F78: 0
D79: 0 | E79: 0 | F79: 0
D80: 0 | E80: 0 | F80: 0
D81: 0 | E81: 0 | F81: 0
D82: 0 | E82: 0 | F82: 0
D83: 0 | E83: 0 | F83: 0
D84: 0 | E84: 0 | F84: 0
D85: 0 | E85: 0 | F85: 0
D86: 0 | E86: 0 | F86: 0
D87: 0 | E87: 0 | F87: 0
D88: 0 | E88: 0 | F88: 0
D89: 0 | E89: 0 | F89: 0
D90: 0 | E90: 0 | F90: 0
D91: 0 | E91: 0 | F91: 0
B92: Total | E92: =SUM(E72:E91) -> 179085.27
B94: Rate Rider Calculation for RSVA - Power - Global Adjustment - Class A Non-WMP Customers
B95: Balance of Account 1589 allocated to Class A Non-WMP Customers
B96: Rate Class (Enter Rate Classes in cells below) | C96: Units | D96: Non-RPP kW / kWh / # of Customers | E96: Balance of RSVA - Power - Global Adjustment | F96: Rate Rider for RSVA - Power - Global Adjustment
B98: RESIDENTIAL | C98: kWh | D98: 0 | E98: 0 | F98: 0 | G98: =IF(C98="", "", IF(C98="# of Customers", "per customer per month", "$/"&C98)) -> $/kWh
B99: GENERAL SERVICE < 50 KW | C99: kWh | D99: 0 | E99: 0 | F99: 0 | G99: =IF(C99="", "", IF(C99="# of Customers", "per customer per month", "$/"&C99)) -> $/kWh
B100: GENERAL SERVICE > 50 TO 4999 KW | C100: kW | D100: 0 | E100: 0 | F100: 0 | G100: $/kW
B101: UNMETERED SCATTERED LOAD | C101: kWh | D101: 0 | E101: 0 | F101: 0 | G101: $/kWh
B102: STREET LIGHTING | C102: kW | D102: 0 | E102: 0 | F102: 0 | G102: $/kW
D103: 0 | E103: 0 | F103: 0
D104: 0 | E104: 0 | F104: 0
D105: 0 | E105: 0 | F105: 0
D106: 0 | E106: 0 | F106: 0
D107: 0 | E107: 0 | F107: 0
D108: 0 | E108: 0 | F108: 0
D109: 0 | E109: 0 | F109: 0
D110: 0 | E110: 0 | F110: 0
D111: 0 | E111: 0 | F111: 0
D112: 0 | E112: 0 | F112: 0
D113: 0 | E113: 0 | F113: 0
D114: 0 | E114: 0 | F114: 0
D115: 0 | E115: 0 | F115: 0
D116: 0 | E116: 0 | F116: 0
D117: 0 | E117: 0 | F117: 0
B118: Total | E118: =SUM(E98:E117) -> 0
B121: Rate Rider Calculation for Group 2 Accounts
B123: Rate Class (Enter Rate Classes in cells below) | C123: Units | D123: Non-RPP kW / kWh / # of Customers | E123: Balance of Group 2 Accounts | F123: Rate Rider for RSVA - Power - Global Adjustment
B125: RESIDENTIAL | C125: # of Customers | D125: 3834.987615 | E125: 18725.60145 | F125: 0.1017256732 | G125: =IF(C125="", "", IF(C125="# of Customers", "per customer per month", "$/"&C125)) -> per customer per month
B126: GENERAL SERVICE < 50 KW | C126: kWh | D126: 11749297.38 | E126: 7605.245902 | F126: 0.0001618234193 | G126: =IF(C126="", "", IF(C126="# of Customers", "per customer per month", "$/"&C126)) -> $/kWh
B127: GENERAL SERVICE > 50 TO 4999 KW | C127: kW | D127: 118023.997 | E127: 28114.54939 | F127: 0.0595526124 | G127: $/kW
B128: UNMETERED SCATTERED LOAD | C128: kWh | D128: 149639.5227 | E128: 96.86071691 | F128: 0.0001618234193 | G128: $/kWh
B129: STREET LIGHTING | C129: kW | D129: 3007.339818 | E129: 700.5525353 | F129: 0.05823689521 | G129: $/kW
D130: 0 | E130: 0 | F130: 0
D131: 0 | E131: 0 | F131: 0
D132: 0 | E132: 0 | F132: 0
D133: 0 | E133: 0 | F133: 0
D134: 0 | E134: 0 | F134: 0
D135: 0 | E135: 0 | F135: 0
D136: 0 | E136: 0 | F136: 0
D137: 0 | E137: 0 | F137: 0
D138: 0 | E138: 0 | F138: 0
D139: 0 | E139: 0 | F139: 0
D140: 0 | E140: 0 | F140: 0
D141: 0 | E141: 0 | F141: 0
D142: 0 | E142: 0 | F142: 0
D143: 0 | E143: 0 | F143: 0
D144: 0 | E144: 0 | F144: 0
B145: Total | E145: =SUM(E125:E144) -> 55242.81
B147: Rate Rider Calculation for Accounts 1575 and 1576
B149: Please indicate the Rate Rider Recovery Period (in years) | D149: 4
B151: Rate Class (Enter Rate Classes in cells below) | C151: Units | D151: kW / kWh / # of Customers | E151: Balance of Accounts 1575 and 1576 | F151: Rate Rider for Accounts 1575 and 1576
B153: RESIDENTIAL | C153: kWh | D153: 28929065.91 | E153: -295027.4156 | F153: -0.002549576061 | G153: =IF(C153="", "", IF(C153="# of Customers", "per customer per month", "$/"&C153)) -> $/kWh
B154: GENERAL SERVICE < 50 KW | C154: kWh | D154: 11749297.38 | E154: -119822.9093 | F154: -0.002549576061 | G154: $/kWh
B155: GENERAL SERVICE > 50 TO 4999 KW | C155: kW | D155: 118023.997 | E155: -442953.0807 | F155: -0.9382691059 | G155: $/kW
B156: UNMETERED SCATTERED LOAD | C156: kWh | D156: 149639.5227 | E156: -1526.06938 | F156: -0.002549576061 | G156: $/kWh
B157: STREET LIGHTING | C157: kW | D157: 3007.339818 | E157: -11037.41338 | F157: -0.9175395907 | G157: $/kW
D158: 0 | E158: 0 | F158: 0
D159: 0 | E159: 0 | F159: 0
D160: 0 | E160: 0 | F160: 0
D161: 0 | E161: 0 | F161: 0
D162: 0 | E162: 0 | F162: 0
D163: 0 | E163: 0 | F163: 0
D164: 0 | E164: 0 | F164: 0
D165: 0 | E165: 0 | F165: 0
D166: 0 | E166: 0 | F166: 0
D167: 0 | E167: 0 | F167: 0
D168: 0 | E168: 0 | F168: 0
D169: 0 | E169: 0 | F169: 0
D170: 0 | E170: 0 | F170: 0
D171: 0 | E171: 0 | F171: 0
D172: 0 | E172: 0 | F172: 0
B173: Total | E173: =SUM(E153:E172) -> -870366.8884
B175: Rate Rider Calculation for Accounts 1568
B177: Please indicate the Rate Rider Recovery Period (in years) | D177: 4
B179: Rate Class (Enter Rate Classes in cells below) | C179: Units | D179: kW / kWh / # of Customers | E179: Balance of Account 1568 | F179: Rate Rider for Account 1568
B181: RESIDENTIAL | C181: kWh | D181: 28929065.91 | E181: 21493.64086 | F181: 0.0001857443386 | G181: =IF(C181="", "", IF(C181="# of Customers", "per customer per month", "$/"&C181)) -> $/kWh
B182: GENERAL SERVICE < 50 KW | C182: kWh | D182: 11749297.38 | E182: 8729.461882 | F182: 0.0001857443386 | G182: =IF(C182="", "", IF(C182="# of Customers", "per customer per month", "$/"&C182)) -> $/kWh
B183: GENERAL SERVICE > 50 TO 4999 KW | C183: kW | D183: 118023.997 | E183: 32270.47362 | F183: 0.06835574636 | G183: $/kW
B184: UNMETERED SCATTERED LOAD | C184: kWh | D184: 149639.5227 | E184: 111.1787767 | F184: 0.0001857443386 | G184: $/kWh
B185: STREET LIGHTING | C185: kW | D185: 3007.339818 | E185: 804.1089968 | F185: 0.06684553838 | G185: $/kW
D186: 0 | E186: 0 | F186: 0
D187: 0 | E187: 0 | F187: 0
D188: 0 | E188: 0 | F188: 0
D189: 0 | E189: 0 | F189: 0
D190: 0 | E190: 0 | F190: 0
D191: 0 | E191: 0 | F191: 0
D192: 0 | E192: 0 | F192: 0
D193: 0 | E193: 0 | F193: 0
D194: 0 | E194: 0 | F194: 0
D195: 0 | E195: 0 | F195: 0
D196: 0 | E196: 0 | F196: 0
D197: 0 | E197: 0 | F197: 0
D198: 0 | E198: 0 | F198: 0
D199: 0 | E199: 0 | F199: 0
D200: 0 | E200: 0 | F200: 0
B201: Total | E201: =SUM(E181:E200) -> 63408.86413

Sheet K. Summary of Tariffs (hidden)
A1: Rate Design Model version 1.0 © CHEC
A9: Summary of Tariff Sheet
A12: Current Rates | E12: Proposed Rates
A13: =IF(ISBLANK('B. CurrentTariff'!A30),"",'B. CurrentTariff'!A30) -> Residential | B13: rate | C13: Connection Type | E13: =A13 -> Residential | F13: =B13 -> rate | G13: =C13 -> Connection Type
A15: =IF(ISBLANK('B. CurrentTariff'!A32),"",'B. CurrentTariff'!A32) -> Service Charge | B15: =IF(ISBLANK('B. CurrentTariff'!C32),"",'B. CurrentTariff'!C32) -> 13.97 | C15: =IF(ISBLANK('B. CurrentTariff'!D32),"",'B. CurrentTariff'!D32) -> $ | E15: =A15 -> Service Charge | F15: ='G. RateDesign'!B46 -> 17.91 | G15: =C15 -> $
A16: =IF(ISBLANK('B. CurrentTariff'!A33),"",'B. CurrentTariff'!A33) -> Distribution Volumetric Rate | B16: =IF(ISBLANK('B. CurrentTariff'!C33),"",'B. CurrentTariff'!C33) -> 0.0145 | C16: =IF(ISBLANK('B. CurrentTariff'!D33),"",'B. CurrentTariff'!D33) -> kWh | E16: =A16 -> Distribution Volumetric Rate | F16: ='G. RateDesign'!G46 -> 0.01397668922 | G16: =C16 -> kWh
A17: =IF(ISBLANK('B. CurrentTariff'!A34),"",'B. CurrentTariff'!A34) -> Rate Rider for Smart Metering Entity Charge - effective until October 31, 2018 | B17: =IF(ISBLANK('B. CurrentTariff'!C34),"",'B. CurrentTariff'!C34) -> 0.79 | C17: =IF(ISBLANK('B. CurrentTariff'!D34),"",'B. CurrentTariff'!D34) -> kWh | F17: 0.79 | G17: kWh
A18: =IF(ISBLANK('B. CurrentTariff'!A35),"",'B. CurrentTariff'!A35) -> Low Voltage Service Rate | B18: =IF(ISBLANK('B. CurrentTariff'!C35),"",'B. CurrentTariff'!C35) -> 0.0011 | C18: =IF(ISBLANK('B. CurrentTariff'!D35),"",'B. CurrentTariff'!D35) -> kWh
A19: =IF(ISBLANK('B. CurrentTariff'!A36),"",'B. CurrentTariff'!A36) ->  | B19: =IF(ISBLANK('B. CurrentTariff'!C36),"",'B. CurrentTariff'!C36) ->  | C19: =IF(ISBLANK('B. CurrentTariff'!D36),"",'B. CurrentTariff'!D36) -> 
A20: =IF(ISBLANK('B. CurrentTariff'!A37),"",'B. CurrentTariff'!A37) ->  | B20: =IF(ISBLANK('B. CurrentTariff'!C37),"",'B. CurrentTariff'!C37) ->  | C20: =IF(ISBLANK('B. CurrentTariff'!D37),"",'B. CurrentTariff'!D37) -> 
A21: =IF(ISBLANK('B. CurrentTariff'!A38),"",'B. CurrentTariff'!A38) ->  | B21: =IF(ISBLANK('B. CurrentTariff'!C38),"",'B. CurrentTariff'!C38) ->  | C21: =IF(ISBLANK('B. CurrentTariff'!D38),"",'B. CurrentTariff'!D38) -> 
A22: =IF(ISBLANK('B. CurrentTariff'!A39),"",'B. CurrentTariff'!A39) ->  | B22: =IF(ISBLANK('B. CurrentTariff'!C39),"",'B. CurrentTariff'!C39) ->  | C22: =IF(ISBLANK('B. CurrentTariff'!D39),"",'B. CurrentTariff'!D39) -> 
A23: =IF(ISBLANK('B. CurrentTariff'!A40),"",'B. CurrentTariff'!A40) ->  | B23: =IF(ISBLANK('B. CurrentTariff'!C40),"",'B. CurrentTariff'!C40) ->  | C23: =IF(ISBLANK('B. CurrentTariff'!D40),"",'B. CurrentTariff'!D40) -> 
A24: =IF(ISBLANK('B. CurrentTariff'!A41),"",'B. CurrentTariff'!A41) -> 
A25: =IF(ISBLANK('B. CurrentTariff'!A42),"",'B. CurrentTariff'!A42) -> 
A26: =IF(ISBLANK('B. CurrentTariff'!A43),"",'B. CurrentTariff'!A43) -> 
A27: =IF(ISBLANK('B. CurrentTariff'!A44),"",'B. CurrentTariff'!A44) -> 
A28: =IF(ISBLANK('B. CurrentTariff'!A45),"",'B. CurrentTariff'!A45) -> Retail Transmission Rate – Network Service Rate | B28: ='B. CurrentTariff'!C45 -> 0.0064 | C28: ='B. CurrentTariff'!D45 -> kWh | E28: =A28 -> Retail Transmission Rate – Network Service Rate | F28: 0.0057 | G28: =C28 -> kWh
A29: =IF(ISBLANK('B. CurrentTariff'!A46),"",'B. CurrentTariff'!A46) -> Retail Transmission Rate – Line and Transformation Connection Service Rate | B29: ='B. CurrentTariff'!C46 -> 0.0033 | C29: ='B. CurrentTariff'!D46 -> kWh | E29: =A29 -> Retail Transmission Rate – Line and Transformation Connection Service Rate | F29: 0.0046 | G29: =C29 -> kWh
A30: =IF(ISBLANK('B. CurrentTariff'!A47),"",'B. CurrentTariff'!A47) -> Wholesale Market Service Rate | B30: ='B. CurrentTariff'!C47 -> 0.0044 | C30: ='B. CurrentTariff'!D47 -> kWh | E30: =A30 -> Wholesale Market Service Rate | F30: 0.0044 | G30: =C30 -> kWh
A31: =IF(ISBLANK('B. CurrentTariff'!A48),"",'B. CurrentTariff'!A48) -> Rural Rate Protection Charge | B31: ='B. CurrentTariff'!C48 -> 0.0013 | C31: ='B. CurrentTariff'!D48 -> kWh | E31: =A31 -> Rural Rate Protection Charge | F31: 0.0013 | G31: =C31 -> kWh
A32: =IF(ISBLANK('B. CurrentTariff'!A49),"",'B. CurrentTariff'!A49) -> Standard Supply Service – Administrative Charge (if applicable) | B32: ='B. CurrentTariff'!C49 -> 0.25 | C32: ='B. CurrentTariff'!D49 -> $ | E32: =A32 -> Standard Supply Service – Administrative Charge (if applicable) | F32: 0.25 | G32: =C32 -> $
A34: =IF(ISBLANK('B. CurrentTariff'!A51),"",'B. CurrentTariff'!A51) -> General Service < 50 kW | B34: rate | C34: Connection Type | E34: =A34 -> General Service < 50 kW | F34: =B34 -> rate | G34: =C34 -> Connection Type
A36: =IF(ISBLANK('B. CurrentTariff'!A53),"",'B. CurrentTariff'!A53) -> Service Charge | B36: =IF(ISBLANK('B. CurrentTariff'!C53),"",'B. CurrentTariff'!C53) -> 31.25 | C36: =IF(ISBLANK('B. CurrentTariff'!D53),"",'B. CurrentTariff'!D53) -> $ | E36: =A36 -> Service Charge | F36: ='G. RateDesign'!B47 -> 31.25 | G36: =C36 -> $
A37: =IF(ISBLANK('B. CurrentTariff'!A54),"",'B. CurrentTariff'!A54) -> Distribution Volumetric Rate | B37: =IF(ISBLANK('B. CurrentTariff'!C54),"",'B. CurrentTariff'!C54) -> 0.0137 | C37: =IF(ISBLANK('B. CurrentTariff'!D54),"",'B. CurrentTariff'!D54) -> kWh | E37: =A37 -> Distribution Volumetric Rate | F37: ='G. RateDesign'!G47 -> 0.01804024095 | G37: =C37 -> kWh
A38: =IF(ISBLANK('B. CurrentTariff'!A55),"",'B. CurrentTariff'!A55) -> Rate Rider for Smart Metering Entity Charge - effective until October 31, 2018 | B38: =IF(ISBLANK('B. CurrentTariff'!C55),"",'B. CurrentTariff'!C55) -> 0.79 | C38: =IF(ISBLANK('B. CurrentTariff'!D55),"",'B. CurrentTariff'!D55) -> kWh
A39: =IF(ISBLANK('B. CurrentTariff'!A56),"",'B. CurrentTariff'!A56) -> Low Voltage Service Rate | B39: =IF(ISBLANK('B. CurrentTariff'!C56),"",'B. CurrentTariff'!C56) -> 0.001 | C39: =IF(ISBLANK('B. CurrentTariff'!D56),"",'B. CurrentTariff'!D56) -> kWh
A40: =IF(ISBLANK('B. CurrentTariff'!A57),"",'B. CurrentTariff'!A57) ->  | B40: =IF(ISBLANK('B. CurrentTariff'!C57),"",'B. CurrentTariff'!C57) ->  | C40: =IF(ISBLANK('B. CurrentTariff'!D57),"",'B. CurrentTariff'!D57) -> 
A41: =IF(ISBLANK('B. CurrentTariff'!A58),"",'B. CurrentTariff'!A58) ->  | B41: =IF(ISBLANK('B. CurrentTariff'!C58),"",'B. CurrentTariff'!C58) ->  | C41: =IF(ISBLANK('B. CurrentTariff'!D58),"",'B. CurrentTariff'!D58) -> 
A42: =IF(ISBLANK('B. CurrentTariff'!A59),"",'B. CurrentTariff'!A59) ->  | B42: =IF(ISBLANK('B. CurrentTariff'!C59),"",'B. CurrentTariff'!C59) ->  | C42: =IF(ISBLANK('B. CurrentTariff'!D59),"",'B. CurrentTariff'!D59) -> 
A43: =IF(ISBLANK('B. CurrentTariff'!A60),"",'B. CurrentTariff'!A60) ->  | B43: =IF(ISBLANK('B. CurrentTariff'!C60),"",'B. CurrentTariff'!C60) ->  | C43: =IF(ISBLANK('B. CurrentTariff'!D60),"",'B. CurrentTariff'!D60) -> 
A44: =IF(ISBLANK('B. CurrentTariff'!A61),"",'B. CurrentTariff'!A61) ->  | B44: =IF(ISBLANK('B. CurrentTariff'!C61),"",'B. CurrentTariff'!C61) ->  | C44: =IF(ISBLANK('B. CurrentTariff'!D61),"",'B. CurrentTariff'!D61) -> 
A45: =IF(ISBLANK('B. CurrentTariff'!A62),"",'B. CurrentTariff'!A62) ->  | B45: =IF(ISBLANK('B. CurrentTariff'!C62),"",'B. CurrentTariff'!C62) ->  | C45: =IF(ISBLANK('B. CurrentTariff'!D62),"",'B. CurrentTariff'!D62) -> 
A46: =IF(ISBLANK('B. CurrentTariff'!A63),"",'B. CurrentTariff'!A63) ->  | B46: =IF(ISBLANK('B. CurrentTariff'!C63),"",'B. CurrentTariff'!C63) ->  | C46: =IF(ISBLANK('B. CurrentTariff'!D63),"",'B. CurrentTariff'!D63) -> 
A47: =IF(ISBLANK('B. CurrentTariff'!A64),"",'B. CurrentTariff'!A64) ->  | B47: =IF(ISBLANK('B. CurrentTariff'!C64),"",'B. CurrentTariff'!C64) ->  | C47: =IF(ISBLANK('B. CurrentTariff'!D64),"",'B. CurrentTariff'!D64) -> 
A48: =IF(ISBLANK('B. CurrentTariff'!A65),"",'B. CurrentTariff'!A65) ->  | B48: =IF(ISBLANK('B. CurrentTariff'!C65),"",'B. CurrentTariff'!C65) ->  | C48: =IF(ISBLANK('B. CurrentTariff'!D65),"",'B. CurrentTariff'!D65) -> 
A49: =IF(ISBLANK('B. CurrentTariff'!A66),"",'B. CurrentTariff'!A66) -> Retail Transmission Rate – Network Service Rate | B49: =IF(ISBLANK('B. CurrentTariff'!C66),"",'B. CurrentTariff'!C66) -> 0.0058 | C49: =IF(ISBLANK('B. CurrentTariff'!D66),"",'B. CurrentTariff'!D66) -> kWh | E49: =A49 -> Retail Transmission Rate – Network Service Rate | F49: 0.0053 | G49: =C49 -> kWh
A50: =IF(ISBLANK('B. CurrentTariff'!A67),"",'B. CurrentTariff'!A67) -> Retail Transmission Rate – Line and Transformation Connection Service Rate | B50: =IF(ISBLANK('B. CurrentTariff'!C67),"",'B. CurrentTariff'!C67) -> 0.0031 | C50: =IF(ISBLANK('B. CurrentTariff'!D67),"",'B. CurrentTariff'!D67) -> kWh | E50: =A50 -> Retail Transmission Rate – Line and Transformation Connection Service Rate | F50: 0.0041 | G50: =C50 -> kWh
A51: =IF(ISBLANK('B. CurrentTariff'!A68),"",'B. CurrentTariff'!A68) -> Wholesale Market Service Rate | B51: =IF(ISBLANK('B. CurrentTariff'!C68),"",'B. CurrentTariff'!C68) -> 0.0044 | C51: =IF(ISBLANK('B. CurrentTariff'!D68),"",'B. CurrentTariff'!D68) -> kWh | E51: =A51 -> Wholesale Market Service Rate | F51: 0.0044 | G51: =C51 -> kWh
A52: =IF(ISBLANK('B. CurrentTariff'!A69),"",'B. CurrentTariff'!A69) -> Rural Rate Protection Charge | B52: =IF(ISBLANK('B. CurrentTariff'!C69),"",'B. CurrentTariff'!C69) -> 0.0013 | C52: =IF(ISBLANK('B. CurrentTariff'!D69),"",'B. CurrentTariff'!D69) -> kWh | E52: =A52 -> Rural Rate Protection Charge | F52: 0.0011 | G52: =C52 -> kWh
A53: =IF(ISBLANK('B. CurrentTariff'!A70),"",'B. CurrentTariff'!A70) -> Standard Supply Service – Administrative Charge (if applicable) | B53: =IF(ISBLANK('B. CurrentTariff'!C70),"",'B. CurrentTariff'!C70) -> 0.25 | C53: =IF(ISBLANK('B. CurrentTariff'!D70),"",'B. CurrentTariff'!D70) -> $ | E53: =A53 -> Standard Supply Service – Administrative Charge (if applicable) | F53: =B53 -> 0.25 | G53: =C53 -> $
A55: =IF(ISBLANK('B. CurrentTariff'!A72),"",'B. CurrentTariff'!A72) -> General Service > 50 to 4999 kW | B55: rate | C55: Connection Type | E55: =A55 -> General Service > 50 to 4999 kW | F55: =B55 -> rate | G55: =C55 -> Connection Type
A57: =IF(ISBLANK('B. CurrentTariff'!A74),"",'B. CurrentTariff'!A74) -> Service Charge | B57: =IF(ISBLANK('B. CurrentTariff'!C74),"",'B. CurrentTariff'!C74) -> 189.27 | C57: =IF(ISBLANK('B. CurrentTariff'!D74),"",'B. CurrentTariff'!D74) -> $ | E57: =A57 -> Service Charge | F57: ='G. RateDesign'!B48 -> 189.27 | G57: =C57 -> $
A58: =IF(ISBLANK('B. CurrentTariff'!A75),"",'B. CurrentTariff'!A75) -> Distribution Volumetric Rate | B58: =IF(ISBLANK('B. CurrentTariff'!C75),"",'B. CurrentTariff'!C75) -> 2.5331 | C58: =IF(ISBLANK('B. CurrentTariff'!D75),"",'B. CurrentTariff'!D75) -> kW | E58: =A58 -> Distribution Volumetric Rate | F58: ='G. RateDesign'!G48 -> 3.192110116 | G58: =C58 -> kW
A59: =IF(ISBLANK('B. CurrentTariff'!A76),"",'B. CurrentTariff'!A76) -> Low Voltage Service Rate | B59: =IF(ISBLANK('B. CurrentTariff'!C76),"",'B. CurrentTariff'!C76) -> 0.3564 | C59: =IF(ISBLANK('B. CurrentTariff'!D76),"",'B. CurrentTariff'!D76) -> kW
A60: =IF(ISBLANK('B. CurrentTariff'!A77),"",'B. CurrentTariff'!A77) ->  | B60: =IF(ISBLANK('B. CurrentTariff'!C77),"",'B. CurrentTariff'!C77) ->  | C60: =IF(ISBLANK('B. CurrentTariff'!D77),"",'B. CurrentTariff'!D77) -> 
A61: =IF(ISBLANK('B. CurrentTariff'!A78),"",'B. CurrentTariff'!A78) ->  | B61: =IF(ISBLANK('B. CurrentTariff'!C78),"",'B. CurrentTariff'!C78) ->  | C61: =IF(ISBLANK('B. CurrentTariff'!D78),"",'B. CurrentTariff'!D78) -> 
A62: =IF(ISBLANK('B. CurrentTariff'!A79),"",'B. CurrentTariff'!A79) ->  | B62: =IF(ISBLANK('B. CurrentTariff'!C79),"",'B. CurrentTariff'!C79) ->  | C62: =IF(ISBLANK('B. CurrentTariff'!D79),"",'B. CurrentTariff'!D79) -> 
A63: =IF(ISBLANK('B. CurrentTariff'!A80),"",'B. CurrentTariff'!A80) ->  | B63: =IF(ISBLANK('B. CurrentTariff'!C80),"",'B. CurrentTariff'!C80) ->  | C63: =IF(ISBLANK('B. CurrentTariff'!D80),"",'B. CurrentTariff'!D80) -> 
A64: =IF(ISBLANK('B. CurrentTariff'!A81),"",'B. CurrentTariff'!A81) ->  | B64: =IF(ISBLANK('B. CurrentTariff'!C81),"",'B. CurrentTariff'!C81) ->  | C64: =IF(ISBLANK('B. CurrentTariff'!D81),"",'B. CurrentTariff'!D81) -> 
A65: =IF(ISBLANK('B. CurrentTariff'!A82),"",'B. CurrentTariff'!A82) ->  | B65: =IF(ISBLANK('B. CurrentTariff'!C82),"",'B. CurrentTariff'!C82) ->  | C65: =IF(ISBLANK('B. CurrentTariff'!D82),"",'B. CurrentTariff'!D82) -> 
A66: =IF(ISBLANK('B. CurrentTariff'!A83),"",'B. CurrentTariff'!A83) ->  | B66: =IF(ISBLANK('B. CurrentTariff'!C83),"",'B. CurrentTariff'!C83) ->  | C66: =IF(ISBLANK('B. CurrentTariff'!D83),"",'B. CurrentTariff'!D83) -> 
A67: =IF(ISBLANK('B. CurrentTariff'!A84),"",'B. CurrentTariff'!A84) ->  | B67: =IF(ISBLANK('B. CurrentTariff'!C84),"",'B. CurrentTariff'!C84) ->  | C67: =IF(ISBLANK('B. CurrentTariff'!D84),"",'B. CurrentTariff'!D84) -> 
A68: =IF(ISBLANK('B. CurrentTariff'!A85),"",'B. CurrentTariff'!A85) ->  | B68: =IF(ISBLANK('B. CurrentTariff'!C85),"",'B. CurrentTariff'!C85) ->  | C68: =IF(ISBLANK('B. CurrentTariff'!D85),"",'B. CurrentTariff'!D85) -> 
A69: =IF(ISBLANK('B. CurrentTariff'!A86),"",'B. CurrentTariff'!A86) ->  | B69: =IF(ISBLANK('B. CurrentTariff'!C86),"",'B. CurrentTariff'!C86) ->  | C69: =IF(ISBLANK('B. CurrentTariff'!D86),"",'B. CurrentTariff'!D86) -> 
A70: =IF(ISBLANK('B. CurrentTariff'!A87),"",'B. CurrentTariff'!A87) -> Retail Transmission Rate – Network Service Rate | B70: =IF(ISBLANK('B. CurrentTariff'!C87),"",'B. CurrentTariff'!C87) -> 2.3668 | C70: =IF(ISBLANK('B. CurrentTariff'!D87),"",'B. CurrentTariff'!D87) -> kW | E70: =A70 -> Retail Transmission Rate – Network Service Rate | F70: 2.1449 | G70: =C70 -> kW
A71: =IF(ISBLANK('B. CurrentTariff'!A88),"",'B. CurrentTariff'!A88) -> Retail Transmission Rate – Line and Transformation Connection Service Rate | B71: =IF(ISBLANK('B. CurrentTariff'!C88),"",'B. CurrentTariff'!C88) -> 1.1566 | C71: =IF(ISBLANK('B. CurrentTariff'!D88),"",'B. CurrentTariff'!D88) -> kW | E71: =A71 -> Retail Transmission Rate – Line and Transformation Connection Service Rate | F71: 1.631 | G71: =C71 -> kW
A72: =IF(ISBLANK('B. CurrentTariff'!A89),"",'B. CurrentTariff'!A89) -> Wholesale Market Service Rate | B72: =IF(ISBLANK('B. CurrentTariff'!C89),"",'B. CurrentTariff'!C89) -> 0.0044 | C72: =IF(ISBLANK('B. CurrentTariff'!D89),"",'B. CurrentTariff'!D89) -> kWh | E72: =A72 -> Wholesale Market Service Rate | F72: =B72 -> 0.0044 | G72: =C72 -> kWh
A73: =IF(ISBLANK('B. CurrentTariff'!A90),"",'B. CurrentTariff'!A90) -> Rural Rate Protection Charge | B73: =IF(ISBLANK('B. CurrentTariff'!C90),"",'B. CurrentTariff'!C90) -> 0.0013 | C73: =IF(ISBLANK('B. CurrentTariff'!D90),"",'B. CurrentTariff'!D90) -> kWh | E73: =A73 -> Rural Rate Protection Charge | F73: =B73 -> 0.0013 | G73: =C73 -> kWh
A74: =IF(ISBLANK('B. CurrentTariff'!A91),"",'B. CurrentTariff'!A91) -> Standard Supply Service – Administrative Charge (if applicable) | B74: =IF(ISBLANK('B. CurrentTariff'!C91),"",'B. CurrentTariff'!C91) -> 0.25 | C74: =IF(ISBLANK('B. CurrentTariff'!D91),"",'B. CurrentTariff'!D91) -> $ | E74: =A74 -> Standard Supply Service – Administrative Charge (if applicable) | F74: =B74 -> 0.25 | G74: =C74 -> $
A76: =IF(ISBLANK('B. CurrentTariff'!A93),"",'B. CurrentTariff'!A93) -> Unmetered Scattered Load | B76: rate | C76: Connection Type | E76: =A76 -> Unmetered Scattered Load | F76: =B76 -> rate | G76: =C76 -> Connection Type
A78: =IF(ISBLANK('B. CurrentTariff'!A95),"",'B. CurrentTariff'!A95) -> Service Charge | B78: =IF(ISBLANK('B. CurrentTariff'!C95),"",'B. CurrentTariff'!C95) -> 43.63 | C78: =IF(ISBLANK('B. CurrentTariff'!D95),"",'B. CurrentTariff'!D95) -> $ | E78: =A78 -> Service Charge | F78: ='G. RateDesign'!B49 -> 39.62 | G78: =C78 -> $
A79: =IF(ISBLANK('B. CurrentTariff'!A96),"",'B. CurrentTariff'!A96) -> Distribution Volumetric Rate | B79: =IF(ISBLANK('B. CurrentTariff'!C96),"",'B. CurrentTariff'!C96) -> 0.0099 | C79: =IF(ISBLANK('B. CurrentTariff'!D96),"",'B. CurrentTariff'!D96) -> kW | E79: =A79 -> Distribution Volumetric Rate | F79: ='G. RateDesign'!G49 -> 0.008869071931 | G79: =C79 -> kW
A80: =IF(ISBLANK('B. CurrentTariff'!A97),"",'B. CurrentTariff'!A97) -> Low Voltage Service Rate | B80: =IF(ISBLANK('B. CurrentTariff'!C97),"",'B. CurrentTariff'!C97) -> 0.001 | C80: =IF(ISBLANK('B. CurrentTariff'!D97),"",'B. CurrentTariff'!D97) -> kW
A81: =IF(ISBLANK('B. CurrentTariff'!A98),"",'B. CurrentTariff'!A98) ->  | B81: =IF(ISBLANK('B. CurrentTariff'!C98),"",'B. CurrentTariff'!C98) ->  | C81: =IF(ISBLANK('B. CurrentTariff'!D98),"",'B. CurrentTariff'!D98) -> 
A82: =IF(ISBLANK('B. CurrentTariff'!A99),"",'B. CurrentTariff'!A99) ->  | B82: =IF(ISBLANK('B. CurrentTariff'!C99),"",'B. CurrentTariff'!C99) ->  | C82: =IF(ISBLANK('B. CurrentTariff'!D99),"",'B. CurrentTariff'!D99) -> 
A83: =IF(ISBLANK('B. CurrentTariff'!A100),"",'B. CurrentTariff'!A100) ->  | B83: =IF(ISBLANK('B. CurrentTariff'!C100),"",'B. CurrentTariff'!C100) ->  | C83: =IF(ISBLANK('B. CurrentTariff'!D100),"",'B. CurrentTariff'!D100) -> 
A84: =IF(ISBLANK('B. CurrentTariff'!A101),"",'B. CurrentTariff'!A101) ->  | B84: =IF(ISBLANK('B. CurrentTariff'!C101),"",'B. CurrentTariff'!C101) ->  | C84: =IF(ISBLANK('B. CurrentTariff'!D101),"",'B. CurrentTariff'!D101) -> 
A85: =IF(ISBLANK('B. CurrentTariff'!A102),"",'B. CurrentTariff'!A102) ->  | B85: =IF(ISBLANK('B. CurrentTariff'!C102),"",'B. CurrentTariff'!C102) ->  | C85: =IF(ISBLANK('B. CurrentTariff'!D102),"",'B. CurrentTariff'!D102) -> 
A86: =IF(ISBLANK('B. CurrentTariff'!A103),"",'B. CurrentTariff'!A103) ->  | B86: =IF(ISBLANK('B. CurrentTariff'!C103),"",'B. CurrentTariff'!C103) ->  | C86: =IF(ISBLANK('B. CurrentTariff'!D103),"",'B. CurrentTariff'!D103) -> 
A87: =IF(ISBLANK('B. CurrentTariff'!A104),"",'B. CurrentTariff'!A104) ->  | B87: =IF(ISBLANK('B. CurrentTariff'!C104),"",'B. CurrentTariff'!C104) ->  | C87: =IF(ISBLANK('B. CurrentTariff'!D104),"",'B. CurrentTariff'!D104) -> 
A88: =IF(ISBLANK('B. CurrentTariff'!A105),"",'B. CurrentTariff'!A105) ->  | B88: =IF(ISBLANK('B. CurrentTariff'!C105),"",'B. CurrentTariff'!C105) ->  | C88: =IF(ISBLANK('B. CurrentTariff'!D105),"",'B. CurrentTariff'!D105) -> 
A89: =IF(ISBLANK('B. CurrentTariff'!A106),"",'B. CurrentTariff'!A106) ->  | B89: =IF(ISBLANK('B. CurrentTariff'!C106),"",'B. CurrentTariff'!C106) ->  | C89: =IF(ISBLANK('B. CurrentTariff'!D106),"",'B. CurrentTariff'!D106) -> 
A90: =IF(ISBLANK('B. CurrentTariff'!A107),"",'B. CurrentTariff'!A107) ->  | B90: =IF(ISBLANK('B. CurrentTariff'!C107),"",'B. CurrentTariff'!C107) ->  | C90: =IF(ISBLANK('B. CurrentTariff'!D107),"",'B. CurrentTariff'!D107) -> 
A91: =IF(ISBLANK('B. CurrentTariff'!A108),"",'B. CurrentTariff'!A108) -> Retail Transmission Rate – Network Service Rate | B91: =IF(ISBLANK('B. CurrentTariff'!C108),"",'B. CurrentTariff'!C108) -> 0.0058 | C91: =IF(ISBLANK('B. CurrentTariff'!D108),"",'B. CurrentTariff'!D108) -> kW | E91: =A91 -> Retail Transmission Rate – Network Service Rate | F91: 0.0068 | G91: =C91 -> kW
A92: =IF(ISBLANK('B. CurrentTariff'!A109),"",'B. CurrentTariff'!A109) -> Retail Transmission Rate – Line and Transformation Connection Service Rate | B92: =IF(ISBLANK('B. CurrentTariff'!C109),"",'B. CurrentTariff'!C109) -> 0.0031 | C92: =IF(ISBLANK('B. CurrentTariff'!D109),"",'B. CurrentTariff'!D109) -> kW | E92: =A92 -> Retail Transmission Rate – Line and Transformation Connection Service Rate | F92: 0.0046 | G92: =C92 -> kW
A93: =IF(ISBLANK('B. CurrentTariff'!A110),"",'B. CurrentTariff'!A110) -> Wholesale Market Service Rate | B93: =IF(ISBLANK('B. CurrentTariff'!C110),"",'B. CurrentTariff'!C110) -> 0.0044 | C93: =IF(ISBLANK('B. CurrentTariff'!D110),"",'B. CurrentTariff'!D110) -> kWh | E93: =A93 -> Wholesale Market Service Rate | F93: =B93 -> 0.0044 | G93: =C93 -> kWh
A94: =IF(ISBLANK('B. CurrentTariff'!A111),"",'B. CurrentTariff'!A111) -> Rural Rate Protection Charge | B94: =IF(ISBLANK('B. CurrentTariff'!C111),"",'B. CurrentTariff'!C111) -> 0.0013 | C94: =IF(ISBLANK('B. CurrentTariff'!D111),"",'B. CurrentTariff'!D111) -> kWh | E94: =A94 -> Rural Rate Protection Charge | F94: =B94 -> 0.0013 | G94: =C94 -> kWh
A95: =IF(ISBLANK('B. CurrentTariff'!A112),"",'B. CurrentTariff'!A112) -> Standard Supply Service – Administrative Charge (if applicable) | B95: =IF(ISBLANK('B. CurrentTariff'!C112),"",'B. CurrentTariff'!C112) -> 0.25 | C95: =IF(ISBLANK('B. CurrentTariff'!D112),"",'B. CurrentTariff'!D112) -> $ | E95: =A95 -> Standard Supply Service – Administrative Charge (if applicable) | F95: =B95 -> 0.25 | G95: =C95 -> $
A97: =IF(ISBLANK('B. CurrentTariff'!A114),"",'B. CurrentTariff'!A114) -> Street Lighting | B97: rate | C97: Connection Type | E97: =A97 -> Street Lighting | F97: =B97 -> rate | G97: =C97 -> Connection Type
A99: =IF(ISBLANK('B. CurrentTariff'!A116),"",'B. CurrentTariff'!A116) -> Service Charge | B99: =IF(ISBLANK('B. CurrentTariff'!C116),"",'B. CurrentTariff'!C116) -> 2.95 | C99: =IF(ISBLANK('B. CurrentTariff'!D116),"",'B. CurrentTariff'!D116) -> $ | E99: =A99 -> Service Charge | F99: ='G. RateDesign'!B50 -> 2.82 | G99: =C99 -> $
A100: =IF(ISBLANK('B. CurrentTariff'!A117),"",'B. CurrentTariff'!A117) -> Distribution Volumetric Rate | B100: =IF(ISBLANK('B. CurrentTariff'!C117),"",'B. CurrentTariff'!C117) -> 7.2483 | C100: =IF(ISBLANK('B. CurrentTariff'!D117),"",'B. CurrentTariff'!D117) -> kW | E100: =A100 -> Distribution Volumetric Rate | F100: ='G. RateDesign'!G50 -> 6.924761714 | G100: =C100 -> kW
A101: =IF(ISBLANK('B. CurrentTariff'!A118),"",'B. CurrentTariff'!A118) -> Low Voltage Service Rate | B101: =IF(ISBLANK('B. CurrentTariff'!C118),"",'B. CurrentTariff'!C118) -> 0.2754 | C101: =IF(ISBLANK('B. CurrentTariff'!D118),"",'B. CurrentTariff'!D118) -> kW
A102: =IF(ISBLANK('B. CurrentTariff'!A119),"",'B. CurrentTariff'!A119) ->  | B102: =IF(ISBLANK('B. CurrentTariff'!C119),"",'B. CurrentTariff'!C119) ->  | C102: =IF(ISBLANK('B. CurrentTariff'!D119),"",'B. CurrentTariff'!D119) -> 
A103: =IF(ISBLANK('B. CurrentTariff'!A120),"",'B. CurrentTariff'!A120) ->  | B103: =IF(ISBLANK('B. CurrentTariff'!C120),"",'B. CurrentTariff'!C120) ->  | C103: =IF(ISBLANK('B. CurrentTariff'!D120),"",'B. CurrentTariff'!D120) -> 
A104: =IF(ISBLANK('B. CurrentTariff'!A121),"",'B. CurrentTariff'!A121) ->  | B104: =IF(ISBLANK('B. CurrentTariff'!C121),"",'B. CurrentTariff'!C121) ->  | C104: =IF(ISBLANK('B. CurrentTariff'!D121),"",'B. CurrentTariff'!D121) -> 
A105: =IF(ISBLANK('B. CurrentTariff'!A122),"",'B. CurrentTariff'!A122) ->  | B105: =IF(ISBLANK('B. CurrentTariff'!C122),"",'B. CurrentTariff'!C122) ->  | C105: =IF(ISBLANK('B. CurrentTariff'!D122),"",'B. CurrentTariff'!D122) -> 
A106: =IF(ISBLANK('B. CurrentTariff'!A123),"",'B. CurrentTariff'!A123) ->  | B106: =IF(ISBLANK('B. CurrentTariff'!C123),"",'B. CurrentTariff'!C123) ->  | C106: =IF(ISBLANK('B. CurrentTariff'!D123),"",'B. CurrentTariff'!D123) -> 
A107: =IF(ISBLANK('B. CurrentTariff'!A124),"",'B. CurrentTariff'!A124) ->  | B107: =IF(ISBLANK('B. CurrentTariff'!C124),"",'B. CurrentTariff'!C124) ->  | C107: =IF(ISBLANK('B. CurrentTariff'!D124),"",'B. CurrentTariff'!D124) -> 
A108: =IF(ISBLANK('B. CurrentTariff'!A125),"",'B. CurrentTariff'!A125) ->  | B108: =IF(ISBLANK('B. CurrentTariff'!C125),"",'B. CurrentTariff'!C125) ->  | C108: =IF(ISBLANK('B. CurrentTariff'!D125),"",'B. CurrentTariff'!D125) -> 
A109: =IF(ISBLANK('B. CurrentTariff'!A126),"",'B. CurrentTariff'!A126) ->  | B109: =IF(ISBLANK('B. CurrentTariff'!C126),"",'B. CurrentTariff'!C126) ->  | C109: =IF(ISBLANK('B. CurrentTariff'!D126),"",'B. CurrentTariff'!D126) -> 
A110: =IF(ISBLANK('B. CurrentTariff'!A127),"",'B. CurrentTariff'!A127) ->  | B110: =IF(ISBLANK('B. CurrentTariff'!C127),"",'B. CurrentTariff'!C127) ->  | C110: =IF(ISBLANK('B. CurrentTariff'!D127),"",'B. CurrentTariff'!D127) -> 
A111: =IF(ISBLANK('B. CurrentTariff'!A128),"",'B. CurrentTariff'!A128) ->  | B111: =IF(ISBLANK('B. CurrentTariff'!C128),"",'B. CurrentTariff'!C128) ->  | C111: =IF(ISBLANK('B. CurrentTariff'!D128),"",'B. CurrentTariff'!D128) -> 
A112: =IF(ISBLANK('B. CurrentTariff'!A129),"",'B. CurrentTariff'!A129) -> Retail Transmission Rate – Network Service Rate | B112: =IF(ISBLANK('B. CurrentTariff'!C129),"",'B. CurrentTariff'!C129) -> 1.7849 | C112: =IF(ISBLANK('B. CurrentTariff'!D129),"",'B. CurrentTariff'!D129) -> kW | E112: =A112 -> Retail Transmission Rate – Network Service Rate | F112: 1.6176 | G112: =C112 -> kW
A113: =IF(ISBLANK('B. CurrentTariff'!A130),"",'B. CurrentTariff'!A130) -> Retail Transmission Rate – Line and Transformation Connection Service Rate | B113: =IF(ISBLANK('B. CurrentTariff'!C130),"",'B. CurrentTariff'!C130) -> 0.8941 | C113: =IF(ISBLANK('B. CurrentTariff'!D130),"",'B. CurrentTariff'!D130) -> kW | E113: =A113 -> Retail Transmission Rate – Line and Transformation Connection Service Rate | F113: 1.261 | G113: =C113 -> kW
A114: =IF(ISBLANK('B. CurrentTariff'!A131),"",'B. CurrentTariff'!A131) -> Wholesale Market Service Rate | B114: =IF(ISBLANK('B. CurrentTariff'!C131),"",'B. CurrentTariff'!C131) -> 0.0044 | C114: =IF(ISBLANK('B. CurrentTariff'!D131),"",'B. CurrentTariff'!D131) -> kWh | E114: =A114 -> Wholesale Market Service Rate | F114: =B114 -> 0.0044 | G114: =C114 -> kWh
A115: =IF(ISBLANK('B. CurrentTariff'!A132),"",'B. CurrentTariff'!A132) -> Rural Rate Protection Charge | B115: =IF(ISBLANK('B. CurrentTariff'!C132),"",'B. CurrentTariff'!C132) -> 0.0013 | C115: =IF(ISBLANK('B. CurrentTariff'!D132),"",'B. CurrentTariff'!D132) -> kWh | E115: =A115 -> Rural Rate Protection Charge | F115: =B115 -> 0.0013 | G115: =C115 -> kWh
A116: =IF(ISBLANK('B. CurrentTariff'!A133),"",'B. CurrentTariff'!A133) -> Standard Supply Service – Administrative Charge (if applicable) | B116: =IF(ISBLANK('B. CurrentTariff'!C133),"",'B. CurrentTariff'!C133) -> 0.25 | C116: =IF(ISBLANK('B. CurrentTariff'!D133),"",'B. CurrentTariff'!D133) -> $ | E116: =A116 -> Standard Supply Service – Administrative Charge (if applicable) | F116: =B116 -> 0.25 | G116: =C116 -> $
A118: =IF(ISBLANK('B. CurrentTariff'!A135),"",'B. CurrentTariff'!A135) -> other classes | B118: rate | C118: Connection Type | E118: =A118 -> other classes | F118: =B118 -> rate | G118: =C118 -> Connection Type
A120: =IF(ISBLANK('B. CurrentTariff'!A137),"",'B. CurrentTariff'!A137) -> Service Charge | B120: =IF(ISBLANK('B. CurrentTariff'!C137),"",'B. CurrentTariff'!C137) -> 6.25 | C120: =IF(ISBLANK('B. CurrentTariff'!D137),"",'B. CurrentTariff'!D137) -> $ | E120: =A120 -> Service Charge | F120: ='G. RateDesign'!B54 -> 0 | G120: =C120 -> $
A121: =IF(ISBLANK('B. CurrentTariff'!A138),"",'B. CurrentTariff'!A138) -> Distribution Volumetric Rate | B121: =IF(ISBLANK('B. CurrentTariff'!C138),"",'B. CurrentTariff'!C138) -> 0.002 | C121: =IF(ISBLANK('B. CurrentTariff'!D138),"",'B. CurrentTariff'!D138) -> kWh | E121: =A121 -> Distribution Volumetric Rate | F121: ='G. RateDesign'!G54 -> 0 | G121: =C121 -> kWh
A122: =IF(ISBLANK('B. CurrentTariff'!A139),"",'B. CurrentTariff'!A139) -> Low Voltage Service Rate | B122: =IF(ISBLANK('B. CurrentTariff'!C139),"",'B. CurrentTariff'!C139) -> 0.001 | C122: =IF(ISBLANK('B. CurrentTariff'!D139),"",'B. CurrentTariff'!D139) -> kWh
A123: =IF(ISBLANK('B. CurrentTariff'!A140),"",'B. CurrentTariff'!A140) ->  | B123: =IF(ISBLANK('B. CurrentTariff'!C140),"",'B. CurrentTariff'!C140) ->  | C123: =IF(ISBLANK('B. CurrentTariff'!D140),"",'B. CurrentTariff'!D140) -> 
A124: =IF(ISBLANK('B. CurrentTariff'!A141),"",'B. CurrentTariff'!A141) ->  | B124: =IF(ISBLANK('B. CurrentTariff'!C141),"",'B. CurrentTariff'!C141) ->  | C124: =IF(ISBLANK('B. CurrentTariff'!D141),"",'B. CurrentTariff'!D141) -> 
A125: =IF(ISBLANK('B. CurrentTariff'!A142),"",'B. CurrentTariff'!A142) ->  | B125: =IF(ISBLANK('B. CurrentTariff'!C142),"",'B. CurrentTariff'!C142) ->  | C125: =IF(ISBLANK('B. CurrentTariff'!D142),"",'B. CurrentTariff'!D142) -> 
A126: =IF(ISBLANK('B. CurrentTariff'!A143),"",'B. CurrentTariff'!A143) ->  | B126: =IF(ISBLANK('B. CurrentTariff'!C143),"",'B. CurrentTariff'!C143) ->  | C126: =IF(ISBLANK('B. CurrentTariff'!D143),"",'B. CurrentTariff'!D143) -> 
A127: =IF(ISBLANK('B. CurrentTariff'!A144),"",'B. CurrentTariff'!A144) ->  | B127: =IF(ISBLANK('B. CurrentTariff'!C144),"",'B. CurrentTariff'!C144) ->  | C127: =IF(ISBLANK('B. CurrentTariff'!D144),"",'B. CurrentTariff'!D144) -> 
A128: =IF(ISBLANK('B. CurrentTariff'!A145),"",'B. CurrentTariff'!A145) ->  | B128: =IF(ISBLANK('B. CurrentTariff'!C145),"",'B. CurrentTariff'!C145) ->  | C128: =IF(ISBLANK('B. CurrentTariff'!D145),"",'B. CurrentTariff'!D145) -> 
A129: =IF(ISBLANK('B. CurrentTariff'!A146),"",'B. CurrentTariff'!A146) ->  | B129: =IF(ISBLANK('B. CurrentTariff'!C146),"",'B. CurrentTariff'!C146) ->  | C129: =IF(ISBLANK('B. CurrentTariff'!D146),"",'B. CurrentTariff'!D146) -> 
A130: =IF(ISBLANK('B. CurrentTariff'!A147),"",'B. CurrentTariff'!A147) ->  | B130: =IF(ISBLANK('B. CurrentTariff'!C147),"",'B. CurrentTariff'!C147) ->  | C130: =IF(ISBLANK('B. CurrentTariff'!D147),"",'B. CurrentTariff'!D147) -> 
A131: =IF(ISBLANK('B. CurrentTariff'!A148),"",'B. CurrentTariff'!A148) ->  | B131: =IF(ISBLANK('B. CurrentTariff'!C148),"",'B. CurrentTariff'!C148) ->  | C131: =IF(ISBLANK('B. CurrentTariff'!D148),"",'B. CurrentTariff'!D148) -> 
A132: =IF(ISBLANK('B. CurrentTariff'!A149),"",'B. CurrentTariff'!A149) ->  | B132: =IF(ISBLANK('B. CurrentTariff'!C149),"",'B. CurrentTariff'!C149) ->  | C132: =IF(ISBLANK('B. CurrentTariff'!D149),"",'B. CurrentTariff'!D149) -> 
A133: =IF(ISBLANK('B. CurrentTariff'!A150),"",'B. CurrentTariff'!A150) -> Retail Transmission Rate – Network Service Rate | B133: =IF(ISBLANK('B. CurrentTariff'!C150),"",'B. CurrentTariff'!C150) -> 0.0058 | C133: =IF(ISBLANK('B. CurrentTariff'!D150),"",'B. CurrentTariff'!D150) -> kWh | E133: =A133 -> Retail Transmission Rate – Network Service Rate | F133: 2.0499 | G133: =C133 -> kWh
A134: =IF(ISBLANK('B. CurrentTariff'!A151),"",'B. CurrentTariff'!A151) -> Retail Transmission Rate – Line and Transformation Connection Service Rate | B134: =IF(ISBLANK('B. CurrentTariff'!C151),"",'B. CurrentTariff'!C151) -> 0.004 | C134: =IF(ISBLANK('B. CurrentTariff'!D151),"",'B. CurrentTariff'!D151) -> kWh | E134: =A134 -> Retail Transmission Rate – Line and Transformation Connection Service Rate | F134: 1.42 | G134: =C134 -> kWh
A135: =IF(ISBLANK('B. CurrentTariff'!A152),"",'B. CurrentTariff'!A152) -> Wholesale Market Service Rate | B135: =IF(ISBLANK('B. CurrentTariff'!C152),"",'B. CurrentTariff'!C152) -> 0 | C135: =IF(ISBLANK('B. CurrentTariff'!D152),"",'B. CurrentTariff'!D152) -> kWh | E135: =A135 -> Wholesale Market Service Rate | F135: =B135 -> 0 | G135: =C135 -> kWh
A136: =IF(ISBLANK('B. CurrentTariff'!A153),"",'B. CurrentTariff'!A153) -> Rural Rate Protection Charge | B136: =IF(ISBLANK('B. CurrentTariff'!C153),"",'B. CurrentTariff'!C153) -> 0 | C136: =IF(ISBLANK('B. CurrentTariff'!D153),"",'B. CurrentTariff'!D153) -> kWh | E136: =A136 -> Rural Rate Protection Charge | F136: =B136 -> 0 | G136: =C136 -> kWh
A137: =IF(ISBLANK('B. CurrentTariff'!A154),"",'B. CurrentTariff'!A154) -> Standard Supply Service – Administrative Charge (if applicable) | B137: =IF(ISBLANK('B. CurrentTariff'!C154),"",'B. CurrentTariff'!C154) -> 0.25 | C137: =IF(ISBLANK('B. CurrentTariff'!D154),"",'B. CurrentTariff'!D154) -> $ | E137: =A137 -> Standard Supply Service – Administrative Charge (if applicable) | F137: =B137 -> 0.25 | G137: =C137 -> $
A139: =IF(ISBLANK('B. CurrentTariff'!A156),"",'B. CurrentTariff'!A156) -> Other Rate Classes | E139: =A139 -> Other Rate Classes | F139: =B139 ->  | G139: =C139 -> 0
A141: =IF(ISBLANK('B. CurrentTariff'!A158),"",'B. CurrentTariff'!A158) -> Service Charge | B141: =IF(ISBLANK('B. CurrentTariff'!C158),"",'B. CurrentTariff'!C158) -> 0 | C141: =IF(ISBLANK('B. CurrentTariff'!D158),"",'B. CurrentTariff'!D158) -> $ | E141: =A141 -> Service Charge | F141: ='G. RateDesign'!B55 -> 0 | G141: =C141 -> $
A142: =IF(ISBLANK('B. CurrentTariff'!A159),"",'B. CurrentTariff'!A159) -> Distribution Volumetric Rate | B142: =IF(ISBLANK('B. CurrentTariff'!C159),"",'B. CurrentTariff'!C159) -> 0 | C142: =IF(ISBLANK('B. CurrentTariff'!D159),"",'B. CurrentTariff'!D159) -> kW | E142: =A142 -> Distribution Volumetric Rate | F142: ='G. RateDesign'!G55 ->  | G142: =C142 -> kW
A143: =IF(ISBLANK('B. CurrentTariff'!A160),"",'B. CurrentTariff'!A160) ->  | B143: =IF(ISBLANK('B. CurrentTariff'!C160),"",'B. CurrentTariff'!C160) ->  | C143: =IF(ISBLANK('B. CurrentTariff'!D160),"",'B. CurrentTariff'!D160) -> 
A144: =IF(ISBLANK('B. CurrentTariff'!A161),"",'B. CurrentTariff'!A161) ->  | B144: =IF(ISBLANK('B. CurrentTariff'!C161),"",'B. CurrentTariff'!C161) ->  | C144: =IF(ISBLANK('B. CurrentTariff'!D161),"",'B. CurrentTariff'!D161) -> 
A145: =IF(ISBLANK('B. CurrentTariff'!A162),"",'B. CurrentTariff'!A162) ->  | B145: =IF(ISBLANK('B. CurrentTariff'!C162),"",'B. CurrentTariff'!C162) ->  | C145: =IF(ISBLANK('B. CurrentTariff'!D162),"",'B. CurrentTariff'!D162) -> 
A146: =IF(ISBLANK('B. CurrentTariff'!A163),"",'B. CurrentTariff'!A163) ->  | B146: =IF(ISBLANK('B. CurrentTariff'!C163),"",'B. CurrentTariff'!C163) ->  | C146: =IF(ISBLANK('B. CurrentTariff'!D163),"",'B. CurrentTariff'!D163) -> 
A147: =IF(ISBLANK('B. CurrentTariff'!A164),"",'B. CurrentTariff'!A164) ->  | B147: =IF(ISBLANK('B. CurrentTariff'!C164),"",'B. CurrentTariff'!C164) ->  | C147: =IF(ISBLANK('B. CurrentTariff'!D164),"",'B. CurrentTariff'!D164) -> 
A148: =IF(ISBLANK('B. CurrentTariff'!A165),"",'B. CurrentTariff'!A165) ->  | B148: =IF(ISBLANK('B. CurrentTariff'!C165),"",'B. CurrentTariff'!C165) ->  | C148: =IF(ISBLANK('B. CurrentTariff'!D165),"",'B. CurrentTariff'!D165) -> 
A149: =IF(ISBLANK('B. CurrentTariff'!A166),"",'B. CurrentTariff'!A166) ->  | B149: =IF(ISBLANK('B. CurrentTariff'!C166),"",'B. CurrentTariff'!C166) ->  | C149: =IF(ISBLANK('B. CurrentTariff'!D166),"",'B. CurrentTariff'!D166) -> 
A150: =IF(ISBLANK('B. CurrentTariff'!A167),"",'B. CurrentTariff'!A167) ->  | B150: =IF(ISBLANK('B. CurrentTariff'!C167),"",'B. CurrentTariff'!C167) ->  | C150: =IF(ISBLANK('B. CurrentTariff'!D167),"",'B. CurrentTariff'!D167) -> 
A151: =IF(ISBLANK('B. CurrentTariff'!A168),"",'B. CurrentTariff'!A168) ->  | B151: =IF(ISBLANK('B. CurrentTariff'!C168),"",'B. CurrentTariff'!C168) ->  | C151: =IF(ISBLANK('B. CurrentTariff'!D168),"",'B. CurrentTariff'!D168) -> 
A152: =IF(ISBLANK('B. CurrentTariff'!A169),"",'B. CurrentTariff'!A169) ->  | B152: =IF(ISBLANK('B. CurrentTariff'!C169),"",'B. CurrentTariff'!C169) ->  | C152: =IF(ISBLANK('B. CurrentTariff'!D169),"",'B. CurrentTariff'!D169) -> 
A153: =IF(ISBLANK('B. CurrentTariff'!A170),"",'B. CurrentTariff'!A170) ->  | B153: =IF(ISBLANK('B. CurrentTariff'!C170),"",'B. CurrentTariff'!C170) ->  | C153: =IF(ISBLANK('B. CurrentTariff'!D170),"",'B. CurrentTariff'!D170) -> 
A154: =IF(ISBLANK('B. CurrentTariff'!A171),"",'B. CurrentTariff'!A171) -> Retail Transmission Rate – Network Service Rate | B154: =IF(ISBLANK('B. CurrentTariff'!C171),"",'B. CurrentTariff'!C171) -> 0 | C154: =IF(ISBLANK('B. CurrentTariff'!D171),"",'B. CurrentTariff'!D171) -> kW | E154: =A154 -> Retail Transmission Rate – Network Service Rate | F154: 2.0499 | G154: =C154 -> kW
A155: =IF(ISBLANK('B. CurrentTariff'!A172),"",'B. CurrentTariff'!A172) -> Retail Transmission Rate – Line and Transformation Connection Service Rate | B155: =IF(ISBLANK('B. CurrentTariff'!C172),"",'B. CurrentTariff'!C172) -> 0 | C155: =IF(ISBLANK('B. CurrentTariff'!D172),"",'B. CurrentTariff'!D172) -> kW | E155: =A155 -> Retail Transmission Rate – Line and Transformation Connection Service Rate | F155: 1.42 | G155: =C155 -> kW
A156: =IF(ISBLANK('B. CurrentTariff'!A173),"",'B. CurrentTariff'!A173) -> Wholesale Market Service Rate | B156: =IF(ISBLANK('B. CurrentTariff'!C173),"",'B. CurrentTariff'!C173) -> 0 | C156: =IF(ISBLANK('B. CurrentTariff'!D173),"",'B. CurrentTariff'!D173) -> kWh | E156: =A156 -> Wholesale Market Service Rate | F156: =B156 -> 0 | G156: =C156 -> kWh
A157: =IF(ISBLANK('B. CurrentTariff'!A174),"",'B. CurrentTariff'!A174) -> Rural Rate Protection Charge | B157: =IF(ISBLANK('B. CurrentTariff'!C174),"",'B. CurrentTariff'!C174) -> 0 | C157: =IF(ISBLANK('B. CurrentTariff'!D174),"",'B. CurrentTariff'!D174) -> kWh | E157: =A157 -> Rural Rate Protection Charge | F157: =B157 -> 0 | G157: =C157 -> kWh
A158: =IF(ISBLANK('B. CurrentTariff'!A175),"",'B. CurrentTariff'!A175) -> Standard Supply Service – Administrative Charge (if applicable) | B158: =IF(ISBLANK('B. CurrentTariff'!C175),"",'B. CurrentTariff'!C175) -> 0.25 | C158: =IF(ISBLANK('B. CurrentTariff'!D175),"",'B. CurrentTariff'!D175) -> $ | E158: =A158 -> Standard Supply Service – Administrative Charge (if applicable) | F158: =B158 -> 0.25 | G158: =C158 -> $

Sheet BILL IMPACT ->
A1: Rate Design Model version 1.0 © CHEC
H7: Revenue
H8: Requirement
H9: Workform
H10: ('RRWF')

Sheet Bill Impact - Res 10 Pct
T1: 1
B10: Appendix 2-W
B11: Bill Impacts
B14: Customer Class: | D14: Residential
B16: TOU / non-TOU: | D16: TOU
D18: Consumption | F18: 286 | G18: kWh
F20: Current Board-Approved | J20: Proposed | N20: Impact
D21: Charge Unit | F21: Rate | G21: Volume | H21: Charge | J21: Rate | K21: Volume | L21: Charge | N21: $ Change | O21: % Change
F22: ($) | H22: ($) | J22: ($) | L22: ($)
B23: Monthly Service Charge | D23: Monthly | F23: ='B. CurrentTariff'!C32 -> 13.97 | G23: 1 | H23: =G23*F23 -> 13.97 | J23: ='G. RateDesign'!B46 -> 17.91 | K23: 1 | L23: =K23*J23 -> 17.91 | N23: =L23-H23 -> 3.94 | O23: =IF((H23)=0,"",(N23/H23)) -> 0.2820329277
B24: Smart Meter Rate Adder | G24: 1 | H24: =G24*F24 -> 0 | K24: 1 | L24: =K24*J24 -> 0 | N24: =L24-H24 -> 0 | O24: =IF((H24)=0,"",(N24/H24)) -> 
B25: Stranded Meter Rate Rider | D25: Monthly | G25: 1 | H25: 0 | J25: ='K. SMRR'!G13 -> 0.1361316 | K25: 1 | L25: =K25*J25 -> 0.1361316 | N25: =L25-H25 -> 0.1361316 | O25: =IF((H25)=0,"",(N25/H25)) -> 
B26: Smart Meter Disposition Rider | G26: 1 | H26: 0 | J26: 1.42 | K26: 1 | L26: 1.42 | N26: 1.42
G27: 1 | H27: 0 | K27: 1 | L27: 0 | N27: 0
G28: 1 | H28: 0 | K28: 1 | L28: 0 | N28: 0
B29: Distribution Volumetric Rate | D29: per kWh | F29: ='B. CurrentTariff'!C33 -> 0.0145 | G29: =$F$18 -> 286 | H29: 4.147 | J29: ='G. RateDesign'!G46 -> 0.01397668922 | K29: =$F$18 -> 286 | L29: 3.997333117 | N29: -0.1496668829 | O29: -0.03609039858
B30: Smart Meter Disposition Rider | D30: per kWh | G30: 286 | H30: 0 | K30: =$F$18 -> 286 | L30: 0 | N30: 0
B31: LRAM & SSM Rate Rider | D31: per kWh | G31: 286 | H31: 0 | K31: 286 | L31: 0 | N31: 0
G32: 286 | H32: =G32*F32 -> 0 | K32: 286 | L32: =K32*J32 -> 0 | N32: =L32-H32 -> 0 | O32: =IF((H32)=0,"",(N32/H32)) -> 
G33: 286 | H33: =G33*F33 -> 0 | K33: 286 | L33: =K33*J33 -> 0 | N33: =L33-H33 -> 0 | O33: =IF((H33)=0,"",(N33/H33)) -> 
G34: 286 | H34: =G34*F34 -> 0 | K34: 286 | L34: =K34*J34 -> 0 | N34: =L34-H34 -> 0 | O34: =IF((H34)=0,"",(N34/H34)) -> 
G35: 286 | H35: 0 | K35: 286 | L35: 0 | N35: 0
G36: 286 | H36: 0 | K36: 286 | L36: 0 | N36: 0
G37: 286 | H37: 0 | K37: 286 | L37: 0 | N37: 0
G38: 286 | H38: 0 | K38: 286 | L38: 0 | N38: 0
B39: Sub-Total A (excluding pass through) | H39: =SUM(H23:H38) -> 18.117 | L39: =SUM(L23:L38) -> 23.46346472 | N39: 5.346464717 | O39: 0.2951076181
B40: ='L. DVA'!$B$16 -> Rate Rider Calculation for Deferral / Variance Accounts Balances (excluding Global Adj.) | D40: per kWh | G40: =$F$18 -> 286 | H40: =G40*F40 -> 0 | J40: ='L. DVA'!F20 -> 0.0003403795305 | K40: =$F$18 -> 286 | L40: =K40*J40 -> 0.09734854573 | N40: =L40-H40 -> 0.09734854573
B41: ='L. DVA'!$B$42 -> Rate Rider Calculation for Deferral / Variance Accounts Balances (excluding Global Adj.) - NON-WMP | D41: per kWh | G41: 286 | H41: 0 | J41: ='L. DVA'!F46 -> -0.0001611198572 | K41: 286 | L41: -0.04608027915 | N41: -0.04608027915
B42: ='L. DVA'!$B$68 -> Rate Rider Calculation for RSVA - Power - Global Adjustment | D42: per kWh | G42: 286 | K42: 286 | L42: 0 | N42: 0
B43: ='L. DVA'!$B$121 -> Rate Rider Calculation for Group 2 Accounts | D43: Monthly | G43: 286 | J43: ='L. DVA'!F125 -> 0.1017256732 | K43: 1 | L43: 0.1017256732 | N43: 0.1017256732
B44: ='L. DVA'!$B$147 -> Rate Rider Calculation for Accounts 1575 and 1576 | D44: per kWh | G44: 286 | H44: 0 | J44: ='L. DVA'!F153 -> -0.002549576061 | K44: 286 | L44: -0.7291787534 | N44: -0.7291787534
B45: ='L. DVA'!$B$175 -> Rate Rider Calculation for Accounts 1568 | D45: per kWh | G45: 286 | H45: 0 | J45: ='L. DVA'!F181 -> 0.0001857443386 | K45: 286 | L45: 0.05312288084 | N45: 0.05312288084
B46: Low Voltage Charges | D46: per kWh | F46: 0.0011 | G46: 286 | H46: 0.3146 | J46: 0.0011 | K46: 286 | L46: 0.3146 | N46: 0 | O46: =IF((H46)=0,"",(N46/H46)) -> 0
B47: Line Losses on Cost of Power | D47: per kWh | F47: =IF(ISBLANK(D16)=1, 0, IF(D16="TOU", 0.64*$F$57+0.18*$F$58+0.18*$F$59, IF(AND(D16="non-TOU", G61>0), F61,F60))) -> 0.10766 | G47: =$F$18*(1+$F$76)-$F$18 -> 23.166 | H47: 2.49405156 | J47: =0.64*$F$57+0.18*$F$58+0.18*$F$59 -> 0.10766 | K47: =$F$18*(1+$J$76)-$F$18 -> 23.166 | L47: 2.49405156 | N47: 0 | O47: 0
B48: Smart Meter Entity Charge | D48: per kWh | F48: 0.79 | G48: 1 | H48: 0.79 | J48: 0.79 | K48: 1 | L48: 0.79 | N48: 0
B49: Sub-Total B - Distribution (includes Sub-Total A) | H49: =SUM(H40:H48)+H39 -> 21.71565156 | L49: =SUM(L40:L48)+L39 -> 26.53905434 | N49: 4.823402784 | O49: =IF((H49)=0,"",(N49/H49)) -> 0.2221164201
B50: RTSR - Network | D50: per kWh | F50: ='B. CurrentTariff'!C45 -> 0.0064 | G50: =F18*(1+F76) -> 309.166 | H50: =G50*F50 -> 1.9786624 | J50: 0.00640525801 | K50: =F18*(1+J76) -> 309.166 | L50: =K50*J50 -> 1.980287998 | N50: 0.001625597969 | O50: 0.0008215640873
B51: RTSR - Line and Transformation Connection | D51: per kWh | F51: ='B. CurrentTariff'!C46 -> 0.0033 | G51: =G50 -> 309.166 | H51: =G51*F51 -> 1.0202478 | J51: 0.003468524144 | K51: =K50 -> 309.166 | L51: =K51*J51 -> 1.072349735 | N51: 0.05210193548 | O51: 0.0510679224
B52: Sub-Total C - Delivery (including Sub-Total B) | H52: =SUM(H49:H51) -> 24.71456176 | L52: =SUM(L49:L51) -> 29.59169208 | N52: 4.877130318 | O52: 0.1973383289
B53: Wholesale Market Service Charge (WMSC) | D53: per kWh | F53: 0.0036 | G53: =G51 -> 309.166 | H53: =G53*F53 -> 1.1129976 | J53: 0.0036 | K53: =K51 -> 309.166 | L53: =K53*J53 -> 1.1129976 | N53: 0 | O53: 0
B54: Rural and Remote Rate Protection (RRRP) | D54: per kWh | F54: 0.0013 | G54: =G51 -> 309.166 | H54: 0.4019158 | J54: 0.0013 | K54: =K51 -> 309.166 | L54: 0.4019158 | N54: 0 | O54: 0
B55: Standard Supply Service Charge | D55: Monthly | F55: 0.25 | G55: 1 | H55: 0.25 | J55: 0.25 | K55: 1 | L55: 0.25 | N55: 0 | O55: 0
B56: OEAP | D56: per kWh | F56: 0.0011 | G56: =F18 -> 286 | H56: 0.3146 | J56: 0.0011 | K56: =F18 -> 286 | L56: 0.3146 | N56: 0 | O56: 0
B57: TOU - Off Peak | D57: per kWh | F57: 0.083 | G57: =0.64*$F$18 -> 183.04 | H57: 15.19232 | J57: 0.083 | K57: =G57 -> 183.04 | L57: 15.19232 | N57: 0 | O57: 0
B58: TOU - Mid Peak | D58: per kWh | F58: 0.128 | G58: =0.18*$F$18 -> 51.48 | H58: 6.58944 | J58: 0.128 | K58: =G58 -> 51.48 | L58: 6.58944 | N58: 0 | O58: 0
B59: TOU - On Peak | D59: per kWh | F59: 0.175 | G59: =0.18*$F$18 -> 51.48 | H59: 9.009 | J59: 0.175 | K59: =G59 -> 51.48 | L59: 9.009 | N59: 0 | O59: 0
B60: Energy - RPP - Tier 1 | D60: per kWh | F60: 0.099 | G60: =IF(AND($T$1=1, F18>=600), 600, IF(AND($T$1=1, AND(F18<600, F18>=0)), F18, IF(AND($T$1=2, F18>=1000), 1000, IF(AND($T$1=2, AND(F18<1000, F18>=0)), F18)))) -> 286 | H60: =G60*F60 -> 28.314 | J60: 0.099 | K60: =G60 -> 286 | L60: =K60*J60 -> 28.314 | N60: 0 | O60: 0
B61: Energy - RPP - Tier 2 | D61: per kWh | F61: 0.116 | G61: =IF(AND($T$1=1, F18>=600), F18-600, IF(AND($T$1=1, AND(F18<600, F18>=0)), 0, IF(AND($T$1=2, F18>=1000), F18-1000, IF(AND($T$1=2, AND(F18<1000, F18>=0)), 0)))) -> 0 | H61: =G61*F61 -> 0 | J61: 0.116 | K61: =G61 -> 0 | L61: =K61*J61 -> 0 | N61: 0
B63: Total Bill on TOU (before Taxes) | H63: =SUM(H53:H59,H52) -> 57.58483516 | L63: =SUM(L53:L59,L52) -> 62.46196548 | N63: =L63-H63 -> 4.877130318 | O63: =IF((H63)=0,"",(N63/H63)) -> 0.08469469964
B64: HST | F64: 0.13 | H64: =H63*F64 -> 7.486028571 | J64: 0.13 | L64: =L63*J64 -> 8.120055512 | N64: 0.6340269413 | O64: 0.08469469964
B65: Total Bill (including HST) | H65: =H63+H64 -> 65.07086373 | L65: =L63+L64 -> 70.58202099 | N65: 5.511157259 | O65: 0.08469469964
B66: Ontario Clean Energy Benefit 1 | H66: =ROUND(-H65*0.1,2) -> -6.51 | L66: =ROUND(-L65*0.1,2) -> -7.06 | N66: -0.55 | O66: 0.08448540707
B67: Total Bill on TOU (including OCEB) | H67: =H65+H66 -> 58.56086373 | L67: =L65+L66 -> 63.52202099 | N67: 4.961157259 | O67: 0.08471796594
B69: Total Bill on RPP (before Taxes) | H69: =SUM(H60:H61,H52,H53:H56) -> 55.10807516 | L69: =SUM(L60:L61,L52,L53:L56) -> 59.98520548 | N69: =L69-H69 -> 4.877130318 | O69: =IF((H69)=0,"",(N69/H69)) -> 0.08850119159
B70: HST | F70: 0.13 | H70: =H69*F70 -> 7.164049771 | J70: 0.13 | L70: =L69*J70 -> 7.798076712 | N70: =L70-H70 -> 0.6340269413 | O70: =IF((H70)=0,"",(N70/H70)) -> 0.08850119159
B71: Total Bill (including HST) | H71: =H69+H70 -> 62.27212493 | L71: =L69+L70 -> 67.78328219 | N71: =L71-H71 -> 5.511157259 | O71: =IF((H71)=0,"",(N71/H71)) -> 0.08850119159
B72: Ontario Clean Energy Benefit 1 | H72: =ROUND(-H71*0.1,2) -> -6.23 | L72: =ROUND(-L71*0.1,2) -> -6.78 | N72: =L72-H72 -> -0.55 | O72: =IF((H72)=0,"",(N72/H72)) -> 0.08828250401
B73: Total Bill on RPP (including OCEB) | H73: =SUM(H71:H72) -> 56.04212493 | L73: =SUM(L71:L72) -> 61.00328219 | N73: =L73-H73 -> 4.961157259 | O73: =IF((H73)=0,"",(N73/H73)) -> 0.08852550229
B76: Loss Factor (%) | F76: 0.081 | J76: 0.081

Sheet Bill Impact - Residential
T1: 1
B10: Appendix 2-W
B11: Bill Impacts
B14: Customer Class: | D14: Residential
B16: TOU / non-TOU: | D16: TOU
D18: Consumption | F18: 750 | G18: kWh
F20: Current Board-Approved | J20: Proposed | N20: Impact
D21: Charge Unit | F21: Rate | G21: Volume | H21: Charge | J21: Rate | K21: Volume | L21: Charge | N21: $ Change | O21: % Change
F22: ($) | H22: ($) | J22: ($) | L22: ($)
B23: Monthly Service Charge | D23: Monthly | F23: ='B. CurrentTariff'!C32 -> 13.97 | G23: 1 | H23: =G23*F23 -> 13.97 | J23: ='G. RateDesign'!B46 -> 17.91 | K23: 1 | L23: =K23*J23 -> 17.91 | N23: =L23-H23 -> 3.94 | O23: =IF((H23)=0,"",(N23/H23)) -> 0.2820329277
B24: Smart Meter Rate Adder | G24: 1 | H24: =G24*F24 -> 0 | K24: 1 | L24: =K24*J24 -> 0 | N24: =L24-H24 -> 0 | O24: =IF((H24)=0,"",(N24/H24)) -> 
B25: Stranded Meter Rate Rider | D25: Monthly | G25: 1 | H25: 0 | J25: ='K. SMRR'!G13 -> 0.1361316 | K25: 1 | L25: =K25*J25 -> 0.1361316 | N25: =L25-H25 -> 0.1361316 | O25: =IF((H25)=0,"",(N25/H25)) -> 
B26: Smart Meter Disposition Rider | G26: 1 | H26: 0 | J26: 1.42 | K26: 1 | L26: 1.42 | N26: 1.42
G27: 1 | H27: 0 | K27: 1 | L27: 0 | N27: 0
G28: 1 | H28: 0 | K28: 1 | L28: 0 | N28: 0
B29: Distribution Volumetric Rate | D29: per kWh | F29: ='B. CurrentTariff'!C33 -> 0.0145 | G29: =$F$18 -> 750 | H29: 10.875 | J29: ='G. RateDesign'!G46 -> 0.01397668922 | K29: =$F$18 -> 750 | L29: 10.48251692 | N29: -0.3924830845 | O29: -0.03609039858
B30: Smart Meter Disposition Rider | D30: per kWh | G30: 750 | H30: 0 | K30: =$F$18 -> 750 | L30: 0 | N30: 0
B31: LRAM & SSM Rate Rider | D31: per kWh | G31: 750 | H31: 0 | K31: 750 | L31: 0 | N31: 0
G32: 750 | H32: =G32*F32 -> 0 | K32: 750 | L32: =K32*J32 -> 0 | N32: =L32-H32 -> 0 | O32: =IF((H32)=0,"",(N32/H32)) -> 
G33: 750 | H33: =G33*F33 -> 0 | K33: 750 | L33: =K33*J33 -> 0 | N33: =L33-H33 -> 0 | O33: =IF((H33)=0,"",(N33/H33)) -> 
G34: 750 | H34: =G34*F34 -> 0 | K34: 750 | L34: =K34*J34 -> 0 | N34: =L34-H34 -> 0 | O34: =IF((H34)=0,"",(N34/H34)) -> 
G35: 750 | H35: 0 | K35: 750 | L35: 0 | N35: 0
G36: 750 | H36: 0 | K36: 750 | L36: 0 | N36: 0
G37: 750 | H37: 0 | K37: 750 | L37: 0 | N37: 0
G38: 750 | H38: 0 | K38: 750 | L38: 0 | N38: 0
B39: Sub-Total A (excluding pass through) | H39: =SUM(H23:H38) -> 24.845 | L39: =SUM(L23:L38) -> 29.94864852 | N39: 5.103648515 | O39: 0.2054195418
B40: ='L. DVA'!$B$16 -> Rate Rider Calculation for Deferral / Variance Accounts Balances (excluding Global Adj.) | D40: per kWh | G40: =$F$18 -> 750 | H40: =G40*F40 -> 0 | J40: ='L. DVA'!F20 -> 0.0003403795305 | K40: =$F$18 -> 750 | L40: =K40*J40 -> 0.2552846479 | N40: =L40-H40 -> 0.2552846479
B41: ='L. DVA'!$B$42 -> Rate Rider Calculation for Deferral / Variance Accounts Balances (excluding Global Adj.) - NON-WMP | D41: per kWh | G41: 750 | H41: 0 | J41: ='L. DVA'!F46 -> -0.0001611198572 | K41: 750 | L41: -0.1208398929 | N41: -0.1208398929
B42: ='L. DVA'!$B$68 -> Rate Rider Calculation for RSVA - Power - Global Adjustment | D42: per kWh | G42: 750 | K42: 750 | L42: 0 | N42: 0
B43: ='L. DVA'!$B$121 -> Rate Rider Calculation for Group 2 Accounts | D43: Monthly | G43: 750 | J43: ='L. DVA'!F125 -> 0.1017256732 | K43: 1 | L43: 0.1017256732 | N43: 0.1017256732
B44: ='L. DVA'!$B$147 -> Rate Rider Calculation for Accounts 1575 and 1576 | D44: per kWh | G44: 750 | H44: 0 | J44: ='L. DVA'!F153 -> -0.002549576061 | K44: 750 | L44: -1.912182046 | N44: -1.912182046
B45: ='L. DVA'!$B$175 -> Rate Rider Calculation for Accounts 1568 | D45: per kWh | G45: 750 | H45: 0 | J45: ='L. DVA'!F181 -> 0.0001857443386 | K45: 750 | L45: 0.139308254 | N45: 0.139308254
B46: Low Voltage Charges | D46: per kWh | F46: 0.0011 | G46: 750 | H46: 0.825 | J46: 0.0011 | K46: 750 | L46: 0.825 | N46: 0 | O46: =IF((H46)=0,"",(N46/H46)) -> 0
B47: Line Losses on Cost of Power | D47: per kWh | F47: =IF(ISBLANK(D16)=1, 0, IF(D16="TOU", 0.64*$F$57+0.18*$F$58+0.18*$F$59, IF(AND(D16="non-TOU", G61>0), F61,F60))) -> 0.10766 | G47: =$F$18*(1+$F$76)-$F$18 -> 60.75 | H47: 6.540345 | J47: =0.64*$F$57+0.18*$F$58+0.18*$F$59 -> 0.10766 | K47: =$F$18*(1+$J$76)-$F$18 -> 60.75 | L47: 6.540345 | N47: 0 | O47: 0
B48: Smart Meter Entity Charge | D48: per kWh | F48: 0.79 | G48: 1 | H48: 0.79 | J48: 0.79 | K48: 1 | L48: 0.79 | N48: 0
B49: Sub-Total B - Distribution (includes Sub-Total A) | H49: =SUM(H40:H48)+H39 -> 33.000345 | L49: =SUM(L40:L48)+L39 -> 36.56729015 | N49: 3.566945152 | O49: =IF((H49)=0,"",(N49/H49)) -> 0.108088117
B50: RTSR - Network | D50: per kWh | F50: ='B. CurrentTariff'!C45 -> 0.0064 | G50: =F18*(1+F76) -> 810.75 | H50: =G50*F50 -> 5.1888 | J50: 0.00640525801 | K50: =F18*(1+J76) -> 810.75 | L50: =K50*J50 -> 5.193062932 | N50: 0.004262931736 | O50: 0.0008215640873
B51: RTSR - Line and Transformation Connection | D51: per kWh | F51: ='B. CurrentTariff'!C46 -> 0.0033 | G51: =G50 -> 810.75 | H51: =G51*F51 -> 2.675475 | J51: 0.003468524144 | K51: =K50 -> 810.75 | L51: =K51*J51 -> 2.81210595 | N51: 0.1366309497 | O51: 0.0510679224
B52: Sub-Total C - Delivery (including Sub-Total B) | H52: =SUM(H49:H51) -> 40.86462 | L52: =SUM(L49:L51) -> 44.57245903 | N52: 3.707839034 | O52: 0.09073469993
B53: Wholesale Market Service Charge (WMSC) | D53: per kWh | F53: 0.0036 | G53: =G51 -> 810.75 | H53: =G53*F53 -> 2.9187 | J53: 0.0036 | K53: =K51 -> 810.75 | L53: =K53*J53 -> 2.9187 | N53: 0 | O53: 0
B54: Rural and Remote Rate Protection (RRRP) | D54: per kWh | F54: 0.0013 | G54: =G51 -> 810.75 | H54: 1.053975 | J54: 0.0013 | K54: =K51 -> 810.75 | L54: 1.053975 | N54: 0 | O54: 0
B55: Standard Supply Service Charge | D55: Monthly | F55: 0.25 | G55: 1 | H55: 0.25 | J55: 0.25 | K55: 1 | L55: 0.25 | N55: 0 | O55: 0
B56: OEAP | D56: per kWh | F56: 0.0011 | G56: =F18 -> 750 | H56: 0.825 | J56: 0.0011 | K56: =F18 -> 750 | L56: 0.825 | N56: 0 | O56: 0
B57: TOU - Off Peak | D57: per kWh | F57: 0.083 | G57: =0.64*$F$18 -> 480 | H57: 39.84 | J57: 0.083 | K57: =G57 -> 480 | L57: 39.84 | N57: 0 | O57: 0
B58: TOU - Mid Peak | D58: per kWh | F58: 0.128 | G58: =0.18*$F$18 -> 135 | H58: 17.28 | J58: 0.128 | K58: =G58 -> 135 | L58: 17.28 | N58: 0 | O58: 0
B59: TOU - On Peak | D59: per kWh | F59: 0.175 | G59: =0.18*$F$18 -> 135 | H59: 23.625 | J59: 0.175 | K59: =G59 -> 135 | L59: 23.625 | N59: 0 | O59: 0
B60: Energy - RPP - Tier 1 | D60: per kWh | F60: 0.099 | G60: =IF(AND($T$1=1, F18>=600), 600, IF(AND($T$1=1, AND(F18<600, F18>=0)), F18, IF(AND($T$1=2, F18>=1000), 1000, IF(AND($T$1=2, AND(F18<1000, F18>=0)), F18)))) -> 600 | H60: =G60*F60 -> 59.4 | J60: 0.099 | K60: =G60 -> 600 | L60: =K60*J60 -> 59.4 | N60: 0 | O60: 0
B61: Energy - RPP - Tier 2 | D61: per kWh | F61: 0.116 | G61: =IF(AND($T$1=1, F18>=600), F18-600, IF(AND($T$1=1, AND(F18<600, F18>=0)), 0, IF(AND($T$1=2, F18>=1000), F18-1000, IF(AND($T$1=2, AND(F18<1000, F18>=0)), 0)))) -> 150 | H61: =G61*F61 -> 17.4 | J61: 0.116 | K61: =G61 -> 150 | L61: =K61*J61 -> 17.4 | N61: 0 | O61: 0
B63: Total Bill on TOU (before Taxes) | H63: =SUM(H53:H59,H52) -> 126.657295 | L63: =SUM(L53:L59,L52) -> 130.365134 | N63: =L63-H63 -> 3.707839034 | O63: =IF((H63)=0,"",(N63/H63)) -> 0.02927457936
B64: HST | F64: 0.13 | H64: =H63*F64 -> 16.46544835 | J64: 0.13 | L64: =L63*J64 -> 16.94746742 | N64: 0.4820190744 | O64: 0.02927457936
B65: Total Bill (including HST) | H65: =H63+H64 -> 143.1227434 | L65: =L63+L64 -> 147.3126015 | N65: 4.189858108 | O65: 0.02927457936
B66: Ontario Clean Energy Benefit 1 | H66: =ROUND(-H65*0.1,2) -> -14.31 | L66: =ROUND(-L65*0.1,2) -> -14.73 | N66: -0.42 | O66: 0.02935010482
B67: Total Bill on TOU (including OCEB) | H67: =H65+H66 -> 128.8127434 | L67: =L65+L66 -> 132.5826015 | N67: 3.769858108 | O67: 0.02926618912
B69: Total Bill on RPP (before Taxes) | H69: =SUM(H60:H61,H52,H53:H56) -> 122.712295 | L69: =SUM(L60:L61,L52,L53:L56) -> 126.420134 | N69: =L69-H69 -> 3.707839034 | O69: =IF((H69)=0,"",(N69/H69)) -> 0.0302157093
B70: HST | F70: 0.13 | H70: =H69*F70 -> 15.95259835 | J70: 0.13 | L70: =L69*J70 -> 16.43461742 | N70: =L70-H70 -> 0.4820190744 | O70: =IF((H70)=0,"",(N70/H70)) -> 0.0302157093
B71: Total Bill (including HST) | H71: =H69+H70 -> 138.6648933 | L71: =L69+L70 -> 142.8547515 | N71: =L71-H71 -> 4.189858108 | O71: =IF((H71)=0,"",(N71/H71)) -> 0.0302157093
B72: Ontario Clean Energy Benefit 1 | H72: =ROUND(-H71*0.1,2) -> -13.87 | L72: =ROUND(-L71*0.1,2) -> -14.29 | N72: =L72-H72 -> -0.42 | O72: =IF((H72)=0,"",(N72/H72)) -> 0.03028118241
B73: Total Bill on RPP (including OCEB) | H73: =SUM(H71:H72) -> 124.7948933 | L73: =SUM(L71:L72) -> 128.5647515 | N73: =L73-H73 -> 3.769858108 | O73: =IF((H73)=0,"",(N73/H73)) -> 0.03020843247
B76: Loss Factor (%) | F76: 0.081 | J76: 0.081

Sheet Bill Impact - GS<50
T1: 1
B10: Appendix 2-W
B11: Bill Impacts
B14: Customer Class: | D14: General Service < 50KW
B16: TOU / non-TOU: | D16: TOU
D18: Consumption | F18: 2000 | G18: kWh
F20: Current Board-Approved | J20: Proposed | N20: Impact
D21: Charge Unit | F21: Rate | G21: Volume | H21: Charge | J21: Rate | K21: Volume | L21: Charge | N21: $ Change | O21: % Change
F22: ($) | H22: ($) | J22: ($) | L22: ($)
B23: Monthly Service Charge | D23: Monthly | F23: ='B. CurrentTariff'!C53 -> 31.25 | G23: 1 | H23: =G23*F23 -> 31.25 | J23: ='G. RateDesign'!B47 -> 31.25 | K23: 1 | L23: =K23*J23 -> 31.25 | N23: =L23-H23 -> 0 | O23: =IF((H23)=0,"",(N23/H23)) -> 0
B24: Smart Meter Rate Adder | G24: 1 | H24: =G24*F24 -> 0 | K24: 1 | L24: =K24*J24 -> 0 | N24: =L24-H24 -> 0 | O24: =IF((H24)=0,"",(N24/H24)) -> 
B25: Stranded Meter Rate Rider | D25: Monthly | G25: 1 | H25: 0 | J25: ='K. SMRR'!G14 -> 0.2435662264 | K25: 1 | L25: =K25*J25 -> 0.2435662264 | N25: =L25-H25 -> 0.2435662264 | O25: =IF((H25)=0,"",(N25/H25)) -> 
B26: Smart Meter Disposition Rider | D26: Monthly | G26: 1 | H26: 0 | J26: 3.1 | K26: 1 | L26: 3.1 | N26: 3.1
G27: 1 | H27: 0 | K27: 1 | L27: 0 | N27: 0
G28: 1 | H28: 0 | K28: 1 | L28: 0 | N28: 0
B29: Distribution Volumetric Rate | D29: per kWh | F29: ='B. CurrentTariff'!C54 -> 0.0137 | G29: =$F$18 -> 2000 | H29: 27.4 | J29: ='G. RateDesign'!G47 -> 0.01804024095 | K29: =$F$18 -> 2000 | L29: 36.08048189 | N29: 8.68048189 | O29: 0.3168059084
B30: Smart Meter Disposition Rider | D30: per kWh | G30: 2000 | H30: 0 | K30: =$F$18 -> 2000 | L30: 0 | N30: 0
B31: LRAM & SSM Rate Rider | D31: per kWh | G31: 2000 | H31: 0 | K31: 2000 | L31: 0 | N31: 0
G32: 2000 | H32: =G32*F32 -> 0 | K32: 2000 | L32: =K32*J32 -> 0 | N32: =L32-H32 -> 0 | O32: =IF((H32)=0,"",(N32/H32)) -> 
G33: 2000 | H33: =G33*F33 -> 0 | K33: 2000 | L33: =K33*J33 -> 0 | N33: =L33-H33 -> 0 | O33: =IF((H33)=0,"",(N33/H33)) -> 
G34: 2000 | H34: =G34*F34 -> 0 | K34: 2000 | L34: =K34*J34 -> 0 | N34: =L34-H34 -> 0 | O34: =IF((H34)=0,"",(N34/H34)) -> 
G35: 2000 | H35: 0 | K35: 2000 | L35: 0 | N35: 0
G36: 2000 | H36: 0 | K36: 2000 | L36: 0 | N36: 0
G37: 2000 | H37: 0 | K37: 2000 | L37: 0 | N37: 0
G38: 2000 | H38: 0 | K38: 2000 | L38: 0 | N38: 0
B39: Sub-Total A (excluding pass through) | H39: =SUM(H23:H38) -> 58.65 | L39: =SUM(L23:L38) -> 70.67404812 | N39: 12.02404812 | O39: 0.2050136081
B40: ='L. DVA'!$B$16 -> Rate Rider Calculation for Deferral / Variance Accounts Balances (excluding Global Adj.) | D40: per kWh | G40: =$F$18 -> 2000 | H40: =G40*F40 -> 0 | J40: ='L. DVA'!F21 -> 0.0003403019952 | K40: =$F$18 -> 2000 | L40: =K40*J40 -> 0.6806039904 | N40: =L40-H40 -> 0.6806039904 | O40: =IF((H40)=0,"",(N40/H40)) -> 
B41: ='L. DVA'!$B$42 -> Rate Rider Calculation for Deferral / Variance Accounts Balances (excluding Global Adj.) - NON-WMP | D41: per kWh | G41: 2000 | H41: 0 | J41: ='L. DVA'!F47 -> -0.0001611198572 | K41: 2000 | L41: -0.3222397143 | N41: -0.3222397143 | O41: =IF((H41)=0,"",(N41/H41)) -> 
B42: ='L. DVA'!$B$68 -> Rate Rider Calculation for RSVA - Power - Global Adjustment | G42: 2000 | J42: 0 | K42: 2000 | L42: 0 | N42: 0
B43: ='L. DVA'!$B$121 -> Rate Rider Calculation for Group 2 Accounts | G43: 2000 | J43: ='L. DVA'!F126 -> 0.0001618234193 | K43: 2000 | L43: 0.3236468386 | N43: 0.3236468386
B44: ='L. DVA'!$B$147 -> Rate Rider Calculation for Accounts 1575 and 1576 | D44: per kWh | G44: 2000 | H44: 0 | J44: ='L. DVA'!F154 -> -0.002549576061 | K44: 2000 | L44: -5.099152122 | N44: -5.099152122 | O44: =IF((H44)=0,"",(N44/H44)) -> 
B45: ='L. DVA'!$B$175 -> Rate Rider Calculation for Accounts 1568 | D45: per kWh | G45: 2000 | H45: 0 | J45: ='L. DVA'!F182 -> 0.0001857443386 | K45: 2000 | L45: 0.3714886772 | N45: 0.3714886772 | O45: =IF((H45)=0,"",(N45/H45)) -> 
B46: Low Voltage Charges | D46: per kWh | F46: ='B. CurrentTariff'!C56 -> 0.001 | G46: 2000 | H46: 2 | J46: 0.001 | K46: 2000 | L46: 2 | N46: 0 | O46: =IF((H46)=0,"",(N46/H46)) -> 0
B47: Line Losses on Cost of Power | D47: per kWh | F47: =IF(ISBLANK(D16)=1, 0, IF(D16="TOU", 0.64*$F$57+0.18*$F$58+0.18*$F$59, IF(AND(D16="non-TOU", G61>0), F61,F60))) -> 0.10766 | G47: =$F$18*(1+$F$76)-$F$18 -> 162 | H47: 17.44092 | J47: =0.64*$F$57+0.18*$F$58+0.18*$F$59 -> 0.10766 | K47: =$F$18*(1+$J$76)-$F$18 -> 162 | L47: =K47*J47 -> 17.44092 | N47: 0 | O47: 0
B48: Smart Meter Entity Charge | D48: per kWh | F48: 0.79 | G48: 1 | H48: 0.79 | J48: 0.79 | K48: 1 | L48: =K48*J48 -> 0.79 | N48: 0
B49: Sub-Total B - Distribution (includes Sub-Total A) | H49: =SUM(H40:H48)+H39 -> 78.88092 | L49: =SUM(L40:L48)+L39 -> 86.85931579 | N49: 7.978395787 | O49: =IF((H49)=0,"",(N49/H49)) -> 0.1011448115
B50: RTSR - Network | D50: per kWh | F50: 0.0058 | G50: =F18*(1+F76) -> 2162 | H50: =G50*F50 -> 12.5396 | J50: 0.005804764861 | K50: =F18*(1+J76) -> 2162 | L50: =K50*J50 -> 12.54990163 | N50: 0.01030163037 | O50: 0.0008215278291
B51: RTSR - Line and Transformation Connection | D51: per kWh | F51: 0.004 | G51: =G50 -> 2162 | H51: =G51*F51 -> 8.648 | J51: 0.00325831043 | K51: =K50 -> 2162 | L51: =K51*J51 -> 7.04446715 | N51: -1.60353285 | O51: -0.1854223924
B52: Sub-Total C - Delivery (including Sub-Total B) | H52: =SUM(H49:H51) -> 100.06852 | L52: =SUM(L49:L51) -> 106.4536846 | N52: 6.385164568 | O52: 0.06380792449
B53: Wholesale Market Service Charge (WMSC) | D53: per kWh | F53: 0.0036 | G53: =G51 -> 2162 | H53: =G53*F53 -> 7.7832 | J53: 0.0036 | K53: =K51 -> 2162 | L53: =K53*J53 -> 7.7832 | N53: 0 | O53: 0
B54: Rural and Remote Rate Protection (RRRP) | D54: per kWh | F54: 0.0013 | G54: =G51 -> 2162 | H54: 2.8106 | J54: 0.0013 | K54: =K51 -> 2162 | L54: 2.8106 | N54: 0 | O54: 0
B55: Standard Supply Service Charge | D55: Monthly | F55: 0.25 | G55: 1 | H55: 0.25 | J55: 0.25 | K55: 1 | L55: 0.25 | N55: 0 | O55: 0
B56: OEAP | D56: per kWh | F56: 0.0011 | G56: =F18 -> 2000 | H56: 2.2 | J56: 0.0011 | K56: =F18 -> 2000 | L56: 2.2 | N56: 0 | O56: 0
B57: TOU - Off Peak | D57: per kWh | F57: 0.083 | G57: =0.64*$F$18 -> 1280 | H57: 106.24 | J57: 0.083 | K57: =G57 -> 1280 | L57: 106.24 | N57: 0 | O57: 0
B58: TOU - Mid Peak | D58: per kWh | F58: 0.128 | G58: =0.18*$F$18 -> 360 | H58: 46.08 | J58: 0.128 | K58: =G58 -> 360 | L58: 46.08 | N58: 0 | O58: 0
B59: TOU - On Peak | D59: per kWh | F59: 0.175 | G59: =0.18*$F$18 -> 360 | H59: 63 | J59: 0.175 | K59: =G59 -> 360 | L59: 63 | N59: 0 | O59: 0
B60: Energy - RPP - Tier 1 | D60: per kWh | F60: 0.099 | G60: =IF(AND($T$1=1, F18>=600), 600, IF(AND($T$1=1, AND(F18<600, F18>=0)), F18, IF(AND($T$1=2, F18>=1000), 1000, IF(AND($T$1=2, AND(F18<1000, F18>=0)), F18)))) -> 600 | H60: =G60*F60 -> 59.4 | J60: 0.099 | K60: =G60 -> 600 | L60: =K60*J60 -> 59.4 | N60: 0 | O60: 0
B61: Energy - RPP - Tier 2 | D61: per kWh | F61: 0.116 | G61: =IF(AND($T$1=1, F18>=600), F18-600, IF(AND($T$1=1, AND(F18<600, F18>=0)), 0, IF(AND($T$1=2, F18>=1000), F18-1000, IF(AND($T$1=2, AND(F18<1000, F18>=0)), 0)))) -> 1400 | H61: =G61*F61 -> 162.4 | J61: 0.116 | K61: =G61 -> 1400 | L61: =K61*J61 -> 162.4 | N61: 0 | O61: 0
B63: Total Bill on TOU (before Taxes) | H63: =SUM(H53:H59,H52) -> 328.43232 | L63: =SUM(L53:L59,L52) -> 334.8174846 | N63: =L63-H63 -> 6.385164568 | O63: =IF((H63)=0,"",(N63/H63)) -> 0.01944134051
B64: HST | F64: 0.13 | H64: =H63*F64 -> 42.6962016 | J64: 0.13 | L64: =L63*J64 -> 43.52627299 | N64: 0.8300713938 | O64: 0.01944134051
B65: Total Bill (including HST) | H65: =H63+H64 -> 371.1285216 | L65: =L63+L64 -> 378.3437576 | N65: 7.215235962 | O65: 0.01944134051
B66: Ontario Clean Energy Benefit 1 | H66: =ROUND(-H65*0.1,2) -> -37.11 | L66: =ROUND(-L65*0.1,2) -> -37.83 | N66: -0.72 | O66: 0.0194017785
B67: Total Bill on TOU (including OCEB) | H67: =H65+H66 -> 334.0185216 | L67: =L65+L66 -> 340.5137576 | N67: 6.495235962 | O67: 0.01944573591
B69: Total Bill on RPP (before Taxes) | H69: =SUM(H60:H61,H52,H53:H56) -> 334.91232 | L69: =SUM(L60:L61,L52,L53:L56) -> 341.2974846 | N69: =L69-H69 -> 6.385164568 | O69: =IF((H69)=0,"",(N69/H69)) -> 0.0190651827
B70: HST | F70: 0.13 | H70: =H69*F70 -> 43.5386016 | J70: 0.13 | L70: =L69*J70 -> 44.36867299 | N70: =L70-H70 -> 0.8300713938 | O70: =IF((H70)=0,"",(N70/H70)) -> 0.0190651827
B71: Total Bill (including HST) | H71: =H69+H70 -> 378.4509216 | L71: =L69+L70 -> 385.6661576 | N71: =L71-H71 -> 7.215235962 | O71: =IF((H71)=0,"",(N71/H71)) -> 0.0190651827
B72: Ontario Clean Energy Benefit 1 | H72: =ROUND(-H71*0.1,2) -> -37.85 | L72: =ROUND(-L71*0.1,2) -> -38.57 | N72: =L72-H72 -> -0.72 | O72: =IF((H72)=0,"",(N72/H72)) -> 0.01902245707
B73: Total Bill on RPP (including OCEB) | H73: =SUM(H71:H72) -> 340.6009216 | L73: =SUM(L71:L72) -> 347.0961576 | N73: =L73-H73 -> 6.495235962 | O73: =IF((H73)=0,"",(N73/H73)) -> 0.01906993067
B76: Loss Factor (%) | F76: 0.081 | J76: 0.081

Sheet Bill Impact - GS>50
T1: 1
B10: Appendix 2-W
B11: Bill Impacts
B14: Customer Class: | D14: General Service > 50KW
B16: TOU / non-TOU: | D16: TOU
D18: Consumption | F18: 100 | G18: kWh
F20: Current Board-Approved | J20: Proposed | N20: Impact
D21: Charge Unit | F21: Rate | G21: Volume | H21: Charge | J21: Rate | K21: Volume | L21: Charge | N21: $ Change | O21: % Change
F22: ($) | H22: ($) | J22: ($) | L22: ($)
B23: Monthly Service Charge | D23: Monthly | F23: ='B. CurrentTariff'!C74 -> 189.27 | G23: 1 | H23: =G23*F23 -> 189.27 | J23: ='G. RateDesign'!B48 -> 189.27 | K23: 1 | L23: =K23*J23 -> 189.27 | N23: =L23-H23 -> 0 | O23: =IF((H23)=0,"",(N23/H23)) -> 0
B24: Smart Meter Rate Adder | G24: 1 | H24: =G24*F24 -> 0 | K24: 1 | L24: =K24*J24 -> 0 | N24: =L24-H24 -> 0 | O24: =IF((H24)=0,"",(N24/H24)) -> 
B25: Stranded Meter Rate Rider | D25: Monthly | G25: 1 | H25: 0 | J25: ='K. SMRR'!G15 -> 4.822114333 | K25: 1 | L25: =K25*J25 -> 4.822114333 | N25: =L25-H25 -> 4.822114333 | O25: =IF((H25)=0,"",(N25/H25)) -> 
B26: Smart Meter Disposition Rider | G26: 1 | H26: 0 | J26: 11.6 | K26: 1 | L26: 11.6 | N26: 11.6
G27: 1 | H27: 0 | K27: 1 | L27: 0 | N27: 0
G28: 1 | H28: 0 | K28: 1 | L28: 0 | N28: 0
B29: Distribution Volumetric Rate | D29: per kW | F29: ='B. CurrentTariff'!C75 -> 2.5331 | G29: =$F$18 -> 100 | H29: 253.31 | J29: ='G. RateDesign'!G48 -> 3.192110116 | K29: =$F$18 -> 100 | L29: 319.2110116 | N29: 65.90101161 | O29: 0.2601595342
B30: Smart Meter Disposition Rider | D30: per kW | G30: 100 | H30: 0 | K30: =$F$18 -> 100 | L30: 0 | N30: 0
B31: LRAM & SSM Rate Rider | D31: per kW | G31: 100 | H31: 0 | K31: 100 | L31: 0 | N31: 0
G32: 100 | H32: =G32*F32 -> 0 | K32: 100 | L32: =K32*J32 -> 0 | N32: =L32-H32 -> 0 | O32: =IF((H32)=0,"",(N32/H32)) -> 
G33: 100 | H33: =G33*F33 -> 0 | K33: 100 | L33: =K33*J33 -> 0 | N33: =L33-H33 -> 0 | O33: =IF((H33)=0,"",(N33/H33)) -> 
G34: 100 | H34: =G34*F34 -> 0 | K34: 100 | L34: =K34*J34 -> 0 | N34: =L34-H34 -> 0 | O34: =IF((H34)=0,"",(N34/H34)) -> 
G35: 100 | H35: 0 | K35: 100 | L35: 0 | N35: 0
G36: 100 | H36: 0 | K36: 100 | L36: 0 | N36: 0
G37: 100 | H37: 0 | K37: 100 | L37: 0 | N37: 0
G38: 100 | H38: 0 | K38: 100 | L38: 0 | N38: 0
B39: Sub-Total A (excluding pass through) | H39: =SUM(H23:H38) -> 442.58 | L39: =SUM(L23:L38) -> 524.9031259 | N39: 82.32312594 | O39: 0.1860073341
B40: ='L. DVA'!$B$16 -> Rate Rider Calculation for Deferral / Variance Accounts Balances (excluding Global Adj.) | D40: per kW | G40: =$F$18 -> 100 | H40: =G40*F40 -> 0 | J40: ='L. DVA'!F22 -> 0.129486429 | K40: =$F$18 -> 100 | L40: =K40*J40 -> 12.9486429 | N40: =L40-H40 -> 12.9486429 | O40: =IF((H40)=0,"",(N40/H40)) -> 
B41: ='L. DVA'!$B$42 -> Rate Rider Calculation for Deferral / Variance Accounts Balances (excluding Global Adj.) - NON-WMP | D41: per kW | G41: 100 | H41: 0 | J41: ='L. DVA'!F48 -> -0.05929369461 | K41: 100 | L41: -5.929369461 | N41: -5.929369461
B42: ='L. DVA'!$B$68 -> Rate Rider Calculation for RSVA - Power - Global Adjustment | D42: per kWh | G42: 100 | J42: ='L. DVA'!F74 -> 0.3461697728 | K42: 100 | L42: 34.61697728 | N42: 34.61697728
B43: ='L. DVA'!$B$121 -> Rate Rider Calculation for Group 2 Accounts | D43: per kWh | G43: 100 | J43: ='L. DVA'!F127 -> 0.0595526124 | K43: 100 | L43: 5.95526124 | N43: 5.95526124
B44: ='L. DVA'!$B$147 -> Rate Rider Calculation for Accounts 1575 and 1576 | D44: per kW | G44: 100 | H44: 0 | J44: ='L. DVA'!F155 -> -0.9382691059 | K44: 100 | L44: -93.82691059 | N44: -93.82691059
B45: ='L. DVA'!$B$175 -> Rate Rider Calculation for Accounts 1568 | D45: per kW | G45: 100 | H45: 0 | J45: ='L. DVA'!F183 -> 0.06835574636 | K45: 100 | L45: 6.835574636 | N45: 6.835574636
B46: Low Voltage Charges | D46: per kW | F46: 0.3954 | G46: 100 | H46: 39.54 | J46: 0.3733 | K46: 100 | L46: 37.33 | N46: -2.21 | O46: -0.05589276682
B47: Line Losses on Cost of Power | D47: per kW | F47: =IF(ISBLANK(D16)=1, 0, IF(D16="TOU", 0.64*$F$57+0.18*$F$58+0.18*$F$59, IF(AND(D16="non-TOU", G61>0), F61,F60))) -> 0.10766 | G47: =$F$18*(1+$F$76)-$F$18 -> 8.1 | H47: 0.872046 | J47: =0.64*$F$57+0.18*$F$58+0.18*$F$59 -> 0.10766 | K47: =$F$18*(1+$J$76)-$F$18 -> 8.1 | L47: 0.872046 | N47: 0 | O47: 0
B48: Smart Meter Entity Charge | D48: per kW | F48: 0.79 | G48: 1 | H48: 0.79 | J48: 0.79 | K48: 1 | L48: 0.79 | N48: 0
B49: Sub-Total B - Distribution (includes Sub-Total A) | H49: =SUM(H40:H48)+H39 -> 483.782046 | L49: =SUM(L40:L48)+L39 -> 524.4953479 | N49: 40.71330195 | O49: =IF((H49)=0,"",(N49/H49)) -> 0.08415628956
B50: RTSR - Network | D50: per kW | F50: 2.3683 | G50: =F18*(1+F76) -> 108.1 | H50: =G50*F50 -> 256.01323 | J50: 2.368744446 | K50: =F18*(1+J76) -> 108.1 | L50: =K50*J50 -> 256.0612746 | N50: 0.04804460367 | O50: 0.0001876645346
B51: RTSR - Line and Transformation Connection | D51: per kW | F51: 1.5959 | G51: =G50 -> 108.1 | H51: =G51*F51 -> 172.51679 | J51: 1.215665252 | K51: =K50 -> 108.1 | L51: =K51*J51 -> 131.4134138 | N51: -41.10337625 | O51: -0.2382572516
B52: Sub-Total C - Delivery (including Sub-Total B) | H52: =SUM(H49:H51) -> 912.312066 | L52: =SUM(L49:L51) -> 911.9700363 | N52: -0.3420296969 | O52: -0.0003749042786
B53: Wholesale Market Service Charge (WMSC) | D53: per kWh | F53: 0.0036 | G53: =G51 -> 108.1 | H53: =G53*F53 -> 0.38916 | J53: 0.0036 | K53: =K51 -> 108.1 | L53: =K53*J53 -> 0.38916 | N53: 0 | O53: 0
B54: Rural and Remote Rate Protection (RRRP) | D54: per kWh | F54: 0.0013 | G54: =G51 -> 108.1 | H54: 0.14053 | J54: 0.0013 | K54: =K51 -> 108.1 | L54: 0.14053 | N54: 0 | O54: 0
B55: Standard Supply Service Charge | D55: Monthly | F55: 0.25 | G55: 1 | H55: 0.25 | J55: 0.25 | K55: 1 | L55: 0.25 | N55: 0 | O55: 0
B56: OEAP | D56: per kWh | F56: 0.0011 | G56: =F18 -> 100 | H56: 0.11 | J56: 0.0011 | K56: =F18 -> 100 | L56: 0.11 | N56: 0 | O56: 0
B57: TOU - Off Peak | D57: per kWh | F57: 0.083 | G57: =0.64*$F$18 -> 64 | H57: 5.312 | J57: 0.083 | K57: =G57 -> 64 | L57: 5.312 | N57: 0 | O57: 0
B58: TOU - Mid Peak | D58: per kWh | F58: 0.128 | G58: =0.18*$F$18 -> 18 | H58: 2.304 | J58: 0.128 | K58: =G58 -> 18 | L58: 2.304 | N58: 0 | O58: 0
B59: TOU - On Peak | D59: per kWh | F59: 0.175 | G59: =0.18*$F$18 -> 18 | H59: 3.15 | J59: 0.175 | K59: =G59 -> 18 | L59: 3.15 | N59: 0 | O59: 0
B60: Energy - RPP - Tier 1 | D60: per kWh | F60: 0.099 | G60: =IF(AND($T$1=1, F18>=600), 600, IF(AND($T$1=1, AND(F18<600, F18>=0)), F18, IF(AND($T$1=2, F18>=1000), 1000, IF(AND($T$1=2, AND(F18<1000, F18>=0)), F18)))) -> 100 | H60: =G60*F60 -> 9.9 | J60: 0.099 | K60: =G60 -> 100 | L60: =K60*J60 -> 9.9 | N60: 0 | O60: 0
B61: Energy - RPP - Tier 2 | D61: per kWh | F61: 0.116 | G61: =IF(AND($T$1=1, F18>=600), F18-600, IF(AND($T$1=1, AND(F18<600, F18>=0)), 0, IF(AND($T$1=2, F18>=1000), F18-1000, IF(AND($T$1=2, AND(F18<1000, F18>=0)), 0)))) -> 0 | H61: =G61*F61 -> 0 | J61: 0.116 | K61: =G61 -> 0 | L61: =K61*J61 -> 0 | N61: 0
B63: Total Bill on TOU (before Taxes) | H63: =SUM(H53:H59,H52) -> 923.967756 | L63: =SUM(L53:L59,L52) -> 923.6257263 | N63: =L63-H63 -> -0.3420296969 | O63: =IF((H63)=0,"",(N63/H63)) -> -0.0003701749273
B64: HST | F64: 0.13 | H64: =H63*F64 -> 120.1158083 | J64: 0.13 | L64: =L63*J64 -> 120.0713444 | N64: -0.0444638606 | O64: -0.0003701749273
B65: Total Bill (including HST) | H65: =H63+H64 -> 1044.083564 | L65: =L63+L64 -> 1043.697071 | N65: -0.3864935575 | O65: -0.0003701749273
B66: Ontario Clean Energy Benefit 1 | H66: =ROUND(-H65*0.1,2) -> -104.41 | L66: =ROUND(-L65*0.1,2) -> -104.37 | N66: 0.04 | O66: -0.0003831050666
B67: Total Bill on TOU (including OCEB) | H67: =H65+H66 -> 939.6735643 | L67: =L65+L66 -> 939.3270707 | N67: -0.3464935575 | O67: -0.0003687382201
B69: Total Bill on RPP (before Taxes) | H69: =SUM(H60:H61,H52,H53:H56) -> 923.101756 | L69: =SUM(L60:L61,L52,L53:L56) -> 922.7597263 | N69: =L69-H69 -> -0.3420296969 | O69: =IF((H69)=0,"",(N69/H69)) -> -0.0003705222038
B70: HST | F70: 0.13 | H70: =H69*F70 -> 120.0032283 | J70: 0.13 | L70: =L69*J70 -> 119.9587644 | N70: =L70-H70 -> -0.0444638606 | O70: =IF((H70)=0,"",(N70/H70)) -> -0.0003705222038
B71: Total Bill (including HST) | H71: =H69+H70 -> 1043.104984 | L71: =L69+L70 -> 1042.718491 | N71: =L71-H71 -> -0.3864935575 | O71: =IF((H71)=0,"",(N71/H71)) -> -0.0003705222038
B72: Ontario Clean Energy Benefit 1 | H72: =ROUND(-H71*0.1,2) -> -104.31 | L72: =ROUND(-L71*0.1,2) -> -104.27 | N72: =L72-H72 -> 0.04 | O72: =IF((H72)=0,"",(N72/H72)) -> -0.0003834723421
B73: Total Bill on RPP (including OCEB) | H73: =SUM(H71:H72) -> 938.7949843 | L73: =SUM(L71:L72) -> 938.4484907 | N73: =L73-H73 -> -0.3464935575 | O73: =IF((H73)=0,"",(N73/H73)) -> -0.0003690833072
B76: Loss Factor (%) | F76: 0.081 | J76: 0.081

Sheet Bill Impact - StreetLight
T1: 1
B10: Appendix 2-W
B11: Bill Impacts
B14: Customer Class: | D14: StreetLight
B16: TOU / non-TOU: | D16: TOU
D18: Consumption | F18: 115 | G18: kW
F20: Current Board-Approved | J20: Proposed | N20: Impact
D21: Charge Unit | F21: Rate | G21: Volume | H21: Charge | J21: Rate | K21: Volume | L21: Charge | N21: $ Change | O21: % Change
F22: ($) | H22: ($) | J22: ($) | L22: ($)
B23: Monthly Service Charge | D23: Monthly | F23: ='B. CurrentTariff'!C116 -> 2.95 | G23: 2300 | H23: =G23*F23 -> 6785 | J23: ='G. RateDesign'!B50 -> 2.82 | K23: 2300 | L23: =K23*J23 -> 6486 | N23: =L23-H23 -> -299 | O23: =IF((H23)=0,"",(N23/H23)) -> -0.04406779661
B24: Smart Meter Rate Adder | G24: 1 | H24: =G24*F24 -> 0 | K24: 1 | L24: =K24*J24 -> 0 | N24: =L24-H24 -> 0 | O24: =IF((H24)=0,"",(N24/H24)) -> 
G25: 1 | H25: 0 | K25: 1 | L25: =K25*J25 -> 0 | N25: =L25-H25 -> 0 | O25: =IF((H25)=0,"",(N25/H25)) -> 
G26: 1 | H26: 0 | K26: 1 | L26: 0 | N26: 0
G27: 1 | H27: 0 | K27: 1 | L27: 0 | N27: 0
G28: 1 | H28: 0 | K28: 1 | L28: 0 | N28: 0
B29: Distribution Volumetric Rate | D29: per kW | F29: ='B. CurrentTariff'!C117 -> 7.2483 | G29: =$F$18 -> 115 | H29: 833.5545 | J29: ='G. RateDesign'!G50 -> 6.924761714 | K29: =$F$18 -> 115 | L29: 796.3475971 | N29: -37.20690285 | O29: -0.04463643691
B30: Smart Meter Disposition Rider | D30: per kW | G30: 115 | H30: 0 | K30: =$F$18 -> 115 | L30: 0 | N30: 0
B31: LRAM & SSM Rate Rider | D31: per kW | G31: 115 | H31: 0 | K31: 115 | L31: 0 | N31: 0
B32: Stranded Meter Rate Rider | G32: 115 | H32: =G32*F32 -> 0 | K32: 115 | L32: =K32*J32 -> 0 | N32: =L32-H32 -> 0 | O32: =IF((H32)=0,"",(N32/H32)) -> 
G33: 115 | H33: =G33*F33 -> 0 | K33: 115 | L33: =K33*J33 -> 0 | N33: =L33-H33 -> 0 | O33: =IF((H33)=0,"",(N33/H33)) -> 
G34: 115 | H34: =G34*F34 -> 0 | K34: 115 | L34: =K34*J34 -> 0 | N34: =L34-H34 -> 0 | O34: =IF((H34)=0,"",(N34/H34)) -> 
G35: 115 | H35: 0 | K35: 115 | L35: 0 | N35: 0
G36: 115 | H36: 0 | K36: 115 | L36: 0 | N36: 0
G37: 115 | H37: 0 | K37: 115 | L37: 0 | N37: 0
G38: 115 | H38: 0 | K38: 115 | L38: 0 | N38: 0
B39: Sub-Total A (excluding pass through) | H39: =SUM(H23:H38) -> 7618.5545 | L39: =SUM(L23:L38) -> 7282.347597 | N39: -336.2069029 | O39: -0.04413001218
B40: ='L. DVA'!$B$16 -> Rate Rider Calculation for Deferral / Variance Accounts Balances (excluding Global Adj.) | D40: per kW | G40: =$F$18 -> 115 | H40: =G40*F40 -> 0 | J40: ='L. DVA'!F24 -> 0.126625639 | K40: =$F$18 -> 115 | L40: =K40*J40 -> 14.56194849 | N40: =L40-H40 -> 14.56194849 | O40: =IF((H40)=0,"",(N40/H40)) -> 
B41: ='L. DVA'!$B$42 -> Rate Rider Calculation for Deferral / Variance Accounts Balances (excluding Global Adj.) - NON-WMP | D41: per kW | G41: 115 | H41: 0 | J41: ='L. DVA'!F50 -> -0.05798369778 | K41: 115 | L41: -6.668125245 | N41: -6.668125245
B42: ='L. DVA'!$B$68 -> Rate Rider Calculation for RSVA - Power - Global Adjustment | D42: per kW | G42: 115 | J42: ='L. DVA'!F76 -> 0.3385217201 | K42: 115 | L42: 38.92999781 | N42: 38.92999781
B43: ='L. DVA'!$B$121 -> Rate Rider Calculation for Group 2 Accounts | D43: per kW | G43: 115 | J43: ='L. DVA'!F129 -> 0.05823689521 | K43: 115 | L43: 6.69724295 | N43: 6.69724295
B44: ='L. DVA'!$B$147 -> Rate Rider Calculation for Accounts 1575 and 1576 | D44: per kW | G44: 115 | H44: 0 | J44: ='L. DVA'!F157 -> -0.9175395907 | K44: 115 | L44: -105.5170529 | N44: -105.5170529
B45: ='L. DVA'!$B$175 -> Rate Rider Calculation for Accounts 1568 | D45: per kW | G45: 115 | H45: 0 | J45: ='L. DVA'!F185 -> 0.06684553838 | K45: 115 | L45: 7.687236914 | N45: 7.687236914
B46: Low Voltage Charges | D46: per kW | F46: 0.3057 | G46: 115 | H46: 35.1555 | J46: 0.2885 | K46: 115 | L46: 33.1775 | N46: -1.978 | O46: -0.05626431142
B47: Line Losses on Cost of Power | D47: per kW | F47: =IF(ISBLANK(D16)=1, 0, IF(D16="TOU", 0.64*$F$57+0.18*$F$58+0.18*$F$59, IF(AND(D16="non-TOU", G61>0), F61,F60))) -> 0.10766 | G47: =$F$18*(1+$F$76)-$F$18 -> 9.315 | H47: 1.0028529 | J47: =0.64*$F$57+0.18*$F$58+0.18*$F$59 -> 0.10766 | K47: =$F$18*(1+$J$76)-$F$18 -> 9.315 | L47: 1.0028529 | N47: 0 | O47: 0
B48: Smart Meter Entity Charge | D48: per kW | F48: 0.79 | G48: 1 | H48: 0.79 | J48: 0.79 | K48: 1 | L48: 0.79 | N48: 0
B49: Sub-Total B - Distribution (includes Sub-Total A) | H49: =SUM(H40:H48)+H39 -> 7655.502853 | L49: =SUM(L40:L48)+L39 -> 7273.009198 | N49: -382.4936549 | O49: =IF((H49)=0,"",(N49/H49)) -> -0.04996323066
B50: RTSR - Network | D50: per kW | F50: 1.786 | G50: =F18*(1+F76) -> 124.315 | H50: =G50*F50 -> 222.02659 | J50: 1.786368025 | K50: =F18*(1+J76) -> 124.315 | L50: =K50*J50 -> 222.072341 | N50: 0.0457510136 | O50: 0.0002060609659
B51: RTSR - Line and Transformation Connection | D51: per kW | F51: 1.2338 | G51: =G50 -> 124.315 | H51: =G51*F51 -> 153.379847 | J51: 0.9397608098 | K51: =K50 -> 124.315 | L51: =K51*J51 -> 116.8263651 | N51: -36.55348193 | O51: -0.2383199791
B52: Sub-Total C - Delivery (including Sub-Total B) | H52: =SUM(H49:H51) -> 8030.90929 | L52: =SUM(L49:L51) -> 7611.907904 | N52: -419.0013858 | O52: -0.05217359214
B53: Wholesale Market Service Charge (WMSC) | D53: per kWh | F53: 0.0036 | G53: =G51 -> 124.315 | H53: =G53*F53 -> 0.447534 | J53: 0.0036 | K53: =K51 -> 124.315 | L53: =K53*J53 -> 0.447534 | N53: 0 | O53: 0
B54: Rural and Remote Rate Protection (RRRP) | D54: per kWh | F54: 0.0013 | G54: =G51 -> 124.315 | H54: 0.1616095 | J54: 0.0013 | K54: =K51 -> 124.315 | L54: 0.1616095 | N54: 0 | O54: 0
B55: Standard Supply Service Charge | D55: Monthly | F55: 0.25 | G55: 1 | H55: 0.25 | J55: 0.25 | K55: 1 | L55: 0.25 | N55: 0 | O55: 0
B56: OEAP | D56: per kWh | F56: 0.0011 | G56: =F18 -> 115 | H56: 0.1265 | J56: 0.0011 | K56: =F18 -> 115 | L56: 0.1265 | N56: 0 | O56: 0
B57: TOU - Off Peak | D57: per kWh | F57: 0.083 | G57: =0.64*$F$18 -> 73.6 | H57: 6.1088 | J57: 0.083 | K57: =G57 -> 73.6 | L57: 6.1088 | N57: 0 | O57: 0
B58: TOU - Mid Peak | D58: per kWh | F58: 0.128 | G58: =0.18*$F$18 -> 20.7 | H58: 2.6496 | J58: 0.128 | K58: =G58 -> 20.7 | L58: 2.6496 | N58: 0 | O58: 0
B59: TOU - On Peak | D59: per kWh | F59: 0.175 | G59: =0.18*$F$18 -> 20.7 | H59: 3.6225 | J59: 0.175 | K59: =G59 -> 20.7 | L59: 3.6225 | N59: 0 | O59: 0
B60: Energy - RPP - Tier 1 | D60: per kWh | F60: 0.099 | G60: =IF(AND($T$1=1, F18>=600), 600, IF(AND($T$1=1, AND(F18<600, F18>=0)), F18, IF(AND($T$1=2, F18>=1000), 1000, IF(AND($T$1=2, AND(F18<1000, F18>=0)), F18)))) -> 115 | H60: =G60*F60 -> 11.385 | J60: 0.099 | K60: =G60 -> 115 | L60: =K60*J60 -> 11.385 | N60: 0 | O60: 0
B61: Energy - RPP - Tier 2 | D61: per kWh | F61: 0.116 | G61: =IF(AND($T$1=1, F18>=600), F18-600, IF(AND($T$1=1, AND(F18<600, F18>=0)), 0, IF(AND($T$1=2, F18>=1000), F18-1000, IF(AND($T$1=2, AND(F18<1000, F18>=0)), 0)))) -> 0 | H61: =G61*F61 -> 0 | J61: 0.116 | K61: =G61 -> 0 | L61: =K61*J61 -> 0 | N61: 0
B63: Total Bill on TOU (before Taxes) | H63: =SUM(H53:H59,H52) -> 8044.275833 | L63: =SUM(L53:L59,L52) -> 7625.274448 | N63: =L63-H63 -> -419.0013858 | O63: =IF((H63)=0,"",(N63/H63)) -> -0.05208689936
B64: HST | F64: 0.13 | H64: =H63*F64 -> 1045.755858 | J64: 0.13 | L64: =L63*J64 -> 991.2856782 | N64: -54.47018015 | O64: -0.05208689936
B65: Total Bill (including HST) | H65: =H63+H64 -> 9090.031692 | L65: =L63+L64 -> 8616.560126 | N65: -473.4715659 | O65: -0.05208689936
B66: Ontario Clean Energy Benefit 1 | H66: =ROUND(-H65*0.1,2) -> -909 | L66: =ROUND(-L65*0.1,2) -> -861.66 | N66: 47.34 | O66: -0.05207920792
B67: Total Bill on TOU (including OCEB) | H67: =H65+H66 -> 8181.031692 | L67: =L65+L66 -> 7754.900126 | N67: -426.1315659 | O67: -0.05208775396
B69: Total Bill on RPP (before Taxes) | H69: =SUM(H60:H61,H52,H53:H56) -> 8043.279933 | L69: =SUM(L60:L61,L52,L53:L56) -> 7624.278548 | N69: =L69-H69 -> -419.0013858 | O69: =IF((H69)=0,"",(N69/H69)) -> -0.05209334864
B70: HST | F70: 0.13 | H70: =H69*F70 -> 1045.626391 | J70: 0.13 | L70: =L69*J70 -> 991.1562112 | N70: =L70-H70 -> -54.47018015 | O70: =IF((H70)=0,"",(N70/H70)) -> -0.05209334864
B71: Total Bill (including HST) | H71: =H69+H70 -> 9088.906325 | L71: =L69+L70 -> 8615.434759 | N71: =L71-H71 -> -473.4715659 | O71: =IF((H71)=0,"",(N71/H71)) -> -0.05209334864
B72: Ontario Clean Energy Benefit 1 | H72: =ROUND(-H71*0.1,2) -> -908.89 | L72: =ROUND(-L71*0.1,2) -> -861.54 | N72: =L72-H72 -> 47.35 | O72: =IF((H72)=0,"",(N72/H72)) -> -0.05209651333
B73: Total Bill on RPP (including OCEB) | H73: =SUM(H71:H72) -> 8180.016325 | L73: =SUM(L71:L72) -> 7753.894759 | N73: =L73-H73 -> -426.1215659 | O73: =IF((H73)=0,"",(N73/H73)) -> -0.05209299701
B76: Loss Factor (%) | F76: 0.081 | J76: 0.081

Sheet Bill Impact - USL
T1: 1
B10: Appendix 2-W
B11: Bill Impacts
B14: Customer Class: | D14: USL
B16: TOU / non-TOU: | D16: TOU
D18: Consumption | F18: 1800 | G18: kWh
F20: Current Board-Approved | J20: Proposed | N20: Impact
D21: Charge Unit | F21: Rate | G21: Volume | H21: Charge | J21: Rate | K21: Volume | L21: Charge | N21: $ Change | O21: % Change
F22: ($) | H22: ($) | J22: ($) | L22: ($)
B23: Monthly Service Charge | D23: Monthly | F23: ='B. CurrentTariff'!C95 -> 43.63 | G23: 1 | H23: =G23*F23 -> 43.63 | J23: ='G. RateDesign'!B49 -> 39.62 | K23: 1 | L23: =K23*J23 -> 39.62 | N23: =L23-H23 -> -4.01 | O23: =IF((H23)=0,"",(N23/H23)) -> -0.09190923676
B24: Smart Meter Rate Adder | G24: 1 | H24: =G24*F24 -> 0 | K24: 1 | L24: =K24*J24 -> 0 | N24: =L24-H24 -> 0 | O24: =IF((H24)=0,"",(N24/H24)) -> 
G25: 1 | H25: 0 | K25: 1 | L25: =K25*J25 -> 0 | N25: =L25-H25 -> 0 | O25: =IF((H25)=0,"",(N25/H25)) -> 
G26: 1 | H26: 0 | K26: 1 | L26: 0 | N26: 0
G27: 1 | H27: 0 | K27: 1 | L27: 0 | N27: 0
G28: 1 | H28: 0 | K28: 1 | L28: 0 | N28: 0
B29: Distribution Volumetric Rate | D29: per kWh | F29: ='B. CurrentTariff'!C138 -> 0.002 | G29: =$F$18 -> 1800 | H29: 3.6 | J29: ='G. RateDesign'!G49 -> 0.008869071931 | K29: =$F$18 -> 1800 | L29: 15.96432948 | N29: 12.36432948 | O29: 3.434535966
B30: Smart Meter Disposition Rider | D30: per kWh | G30: 1800 | H30: 0 | K30: =$F$18 -> 1800 | L30: 0 | N30: 0
B31: LRAM & SSM Rate Rider | D31: per kWh | G31: 1800 | H31: 0 | K31: 1800 | L31: 0 | N31: 0
B32: Stranded Meter Rate Rider | G32: 1800 | H32: =G32*F32 -> 0 | K32: 1800 | L32: =K32*J32 -> 0 | N32: =L32-H32 -> 0 | O32: =IF((H32)=0,"",(N32/H32)) -> 
G33: 1800 | H33: =G33*F33 -> 0 | K33: 1800 | L33: =K33*J33 -> 0 | N33: =L33-H33 -> 0 | O33: =IF((H33)=0,"",(N33/H33)) -> 
G34: 1800 | H34: =G34*F34 -> 0 | K34: 1800 | L34: =K34*J34 -> 0 | N34: =L34-H34 -> 0 | O34: =IF((H34)=0,"",(N34/H34)) -> 
G35: 1800 | H35: 0 | K35: 1800 | L35: 0 | N35: 0
G36: 1800 | H36: 0 | K36: 1800 | L36: 0 | N36: 0
G37: 1800 | H37: 0 | K37: 1800 | L37: 0 | N37: 0
G38: 1800 | H38: 0 | K38: 1800 | L38: 0 | N38: 0
B39: Sub-Total A (excluding pass through) | H39: =SUM(H23:H38) -> 47.23 | L39: =SUM(L23:L38) -> 55.58432948 | N39: 8.354329477 | O39: 0.1768860783
B40: ='L. DVA'!$B$16 -> Rate Rider Calculation for Deferral / Variance Accounts Balances (excluding Global Adj.) | D40: per kWh | G40: =$F$18 -> 1800 | H40: =G40*F40 -> 0 | J40: ='L. DVA'!F23 -> 0.0003518558776 | K40: =$F$18 -> 1800 | L40: =K40*J40 -> 0.6333405796 | N40: =L40-H40 -> 0.6333405796 | O40: =IF((H40)=0,"",(N40/H40)) -> 
B41: ='L. DVA'!$B$42 -> Rate Rider Calculation for Deferral / Variance Accounts Balances (excluding Global Adj.) - NON-WMP | D41: per kWh | G41: 1800 | H41: 0 | J41: ='L. DVA'!F49 -> -0.0001611198572 | K41: 1800 | L41: -0.2900157429 | N41: -0.2900157429
B42: ='L. DVA'!$B$68 -> Rate Rider Calculation for RSVA - Power - Global Adjustment | D42: per kWh | G42: 1800 | J42: 0 | K42: 1800 | L42: 0 | N42: 0
B43: ='L. DVA'!$B$121 -> Rate Rider Calculation for Group 2 Accounts | D43: per kWh | G43: 1800 | J43: ='L. DVA'!F128 -> 0.0001618234193 | K43: 1800 | L43: 0.2912821547 | N43: 0.2912821547
B44: ='L. DVA'!$B$147 -> Rate Rider Calculation for Accounts 1575 and 1576 | D44: per kWh | G44: 1800 | H44: 0 | J44: ='L. DVA'!F156 -> -0.002549576061 | K44: 1800 | L44: -4.589236909 | N44: -4.589236909
B45: ='L. DVA'!$B$175 -> Rate Rider Calculation for Accounts 1568 | D45: per kWh | G45: 1800 | H45: 0 | J45: ='L. DVA'!F184 -> 0.0001857443386 | K45: 1800 | L45: 0.3343398095 | N45: 0.3343398095
B46: Low Voltage Charges | D46: per kWh | F46: 0.001 | G46: 1800 | H46: 1.8 | J46: 0.001 | K46: 1800 | L46: 1.8 | N46: 0 | O46: 0
B47: Line Losses on Cost of Power | D47: per kWh | F47: =IF(ISBLANK(D16)=1, 0, IF(D16="TOU", 0.64*$F$57+0.18*$F$58+0.18*$F$59, IF(AND(D16="non-TOU", G61>0), F61,F60))) -> 0.10766 | G47: =$F$18*(1+$F$76)-$F$18 -> 145.8 | H47: 15.696828 | J47: =0.64*$F$57+0.18*$F$58+0.18*$F$59 -> 0.10766 | K47: =$F$18*(1+$J$76)-$F$18 -> 145.8 | L47: 15.696828 | N47: 0 | O47: 0
B48: Smart Meter Entity Charge | D48: per kWh | F48: 0.79 | G48: 1 | H48: 0.79 | J48: 0.79 | K48: 1 | L48: 0.79 | N48: 0
B49: Sub-Total B - Distribution (includes Sub-Total A) | H49: =SUM(H40:H48)+H39 -> 65.516828 | L49: =SUM(L40:L48)+L39 -> 70.25086737 | N49: 4.734039368 | O49: =IF((H49)=0,"",(N49/H49)) -> 0.07225684626
B50: RTSR - Network | D50: per kWh | F50: 0.0058 | G50: =F18*(1+F76) -> 1945.8 | H50: =G50*F50 -> 11.28564 | J50: 0.005804740693 | K50: =F18*(1+J76) -> 1945.8 | L50: =K50*J50 -> 11.29486444 | N50: 0.009224440189 | O50: 0.0008173608398
B51: RTSR - Line and Transformation Connection | D51: per kWh | F51: 0.004 | G51: =G50 -> 1945.8 | H51: =G51*F51 -> 7.7832 | J51: 0.003258290798 | K51: =K50 -> 1945.8 | L51: =K51*J51 -> 6.339982235 | N51: -1.443217765 | O51: -0.1854273004
B52: Sub-Total C - Delivery (including Sub-Total B) | H52: =SUM(H49:H51) -> 84.585668 | L52: =SUM(L49:L51) -> 87.88571404 | N52: 3.300046044 | O52: 0.03901424581
B53: Wholesale Market Service Charge (WMSC) | D53: per kWh | F53: 0.0036 | G53: =G51 -> 1945.8 | H53: =G53*F53 -> 7.00488 | J53: 0.0036 | K53: =K51 -> 1945.8 | L53: =K53*J53 -> 7.00488 | N53: 0 | O53: 0
B54: Rural and Remote Rate Protection (RRRP) | D54: per kWh | F54: 0.0013 | G54: =G51 -> 1945.8 | H54: 2.52954 | J54: 0.0013 | K54: =K51 -> 1945.8 | L54: 2.52954 | N54: 0 | O54: 0
B55: Standard Supply Service Charge | D55: Monthly | F55: 0.25 | G55: 1 | H55: 0.25 | J55: 0.25 | K55: 1 | L55: 0.25 | N55: 0 | O55: 0
B56: OEAP | D56: per kWh | F56: 0.0011 | G56: =F18 -> 1800 | H56: 1.98 | J56: 0.0011 | K56: =F18 -> 1800 | L56: 1.98 | N56: 0 | O56: 0
B57: TOU - Off Peak | D57: per kWh | F57: 0.083 | G57: =0.64*$F$18 -> 1152 | H57: 95.616 | J57: 0.083 | K57: =G57 -> 1152 | L57: 95.616 | N57: 0 | O57: 0
B58: TOU - Mid Peak | D58: per kWh | F58: 0.128 | G58: =0.18*$F$18 -> 324 | H58: 41.472 | J58: 0.128 | K58: =G58 -> 324 | L58: 41.472 | N58: 0 | O58: 0
B59: TOU - On Peak | D59: per kWh | F59: 0.175 | G59: =0.18*$F$18 -> 324 | H59: 56.7 | J59: 0.175 | K59: =G59 -> 324 | L59: 56.7 | N59: 0 | O59: 0
B60: Energy - RPP - Tier 1 | D60: per kWh | F60: 0.099 | G60: =IF(AND($T$1=1, F18>=600), 600, IF(AND($T$1=1, AND(F18<600, F18>=0)), F18, IF(AND($T$1=2, F18>=1000), 1000, IF(AND($T$1=2, AND(F18<1000, F18>=0)), F18)))) -> 600 | H60: =G60*F60 -> 59.4 | J60: 0.099 | K60: =G60 -> 600 | L60: =K60*J60 -> 59.4 | N60: 0 | O60: 0
B61: Energy - RPP - Tier 2 | D61: per kWh | F61: 0.116 | G61: =IF(AND($T$1=1, F18>=600), F18-600, IF(AND($T$1=1, AND(F18<600, F18>=0)), 0, IF(AND($T$1=2, F18>=1000), F18-1000, IF(AND($T$1=2, AND(F18<1000, F18>=0)), 0)))) -> 1200 | H61: =G61*F61 -> 139.2 | J61: 0.116 | K61: =G61 -> 1200 | L61: =K61*J61 -> 139.2 | N61: 0 | O61: 0
B63: Total Bill on TOU (before Taxes) | H63: =SUM(H53:H59,H52) -> 290.138088 | L63: =SUM(L53:L59,L52) -> 293.438134 | N63: =L63-H63 -> 3.300046044 | O63: =IF((H63)=0,"",(N63/H63)) -> 0.01137405318
B64: HST | F64: 0.13 | H64: =H63*F64 -> 37.71795144 | J64: 0.13 | L64: =L63*J64 -> 38.14695743 | N64: 0.4290059857 | O64: 0.01137405318
B65: Total Bill (including HST) | H65: =H63+H64 -> 327.8560394 | L65: =L63+L64 -> 331.5850915 | N65: 3.729052029 | O65: 0.01137405318
B66: Ontario Clean Energy Benefit 1 | H66: =ROUND(-H65*0.1,2) -> -32.79 | L66: =ROUND(-L65*0.1,2) -> -33.16 | N66: -0.37 | O66: 0.01128392803
B67: Total Bill on TOU (including OCEB) | H67: =H65+H66 -> 295.0660394 | L67: =L65+L66 -> 298.4250915 | N67: 3.359052029 | O67: 0.01138406858
B69: Total Bill on RPP (before Taxes) | H69: =SUM(H60:H61,H52,H53:H56) -> 294.950088 | L69: =SUM(L60:L61,L52,L53:L56) -> 298.250134 | N69: =L69-H69 -> 3.300046044 | O69: =IF((H69)=0,"",(N69/H69)) -> 0.01118848977
B70: HST | F70: 0.13 | H70: =H69*F70 -> 38.34351144 | J70: 0.13 | L70: =L69*J70 -> 38.77251743 | N70: =L70-H70 -> 0.4290059857 | O70: =IF((H70)=0,"",(N70/H70)) -> 0.01118848977
B71: Total Bill (including HST) | H71: =H69+H70 -> 333.2935994 | L71: =L69+L70 -> 337.0226515 | N71: =L71-H71 -> 3.729052029 | O71: =IF((H71)=0,"",(N71/H71)) -> 0.01118848977
B72: Ontario Clean Energy Benefit 1 | H72: =ROUND(-H71*0.1,2) -> -33.33 | L72: =ROUND(-L71*0.1,2) -> -33.7 | N72: =L72-H72 -> -0.37 | O72: =IF((H72)=0,"",(N72/H72)) -> 0.01110111011
B73: Total Bill on RPP (including OCEB) | H73: =SUM(H71:H72) -> 299.9635994 | L73: =SUM(L71:L72) -> 303.3226515 | N73: =L73-H73 -> 3.359052029 | O73: =IF((H73)=0,"",(N73/H73)) -> 0.01119819883
B76: Loss Factor (%) | F76: 0.081 | J76: 0.081

Sheet Update to COS Application
A1: Rate Design Model version 1.0 © CHEC
D4: Updates to Cost of Service Application
B5: Note: By clicking the camera icon, utilities can take a snapshot of that specific row. This feature is intended to help utilites keep track of the changes throughout the various stages of the application..
A6: Snapshot/Reset | C6: Reference | D6: Description | E6: Regulated Return on Capital | F6: Regulated Rate of Return | G6: Rate Base | H6: WCA | I6: Amortization | J6: PILS | K6: OM&A | L6: Base Rev Req | M6: Affects Cost Allocation Y/N | N6: Affects Rate Design Y/N | O6: Affects Rate Riders Y/N | P6: Affects Final Rates Y/N
B7: =TODAY() -> 2016-06-13 | C7: Original Application | D7: Filed on June 14, 2016 | E7: 435760.012 | G7: 6933995.48 | H7: 994881.5501 | I7: 247980.96 | J7: 23047.14634 | K7: 1549280 | L7: 2148518.118 | M7: No | N7: No | O7: No | P7: No
E8: ='E. Revenue Requirement'!$C$19 -> 435760.012 | G8: ='D. Rate Base'!$D$20 -> 6933995.48 | H8: ='D. Rate Base'!$D$31 -> 994881.5501 | I8: ='E. Revenue Requirement'!$C$15 -> 247980.96 | J8: ='E. Revenue Requirement'!$C$21 -> 23047.14634 | K8: ='E. Revenue Requirement'!$C$14 -> 1549280 | L8: ='E. Revenue Requirement'!$C$26 -> 2148518.118 | M8: No | N8: No | O8: No | P8: No
E9: =E7-E8 -> 0 | F9: =F7-F8 -> 0 | G9: 0 | H9: 0 | I9: 0 | J9: 0 | K9: 0 | L9: 0
E10: ='E. Revenue Requirement'!C19 -> 435760.012 | G10: ='D. Rate Base'!D20 -> 6933995.48 | H10: ='D. Rate Base'!D31 -> 994881.5501 | I10: ='E. Revenue Requirement'!C15 -> 247980.96 | J10: ='E. Revenue Requirement'!C21 -> 23047.14634 | K10: ='E. Revenue Requirement'!C14 -> 1549280 | L10: ='E. Revenue Requirement'!C26 -> 2148518.118 | M10: No | N10: No | O10: No | P10: No
E11: ='E. Revenue Requirement'!$C$19 -> 435760.012 | G11: ='D. Rate Base'!$D$20 -> 6933995.48 | H11: ='D. Rate Base'!$D$31 -> 994881.5501 | I11: ='E. Revenue Requirement'!$C$15 -> 247980.96 | J11: ='E. Revenue Requirement'!$C$21 -> 23047.14634 | K11: ='E. Revenue Requirement'!$C$14 -> 1549280 | L11: ='E. Revenue Requirement'!$C$26 -> 2148518.118 | M11: No | N11: No | O11: No | P11: No
E12: =E10-E11 -> 0 | F12: 0 | G12: 0 | H12: 0 | I12: 0 | J12: 0 | K12: 0 | L12: 0
E13: ='E. Revenue Requirement'!$C$19 -> 435760.012 | G13: ='D. Rate Base'!$D$20 -> 6933995.48 | H13: ='D. Rate Base'!$D$31 -> 994881.5501 | I13: ='E. Revenue Requirement'!$C$15 -> 247980.96 | J13: ='E. Revenue Requirement'!$C$21 -> 23047.14634 | K13: ='E. Revenue Requirement'!$C$14 -> 1549280 | L13: ='E. Revenue Requirement'!$C$26 -> 2148518.118 | M13: No | N13: No | O13: No | P13: No
E14: ='E. Revenue Requirement'!$C$19 -> 435760.012 | G14: ='D. Rate Base'!$D$20 -> 6933995.48 | H14: ='D. Rate Base'!$D$31 -> 994881.5501 | I14: ='E. Revenue Requirement'!$C$15 -> 247980.96 | J14: ='E. Revenue Requirement'!$C$21 -> 23047.14634 | K14: ='E. Revenue Requirement'!$C$14 -> 1549280 | L14: ='E. Revenue Requirement'!$C$26 -> 2148518.118 | M14: No | N14: No | O14: No | P14: No
E15: =E13-E14 -> 0 | F15: 0 | G15: 0 | H15: 0 | I15: 0 | J15: 0 | K15: 0 | L15: 0
E16: ='E. Revenue Requirement'!$C$19 -> 435760.012 | G16: ='D. Rate Base'!$D$20 -> 6933995.48 | H16: ='D. Rate Base'!$D$31 -> 994881.5501 | I16: ='E. Revenue Requirement'!$C$15 -> 247980.96 | J16: ='E. Revenue Requirement'!$C$21 -> 23047.14634 | K16: ='E. Revenue Requirement'!$C$14 -> 1549280 | L16: ='E. Revenue Requirement'!$C$26 -> 2148518.118 | M16: No | N16: No | O16: No | P16: No
E17: ='E. Revenue Requirement'!$C$19 -> 435760.012 | G17: ='D. Rate Base'!$D$20 -> 6933995.48 | H17: ='D. Rate Base'!$D$31 -> 994881.5501 | I17: ='E. Revenue Requirement'!$C$15 -> 247980.96 | J17: ='E. Revenue Requirement'!$C$21 -> 23047.14634 | K17: ='E. Revenue Requirement'!$C$14 -> 1549280 | L17: ='E. Revenue Requirement'!$C$26 -> 2148518.118 | M17: No | N17: No | O17: No | P17: No
E18: =E16-E17 -> 0 | F18: 0 | G18: 0 | H18: 0 | I18: 0 | J18: 0 | K18: 0 | L18: 0
E19: ='E. Revenue Requirement'!$C$19 -> 435760.012 | G19: ='D. Rate Base'!$D$20 -> 6933995.48 | H19: ='D. Rate Base'!$D$31 -> 994881.5501 | I19: ='E. Revenue Requirement'!$C$15 -> 247980.96 | J19: ='E. Revenue Requirement'!$C$21 -> 23047.14634 | K19: ='E. Revenue Requirement'!$C$14 -> 1549280 | L19: ='E. Revenue Requirement'!$C$26 -> 2148518.118 | M19: No | N19: No | O19: No | P19: No
E20: ='E. Revenue Requirement'!$C$19 -> 435760.012 | G20: ='D. Rate Base'!$D$20 -> 6933995.48 | H20: ='D. Rate Base'!$D$31 -> 994881.5501 | I20: ='E. Revenue Requirement'!$C$15 -> 247980.96 | J20: ='E. Revenue Requirement'!$C$21 -> 23047.14634 | K20: ='E. Revenue Requirement'!$C$14 -> 1549280 | L20: ='E. Revenue Requirement'!$C$26 -> 2148518.118 | M20: No | N20: No | O20: No | P20: No
E21: =E19-E20 -> 0 | F21: 0 | G21: 0 | H21: 0 | I21: 0 | J21: 0 | K21: 0 | L21: 0
E22: ='E. Revenue Requirement'!$C$19 -> 435760.012 | G22: ='D. Rate Base'!$D$20 -> 6933995.48 | H22: ='D. Rate Base'!$D$31 -> 994881.5501 | I22: ='E. Revenue Requirement'!$C$15 -> 247980.96 | J22: ='E. Revenue Requirement'!$C$21 -> 23047.14634 | K22: ='E. Revenue Requirement'!$C$14 -> 1549280 | L22: ='E. Revenue Requirement'!$C$26 -> 2148518.118 | M22: No | N22: No | O22: No | P22: No
E23: ='E. Revenue Requirement'!$C$19 -> 435760.012 | G23: ='D. Rate Base'!$D$20 -> 6933995.48 | H23: ='D. Rate Base'!$D$31 -> 994881.5501 | I23: ='E. Revenue Requirement'!$C$15 -> 247980.96 | J23: ='E. Revenue Requirement'!$C$21 -> 23047.14634 | K23: ='E. Revenue Requirement'!$C$14 -> 1549280 | L23: ='E. Revenue Requirement'!$C$26 -> 2148518.118 | M23: No | N23: No | O23: No | P23: No
E24: =E22-E23 -> 0 | F24: 0 | G24: 0 | H24: 0 | I24: 0 | J24: 0 | K24: 0 | L24: 0
E25: ='E. Revenue Requirement'!$C$19 -> 435760.012 | G25: ='D. Rate Base'!$D$20 -> 6933995.48 | H25: ='D. Rate Base'!$D$31 -> 994881.5501 | I25: ='E. Revenue Requirement'!$C$15 -> 247980.96 | J25: ='E. Revenue Requirement'!$C$21 -> 23047.14634 | K25: ='E. Revenue Requirement'!$C$14 -> 1549280 | L25: ='E. Revenue Requirement'!$C$26 -> 2148518.118 | M25: No | N25: No | O25: No | P25: No
E26: ='E. Revenue Requirement'!$C$19 -> 435760.012 | G26: ='D. Rate Base'!$D$20 -> 6933995.48 | H26: ='D. Rate Base'!$D$31 -> 994881.5501 | I26: ='E. Revenue Requirement'!$C$15 -> 247980.96 | J26: ='E. Revenue Requirement'!$C$21 -> 23047.14634 | K26: ='E. Revenue Requirement'!$C$14 -> 1549280 | L26: ='E. Revenue Requirement'!$C$26 -> 2148518.118 | M26: No | N26: No | O26: No | P26: No
E27: =E25-E26 -> 0 | F27: 0 | G27: 0 | H27: 0 | I27: 0 | J27: 0 | K27: 0 | L27: 0
E28: ='E. Revenue Requirement'!$C$19 -> 435760.012 | G28: ='D. Rate Base'!$D$20 -> 6933995.48 | H28: ='D. Rate Base'!$D$31 -> 994881.5501 | I28: ='E. Revenue Requirement'!$C$15 -> 247980.96 | J28: ='E. Revenue Requirement'!$C$21 -> 23047.14634 | K28: ='E. Revenue Requirement'!$C$14 -> 1549280 | L28: ='E. Revenue Requirement'!$C$26 -> 2148518.118 | M28: No | N28: No | O28: No | P28: No
E29: ='E. Revenue Requirement'!$C$19 -> 435760.012 | G29: ='D. Rate Base'!$D$20 -> 6933995.48 | H29: ='D. Rate Base'!$D$31 -> 994881.5501 | I29: ='E. Revenue Requirement'!$C$15 -> 247980.96 | J29: ='E. Revenue Requirement'!$C$21 -> 23047.14634 | K29: ='E. Revenue Requirement'!$C$14 -> 1549280 | L29: ='E. Revenue Requirement'!$C$26 -> 2148518.118 | M29: No | N29: No | O29: No | P29: No
E30: =E28-E29 -> 0 | F30: 0 | G30: 0 | H30: 0 | I30: 0 | J30: 0 | K30: 0 | L30: 0
E31: =SUM(#REF!+#REF!) ->  | F31: =#REF! ->  | G31: =#REF! ->  | H31: =#REF! ->  | I31: =#REF! ->  | J31: =#REF! ->  | K31: =#REF! ->  | L31: =#REF! ->  | M31: No | N31: No | O31: No | P31: No
E32: =SUM(#REF!+#REF!) ->  | F32: =#REF! ->  | G32: =#REF! ->  | H32: =#REF! ->  | I32: =#REF! ->  | J32: =#REF! ->  | K32: =#REF! ->  | L32: =#REF! ->  | M32: No | N32: No | O32: No | P32: No
E33: =E31-E32 -> 
E34: =SUM(#REF!+#REF!) ->  | F34: =#REF! ->  | G34: =#REF! ->  | H34: =#REF! ->  | I34: =#REF! ->  | J34: =#REF! ->  | K34: =#REF! ->  | L34: =#REF! ->  | M34: No | N34: No | O34: No | P34: No
E35: =SUM(#REF!+#REF!) ->  | F35: =#REF! ->  | G35: =#REF! ->  | H35: =#REF! ->  | I35: =#REF! ->  | J35: =#REF! ->  | K35: =#REF! ->  | L35: =#REF! ->  | M35: No | N35: No | O35: No | P35: No
E36: =E34-E35 -> 
E37: =SUM(#REF!+#REF!) ->  | F37: =#REF! ->  | G37: =#REF! ->  | H37: =#REF! ->  | I37: =#REF! ->  | J37: =#REF! ->  | K37: =#REF! ->  | L37: =#REF! ->  | M37: No | N37: No | O37: No | P37: No
E38: =SUM(#REF!+#REF!) ->  | F38: =#REF! ->  | G38: =#REF! ->  | H38: =#REF! ->  | I38: =#REF! ->  | J38: =#REF! ->  | K38: =#REF! ->  | L38: =#REF! ->  | M38: No | N38: No | O38: No | P38: No
E39: =E37-E38 -> 
E40: =SUM(#REF!+#REF!) ->  | F40: =#REF! ->  | G40: =#REF! ->  | H40: =#REF! ->  | I40: =#REF! ->  | J40: =#REF! ->  | K40: =#REF! ->  | L40: =#REF! ->  | M40: No | N40: No | O40: No | P40: No
E41: =SUM(#REF!+#REF!) ->  | F41: =#REF! ->  | G41: =#REF! ->  | H41: =#REF! ->  | I41: =#REF! ->  | J41: =#REF! ->  | K41: =#REF! ->  | L41: =#REF! ->  | M41: No | N41: No | O41: No | P41: No
E42: =E40-E41 -> 
E43: =SUM(#REF!+#REF!) ->  | F43: =#REF! ->  | G43: =#REF! ->  | H43: =#REF! ->  | I43: =#REF! ->  | J43: =#REF! ->  | K43: =#REF! ->  | L43: =#REF! ->  | M43: No | N43: No | O43: No | P43: No
E44: =SUM(#REF!+#REF!) ->  | F44: =#REF! ->  | G44: =#REF! ->  | H44: =#REF! ->  | I44: =#REF! ->  | J44: =#REF! ->  | K44: =#REF! ->  | L44: =#REF! ->  | M44: No | N44: No | O44: No | P44: No
E45: =E43-E44 -> 
E46: =SUM(#REF!+#REF!) ->  | F46: =#REF! ->  | G46: =#REF! ->  | H46: =#REF! ->  | I46: =#REF! ->  | J46: =#REF! ->  | K46: =#REF! ->  | L46: =#REF! ->  | M46: No | N46: No | O46: No | P46: No
E47: =SUM(#REF!+#REF!) ->  | F47: =#REF! ->  | G47: =#REF! ->  | H47: =#REF! ->  | I47: =#REF! ->  | J47: =#REF! ->  | K47: =#REF! ->  | L47: =#REF! ->  | M47: No | N47: No | O47: No | P47: No
E48: =E46-E47 -> 
E49: =SUM(#REF!+#REF!) ->  | F49: =#REF! ->  | G49: =#REF! ->  | H49: =#REF! ->  | I49: =#REF! ->  | J49: =#REF! ->  | K49: =#REF! ->  | L49: =#REF! ->  | M49: No | N49: No | O49: No | P49: No
E50: =SUM(#REF!+#REF!) ->  | F50: =#REF! ->  | G50: =#REF! ->  | H50: =#REF! ->  | I50: =#REF! ->  | J50: =#REF! ->  | K50: =#REF! ->  | L50: =#REF! ->  | M50: No | N50: No | O50: No | P50: No
E51: =E49-E50 -> 
